Workbook

Sheet стр1
A33: *-данные по ВДС, прозводительности труда за 1 полугодие 2023 года, полная занятость - 1 полугодие 2023 года

Sheet к стр1 (hidden)
I1: 00 | K1: 6182.0966 | M1: РЕСПУБЛИКА КАЗАХСТАН | N1: 614
I2: 35 | J2: Карагандинская | K2: 932.9949 | AG2: Атырауская | AH2: 43.18008299
I3: 19 | J3: Алматинская | K3: 591.277 | M3: Карагандинская | N3: 69.558 | AG3: Костанайская | AH3: 36.82168741
I4: 63 | J4: ВКО | K4: 520.483 | M4: г. Алматы | N4: 62.622 | AG4: г.Шымкент | AH4: 29.86666667
I5: 39 | J5: Костанайская | K5: 471.5928 | M5: Павлодарская | N5: 57.316 | AG5: Карагандинская | AH5: 29.68343015
I6: 75 | J6: г.Алматы | K6: 434.7706 | M6: Алматинская | N6: 52.227 | AG6: Абай | AH6: 29.10760719
I7: 55 | J7: Павлодарская | K7: 432.9989 | M7: ВКО | N7: 48.087 | AG7: г.Астана | AH7: 26.13576763
I8: 15 | J8: г.Астана | K8: 404.7674 | M8: Акмолинская | N8: 35.7335 | AG8: Алматинская | AH8: 25.05405256
I9: 62 | J9: Акмолинская | K9: 394.4682 | M9: г. Астана | N9: 34.2725 | AG9: Акмолинская | AH9: 24.42932227
I10: 11 | J10: Актюбинская | K10: 315.9725 | M10: Актюбинская | N10: 29.17 | AG10: Актюбинская | AH10: 23.97145228
I11: 79 | J11: г.Шымкент | K11: 290.3134 | M11: Костанайская | N11: 28.343 | AG11: ВКО | AH11: 23.95308437
I12: 71 | J12: Атырауская | K12: 225.4222 | M12: Область Ұлытау | N12: 25.3605 | AG12: СКО | AH12: 22.22185339
I13: 23 | J13: Ұлытау | K13: 209.5385 | M13: Жамбылская | N13: 25.1635 | AG13: Туркестанская | AH13: 19.38102351
I14: 31 | J14: Жамбылская | K14: 194.2576 | M14: г.Шымкент | N14: 21.5105 | AG14: Ұлытау | AH14: 18.28426003
I15: 59 | J15: СКО | K15: 166.9103 | M15: ЗКО | N15: 19.932 | AG15: Жамбылская | AH15: 17.08370678
I16: 10 | J16: Абай | K16: 161.2159 | M16: Мангыстауская | N16: 18.3215 | AG16: Павлодарская | AH16: 16.71834025
I17: 61 | J17: Туркестанская | K17: 125.5696 | M17: СКО | N17: 16.6215 | AG17: г.Алматы | AH17: 15.364426
I18: 27 | J18: Жетісу | K18: 88.6225 | M18: Область Жетісу | N18: 14.626 | AG18: Кызылординская | AH18: 14.37676349
I19: 43 | J19: Кызылординская | K19: 79.6533 | M19: Туркестанская | N19: 14.338 | AG19: Жетісу | AH19: 13.40901798
I20: 47 | J20: Мангистауская | K20: 70.8309 | M20: Кызылординская | N20: 12.2605 | AG20: Мангистауская | AH20: 8.555242047
I21: 33 | J21: ЗКО | K21: 70.4371 | M21: Область Абай | N21: 12.257 | AG21: ЗКО | AH21: 7.820525588
M22: Атырауская | N22: 11.553

Sheet стр2
A1: Отдельные показатели индустриального развития по Республике Казахстан и областям за 2015 – 2022 годы
A2: Наименование показателей | B2: 2014 год | C2: 2015 год | D2: 2016 год | E2: 2017 год | F2: 2018 год | G2: 2019 год | H2: 2020 год | I2: 2021 год | J2: 2022 год
A3: Объем производства обрабатывающей продукции, млрд. тенге | B3: 6092.193806 | C3: 5978.007884 | D3: 8046.844512 | E3: 9400.848179 | F3: 10403.85408 | G3: 11573.34956 | H3: 13232.69558 | I3: 17121.39237 | J3: 21161.83003
A4: Абай | B4: ... | C4: .. | D4: .. | E4: .. | F4: .. | G4: .. | H4: .. | I4: .. | J4: 482.216351
A5: Акмолинская | B5: 223.104335 | C5: 231.415146 | D5: 329.309182 | E5: 444.041938 | F5: 533.068576 | G5: 641.930469 | H5: 867.118279 | I5: 931.296487 | J5: 1224.67623
A6: Актюбинская | B6: 258.75843 | C6: 264.391435 | D6: 367.511426 | E6: 531.508133 | F6: 606.533962 | G6: 605.300233 | H6: 569.692184 | I6: 840.257615 | J6: 1169.573417
A7: Алматинская | B7: 471.116037 | C7: 462.704848 | D7: 569.81061 | E7: 677.448496 | F7: 770.319718 | G7: 883.04739 | H7: 1088.805686 | I7: 1318.065433 | J7: 1502.837606
A8: Атырауская | B8: 362.405534 | C8: 335.679082 | D8: 489.328707 | E8: 512.533925 | F8: 584.810395 | G8: 525.596288 | H8: 526.416501 | I8: 703.679382 | J8: 706.927438
A9: Западно-Казахстанская | B9: 142.480031 | C9: 107.057671 | D9: 126.646878 | E9: 161.649954 | F9: 202.30505 | G9: 215.384248 | H9: 210.678843 | I9: 231.733557 | J9: 291.242657
A10: Жамбылская | B10: 203.51825 | C10: 196.722731 | D10: 239.800107 | E10: 257.641349 | F10: 301.559257 | G10: 352.056172 | H10: 380.642075 | I10: 453.393849 | J10: 627.889517
A11: Жетису | B11: ... | C11: .. | D11: .. | E11: .. | F11: .. | G11: .. | H11: .. | I11: .. | J11: 241.737802
A12: Карагандинская | B12: 956.758853 | C12: 1062.249998 | D12: 1530.575838 | E12: 1802.274557 | F12: 1935.038195 | G12: 1991.427809 | H12: 2304.075102 | I12: 3458.056637 | J12: 2915.078733
A13: Костанайская | B13: 263.475422 | C13: 244.47441 | D13: 314.799319 | E13: 412.557106 | F13: 458.985301 | G13: 645.990406 | H13: 900.590927 | I13: 1157.482741 | J13: 1607.116059
A14: Кызылординская | B14: 79.816436 | C14: 90.555781 | D14: 120.284748 | E14: 110.477262 | F14: 119.425713 | G14: 145.739688 | H14: 151.910127 | I14: 192.587698 | J14: 250.730177
A15: Мангистауская | B15: 105.67653 | C15: 116.154239 | D15: 149.052931 | E15: 146.63683 | F15: 159.915829 | G15: 175.6282 | H15: 177.466198 | I15: 187.592428 | J15: 216.416739
A16: Южно-Казахстанская | B16: 397.371323 | C16: 412.569928 | D16: 487.583997 | E16: .. | F16: .. | G16: .. | H16: .. | I16: .. | J16: ..
A17: Павлодарская | B17: 708.14892 | C17: 677.760979 | D17: 913.89327 | E17: 1136.084113 | F17: 1264.693177 | G17: 1292.963535 | H17: 1310.35372 | I17: 1763.115467 | J17: 2127.890296
A18: Северо-Казахстанская | B18: 119.391276 | C18: 120.537434 | D18: 144.188833 | E18: 171.909204 | F18: 171.240853 | G18: 195.535392 | H18: 241.422859 | I18: 305.998671 | J18: 429.099491
A19: Туркестанская | B19: ... | C19: .. | D19: .. | E19: 219.653162 | F19: 213.848533 | G19: 244.586161 | H19: 270.962996 | I19: 318.053928 | J19: 416.974297
A20: Улытау | B20: ... | C20: .. | D20: .. | E20: .. | F20: .. | G20: .. | H20: .. | I20: .. | J20: 822.315523
A21: Восточно-Казахстанская | B21: 929.632316 | C21: 826.835425 | D21: 1278.783183 | E21: 1283.47104 | F21: 1417.064718 | G21: 1560.349489 | H21: 1680.234702 | I21: 1966.367081 | J21: 1965.795695
A22: г.Астана | B22: 289.914706 | C22: 324.403113 | D22: 376.719308 | E22: 484.886349 | F22: 546.873676 | G22: 786.484722 | H22: 1080.822661 | I22: 1390.528039 | J22: 1788.851257
A23: г.Алматы | B23: 580.625407 | C23: 504.495664 | D23: 608.556175 | E23: 691.971669 | F23: 695.894805 | G23: 813.928514 | H23: 888.393458 | I23: 1205.530847 | J23: 1524.775426
A24: г.Шымкент | B24: ... | C24: .. | D24: .. | E24: 356.103091 | F24: 422.276321 | G24: 497.40084 | H24: 583.109258 | I24: 697.652512 | J24: 849.685315
A25: ВДС обрабатывающей промышленности, млрд. тенге | B25: 4093.8491 | C25: 4201.0121 | D25: 5321.8969 | E25: 6134.0205 | F25: 7065.1 | G25: 7972.9 | H25: 9235.6 | I25: 11424.7657 | J25: 13930
A26: Абай | B26: ... | C26: ... | D26: ... | E26: ... | F26: ... | G26: ... | H26: ... | I26: ... | J26: 262
A27: Акмолинская | B27: 147.4881 | C27: 166.1946 | D27: 258.4801 | E27: 293.767 | F27: 347 | G27: 401.6 | H27: 523.4 | I27: 605.5718 | J27: 904
A28: Актюбинская | B28: 155.711 | C28: 161.8978 | D28: 223.6897 | E28: 266.9002 | F28: 325.1 | G28: 334.7 | H28: 324.6 | I28: 456.737 | J28: 703
A29: Алматинская | B29: 363.2663 | C29: 360.8893 | D29: 400.8097 | E29: 523.4868 | F29: 630.5 | G29: 680.3 | H29: 932.8 | I29: 1113.4429 | J29: 1202
A30: Атырауская | B30: 189.4263 | C30: 184.6642 | D30: 256.4735 | E30: 268.4595 | F30: 328.7 | G30: 374.9 | H30: 403.1 | I30: 564.1473 | J30: 595
A31: Западно-Казахстанская | B31: 83.2833 | C31: 63.0247 | D31: 74.1992 | E31: 94.7089 | F31: 126.8 | G31: 134.4 | H31: 133 | I31: 139.7747 | J31: 177
A32: Жамбылская | B32: 133.9109 | C32: 122.9813 | D32: 146.8871 | E32: 157.5882 | F32: 200.2 | G32: 241.2 | H32: 283.8 | I32: 301.9756 | J32: 323
A33: Жетису | B33: ... | C33: ... | D33: ... | E33: ... | F33: ... | G33: ... | H33: ... | I33: ... | J33: 160
A34: Карагандинская | B34: 789.8597 | C34: 922.7003 | D34: 1176.4344 | E34: 1338.5293 | F34: 1466 | G34: 1644.3 | H34: 1988.3 | I34: 2668.0805 | J34: 2664
A35: Костанайская | B35: 159.3026 | C35: 158.4655 | D35: 181.6309 | E35: 252.931 | F35: 286.4 | G35: 410.9 | H35: 556.3 | I35: 752.5788 | J35: 1022
A36: Кызылординская | B36: 46.8416 | C36: 60.417 | D36: 87.738 | E36: 71.1112 | F36: 81.2 | G36: 93.3 | H36: 99 | I36: 114.0017 | J36: 152
A37: Мангыстауская | B37: 67.9301 | C37: 77.0972 | D37: 96.6484 | E37: 96.2338 | F37: 107 | G37: 118.9 | H37: 129.6 | I37: 134.5324 | J37: 160
A38: Южно-Казахстанская | B38: 474.2969 | C38: 484.4812 | D38: 499.0505 | E38: 600.6592 | F38: ... | G38: ... | H38: ... | I38: ... | J38: 0
A39: Туркестанская | B39: ... | C39: ... | D39: ... | E39: ... | F39: 165 | G39: 174.5 | H39: 193.2 | I39: 210.0083 | J39: 250
A40: Павлодарская | B40: 391.4707 | C40: 389.9034 | D40: 536.6156 | E40: 661.6522 | F40: 782.5 | G40: 850.7 | H40: 838.9 | I40: 1112.8235 | J40: 1037
A41: Северо-Казахстанская | B41: 74.3834 | C41: 73.2627 | D41: 94.805 | E41: 117.4396 | F41: 117.3 | G41: 134.6 | H41: 175.7 | I41: 207.0079 | J41: 299
A42: Улытау | B42: ... | C42: ... | D42: ... | E42: ... | F42: ... | G42: ... | H42: ... | I42: ... | J42: 481
A43: Восточно-Казахстанская | B43: 503.3895 | C43: 453.7097 | D43: 686.0562 | E43: 668.3344 | F43: 821.8 | G43: 880.4 | H43: 1028.8 | I43: 1050.801 | J43: 1046
A44: г. Астана | B44: 119.7214 | C44: 177.7369 | D44: 185.9463 | E44: 255.1428 | F44: 299.9 | G44: 427.2 | H44: 532.2 | I44: 734.2345 | J44: 892
A45: г. Алматы | B45: 393.5673 | C45: 343.5863 | D45: 416.4323 | E45: 467.0764 | F45: 487.9 | G45: 619.9 | H45: 630.7 | I45: 723.3256 | J45: 914
A46: г.Шымкент | B46: ... | C46: ... | D46: ... | E46: ... | F46: 491.9 | G46: 451.1 | H46: 462.2 | I46: 535.7222 | J46: 687
A47: Численность занятых в обрабатывающей промышленности, тыс. человек | B47: 536.3 | C47: 552.6 | D47: 568.2 | E47: 581.6 | F47: 580.5 | G47: 583.629 | H47: 581.796 | I47: 585.638 | J47: 613.651
A48: Абай | B48: ... | C48: ... | D48: ... | E48: ... | F48: ... | G48: ... | H48: ... | I48: ... | J48: 10.174
A49: Акмолинская | B49: 29.6 | C49: 29.6 | D49: 31 | E49: 31.3 | F49: 31.9 | G49: 32.795 | H49: 29.818 | I49: 29.213 | J49: 36.212
A50: Актюбинская | B50: 25.3 | C50: 25.2 | D50: 28.9 | E50: 28.9 | F50: 29.3 | G50: 29.539 | H50: 28.058 | I50: 28.354 | J50: 30.113
A51: Алматинская | B51: 40.3 | C51: 43 | D51: 44 | E51: 54.6 | F51: 52.9 | G51: 54.037 | H51: 58.004 | I51: 60.034 | J51: 50.492
A52: Атырауская | B52: 11 | C52: 15.2 | D52: 12.7 | E52: 11.8 | F52: 11.9 | G52: 11.937 | H52: 11.883 | I52: 12.106 | J52: 11.091
A53: Западно-Казахстанская | B53: 14.9 | C53: 14.1 | D53: 16.8 | E53: 16.5 | F53: 16.6 | G53: 16.778 | H53: 17.567 | I53: 17.524 | J53: 19.867
A54: Жамбылская | B54: 17.1 | C54: 16.9 | D54: 19.4 | E54: 25.4 | F54: 24.9 | G54: 23.471 | H54: 23.671 | I54: 23.271 | J54: 26.48
A55: Жетису | B55: ... | C55: ... | D55: ... | E55: ... | F55: ... | G55: ... | H55: ... | I55: ... | J55: 15.724
A56: Карагандинская | B56: 98.5 | C56: 96.7 | D56: 92.7 | E56: 90.8 | F56: 90.3 | G56: 91.725 | H56: 92.749 | I56: 92.23 | J56: 70.08
A57: Костанайская | B57: 22.4 | C57: 22.9 | D57: 23.1 | E57: 23.9 | F57: 25 | G57: 24.304 | H57: 25.013 | I57: 26.077 | J57: 28.106
A58: Кызылординская | B58: 10.4 | C58: 9.9 | D58: 13 | E58: 12.3 | F58: 12 | G58: 11.516 | H58: 11.285 | I58: 11.504 | J58: 11.537
A59: Мангыстауская | B59: 14.5 | C59: 18.3 | D59: 19.4 | E59: 16.8 | F59: 17.8 | G59: 20.635 | H59: 18.28 | I59: 17.892 | J59: 20.474
A60: Южно-Казахстанская | B60: 50.8 | C60: 40.1 | D60: 39.6 | E60: 41.7 | F60: ... | G60: ... | H60: ... | I60: ... | J60: ...
A61: Туркестанская | B61: ... | C61: ... | D61: ... | E61: ... | F61: 16.6 | G61: 16.93 | H61: 16.561 | I61: 22.092 | J61: 20.72
A62: Павлодарская | B62: 58.2 | C62: 57.5 | D62: 59.1 | E62: 58.7 | F62: 58.6 | G62: 59.119 | H62: 58.187 | I62: 57.526 | J62: 57.518
A63: Северо-Казахстанская | B63: 13.2 | C63: 13.6 | D63: 15 | E63: 13.9 | F63: 15.3 | G63: 14.925 | H63: 14.992 | I63: 15.048 | J63: 15.993
A64: Улытау | B64: ... | C64: ... | D64: ... | E64: ... | F64: ... | G64: ... | H64: ... | I64: ... | J64: 26.015
A65: Восточно-Казахстанская | B65: 68.8 | C65: 69.8 | D65: 74.3 | E65: 71.6 | F65: 70.8 | G65: 68.939 | H65: 67.244 | I65: 60.997 | J65: 45.632
A66: г. Астана | B66: 11.7 | C66: 18.3 | D66: 18.3 | E66: 23.1 | F66: 23.3 | G66: 23.52 | H66: 23.529 | I66: 25.753 | J66: 32.598
A67: г. Алматы | B67: 49.6 | C67: 61.3 | D67: 60.8 | E67: 60.1 | F67: 60.9 | G67: 61.283 | H67: 62.967 | I67: 64.438 | J67: 63.027
A68: г.Шымкент | B68: ... | C68: ... | D68: ... | E68: ... | F68: 22.5 | G68: 22.176 | H68: 21.988 | I68: 21.579 | J68: 21.798
A69: Производительность труда в обрабатывающей промышленности, тыс. долларов США/чел. | B69: 42.6 | C69: 34.3 | D69: 27.4 | E69: 32.35276768 | F69: 35.30454491 | G69: 35.1 | H69: 38.44119798 | I69: 45.8 | J69: 48.9
A70: Абай | B70: ... | C70: ... | D70: ... | E70: ... | F70: ... | G70: ... | H70: ... | I70: ... | J70: 55.85758339
A71: Акмолинская | B71: 27.8 | C71: 25.3 | D71: 24.4 | E71: 28.77433237 | F71: 31.57406621 | G71: 31.3 | H71: 42.50673402 | I71: 47.09691806 | J71: 54.19953092
A72: Актюбинская | B72: 34.3 | C72: 29 | D72: 22.6 | E72: 28.33600768 | F72: 32.21621291 | G72: 27.4 | H72: 28.01523915 | I72: 37.68091449 | J72: 50.69232106
A73: Алматинская | B73: 50.4 | C73: 37.9 | D73: 26.6 | E73: 29.38903952 | F73: 34.58076357 | G73: 34 | H73: 38.94333343 | I73: 43.64481375 | J73: 51.67738013
A74: Атырауская | B74: 96.3 | C74: 54.6 | D74: 58.9 | E74: 69.53435774 | F74: 79.89741009 | G74: 64.5 | H74: 82.14653146 | I74: 109.8866277 | J74: 116.4567408
A75: Западно-Казахстанская | B75: 31.2 | C75: 20.2 | D75: 12.9 | E75: 17.62210956 | F75: 22.20796828 | G75: 20.4 | H75: 18.33397223 | I75: 18.17477642 | J75: 19.35958131
A76: Жамбылская | B76: 43.6 | C76: 32.7 | D76: 22.1 | E76: 19.05097291 | F76: 23.33730517 | G76: 25.8 | H76: 29.03342793 | I76: 31.53885877 | J76: 26.4966991
A77: Жетису | B77: ... | C77: ... | D77: ... | E77: ... | F77: ... | G77: ... | H77: ... | I77: ... | J77: 22.15101633
A78: Карагандинская | B78: 44.8 | C78: 43 | D78: 37.1 | E78: 45.19845554 | F78: 47.10282827 | G78: 46.1 | H78: 51.91288993 | I78: 68.3585663 | J78: 82.5658009
A79: Костанайская | B79: 39.8 | C79: 31.1 | D79: 23 | E79: 32.49683615 | F79: 33.2845891 | G79: 41.2 | H79: 53.85745241 | I79: 64.63136399 | J79: 78.98801251
A80: Кызылординская | B80: 25.1 | C80: 27.5 | D80: 19.7 | E80: 17.68976688 | F80: 19.64143633 | G80: 20.8 | H80: 21.24399354 | I80: 24.4353684 | J80: 28.63772585
A81: Мангыстауская | B81: 26.2 | C81: 19 | D81: 14.6 | E81: 17.52943619 | F81: 17.42157729 | G81: 14.5 | H81: 17.16845995 | I81: 18.51348497 | J81: 17.00942495
A82: Южно-Казахстанская | B82: 52.1 | C82: 54.4 | D82: 36.8 | E82: 44.16166251 | F82: ... | G82: ... | H82: ... | I82: ...
A83: Туркестанская | B83: ... | C83: ... | D83: ... | E83: ... | F83: 28.80744296 | G83: 28.8 | H83: 28.25030197 | I83: 24.67877849 | J83: 26.14771543
A84: Павлодарская | B84: 37.5 | C84: 30.6 | D84: 26.6 | E84: 34.57358912 | F84: 38.71849875 | G84: 35.8 | H84: 34.91296697 | I84: 46.05614628 | J84: 39.16782488
A85: Северо-Казахстанская | B85: 31.4 | C85: 24.2 | D85: 18.4 | E85: 25.88332891 | F85: 22.20132383 | G85: 22.8 | H85: 28.38015202 | I85: 30.31218459 | J85: 40.56679986
A86: Улытау | B86: ... | C86: ... | D86: ... | E86: ... | F86: ... | G86: ... | H86: ... | I86: ... | J86: 40.1070622
A87: Восточно-Казахстанская | B87: 40.8 | C87: 29.3 | D87: 27 | E87: 28.61597277 | F87: 33.64914932 | G87: 32.5 | H87: 37.04929477 | I87: 44.0682581 | J87: 49.77023975
A88: г. Астана | B88: 56.9 | C88: 43.7 | D88: 29.6 | E88: 33.93074767 | F88: 37.38703482 | G88: 46.2 | H88: 54.77393348 | I88: 59.29159918 | J88: 59.4186501
A89: г. Алматы | B89: 44.3 | C89: 25.3 | D89: 20 | E89: 23.84061922 | F89: 23.25538741 | G89: 24.7 | H89: 24.25561878 | I89: 25.99746497 | J89: 31.49756776
A90: г.Шымкент | B90: ... | C90: ... | D90: ... | E90: ... | F90: 63.43000846 | G90: 69.6 | H90: 50.90339428 | I90: 56.08548694 | J90: 68.47876129
A91: Объем экспорта обрабатывающей промышленности, млн. долларов США | B91: 18364.8 | C91: 14028.9 | D91: 12645.9 | E91: 15570.3 | F91: 15754.8 | G91: 15835.67899 | H91: 15386.4282 | I91: 19841.83519 | J91: 26814.08538
A92: Абай | B92: ... | C92: ... | D92: ... | E92: ... | F92: ... | G92: ... | H92: ... | I92: ... | J92: 81.76382729
A93: Акмолинская | B93: 202.2 | C93: 174.2 | D93: 128.1 | E93: 105.1 | F93: 163.5210469 | G93: 153.397851 | H93: 368.2662657 | I93: 183.1119104 | J93: 226.3742519
A94: Актюбинская | B94: 1644 | C94: 1528.1 | D94: 1535.3 | E94: 2418.9 | F94: 1343.895909 | G94: 1026.05678 | H94: 999.9021342 | I94: 1101.697182 | J94: 1895.704418
A95: Алматинская | B95: 347.9 | C95: 258.4 | D95: 293.6 | E95: 285.5 | F95: 338.4927054 | G95: 387.9167443 | H95: 369.5972506 | I95: 648.4762439 | J95: 629.2089463
A96: Атырауская | B96: 2197.8 | C96: 992.6 | D96: 711.7 | E96: 1189.1 | F96: 1348.590352 | G96: 1301.827075 | H96: 1118.102364 | I96: 1648.214536 | J96: 1862.833644
A97: Западно-Казахстанская | B97: 443.1 | C97: 153.1 | D97: 156.2 | E97: 185.7 | F97: 227.4144534 | G97: 192.8442408 | H97: 148.6038848 | I97: 151.9970565 | J97: 265.2792993
A98: Жамбылская | B98: 100.1 | C98: 73 | D98: 210.2 | E98: 724.7 | F98: 273.5624269 | G98: 302.0484629 | H98: 123.3493724 | I98: 154.7860576 | J98: 263.3769812
A99: Жетису | B99: ... | C99: ... | D99: ... | E99: ... | F99: ... | G99: ... | H99: ... | I99: ... | J99: 27.57452636
A100: Карагандинская | B100: 3068.3 | C100: 2928.1 | D100: 2950.9 | E100: 3871.8 | F100: 3974.548939 | G100: 3601.867608 | H100: 3865.663743 | I100: 5355.231996 | J100: 5469.004538
A101: Костанайская | B101: 393 | C101: 305.1 | D101: 291.5 | E101: 303.2 | F101: 309.9 | G101: 278.4338023 | H101: 472.2977408 | I101: 396.7777105 | J101: 687.9116379
A102: Кызылординская | B102: 71.5 | C102: 95.1 | D102: 67.2 | E102: 112.6 | F102: 136.2482904 | G102: 117.2993978 | H102: 53.27756286 | I102: 127.4844454 | J102: 145.756041
A103: Мангыстауская | B103: 463.9 | C103: 120.2 | D103: 131.3 | E103: 150.5 | F103: 57.05811918 | G103: 70.85125996 | H103: 88.06219452 | I103: 91.6888581 | J103: 161.7111464
A104: Туркестанская | B104: 543.3 | C104: 528 | D104: 410.1 | E104: 295.8 | F104: 399.3396234 | G104: 359.76694 | H104: 382.7195071 | I104: 472.0869441 | J104: 705.8337009
A105: Павлодарская | B105: 1166.9 | C105: 984 | D105: 772.5 | E105: 960.9 | F105: 2255.546722 | G105: 2099.812131 | H105: 1710.748685 | I105: 2592.897501 | J105: 3066.119509
A106: Северо-Казахстанская | B106: 59.1 | C106: 47.9 | D106: 68.7 | E106: 70.9 | F106: 82.7817863 | G106: 89.52325145 | H106: 77.58260812 | I106: 89.30920553 | J106: 187.935381
A107: Улытау | B107: ... | C107: ... | D107: ... | E107: ... | F107: ... | G107: ... | H107: ... | I107: ... | J107: 159.2081795
A108: Восточно-Казахстанская | B108: 2002.9 | C108: 1966.9 | D108: 1813.2 | E108: 2285.3 | F108: 1451.65878 | G108: 2020.380337 | H108: 1884.377468 | I108: 2241.688825 | J108: 2722.209575
A109: г. Астана | B109: 1386.7 | C109: 1665.1 | D109: 1114.6 | E109: 680.9 | F109: 1008.150953 | G109: 1325.890148 | H109: 1487.805388 | I109: 1788.501256 | J109: 3335.218508
A110: г. Алматы | B110: 3141.1 | C110: 1486.3 | D110: 1453 | E110: 1323.7 | F110: 1709.482179 | G110: 1979.437467 | H110: 1835.293399 | I110: 2307.489115 | J110: 4084.078649
A111: г.Шымкент | B111: 1133.2 | C111: 722.9 | D111: 537.8 | E111: 605.8 | F111: 674.5821124 | G111: 528.3254952 | H111: 387.9844411 | I111: 456.5310854 | J111: 750.2105247
A112: Объем инвестиций в основной капитал в обрабатывающую промышленность, млн. тенге | B112: 728557 | C112: 825289 | D112: 877916 | E112: 956165 | F112: 1241914 | G112: 1017089.544 | H112: 1077818.783 | I112: 1541741.649 | J112: 1586872.194
A113: Абай | B113: ... | C113: ... | D113: ... | E113: ... | F113: ... | G113: ... | H113: ... | I113: ... | J113: 51042.515
A114: Акмолинская | B114: 35385 | C114: 19982 | D114: 25975 | E114: 31180 | F114: 47132 | G114: 39463.449 | H114: 64852.558 | I114: 124319.488 | J114: 132677.814
A115: Актюбинская | B115: 89318 | C115: 47756 | D115: 59912 | E115: 34014 | F115: 51948 | G115: 52975.7 | H115: 52358.32 | I115: 85805.818 | J115: 63703.591
A116: Алматинская | B116: 38652 | C116: 31495 | D116: 44397 | E116: 75099 | F116: 81521 | G116: 107388.402 | H116: 69462.018 | I116: 79430.881 | J116: 62840.731
A117: Атырауская | B117: 109328 | C117: 122134 | D117: 127030 | E117: 141803 | F117: 92539 | G117: 190504.116 | H117: 275946.058 | I117: 393474.939 | J117: 219758.782
A118: Западно-Казахстанская | B118: 12148 | C118: 20626 | D118: 22311 | E118: 15312 | F118: 17421 | G118: 10258.09 | H118: 6149.507 | I118: 8992.19 | J118: 6632.939
A119: Жамбылская | B119: 21256 | C119: 10928 | D119: 46515 | E119: 43612 | F119: 44459 | G119: 36840.11 | H119: 39017.822 | I119: 72706.345 | J119: 120044.109
A120: Жетису | B120: ... | C120: ... | D120: ... | E120: ... | F120: ... | G120: ... | H120: ... | I120: ... | J120: 8836.909
A121: Карагандинская | B121: 108355 | C121: 99112 | D121: 86399 | E121: 98015 | F121: 143834 | G121: 188664.342 | H121: 206964.846 | I121: 285365.609 | J121: 285574.533
A122: Костанайская | B122: 21580 | C122: 12594 | D122: 11247 | E122: 18893 | F122: 16141 | G122: 14197.471 | H122: 17908.591 | I122: 40114.246 | J122: 33035.51
A123: Кызылординская | B123: 3027 | C123: 12205 | D123: 15518 | E123: 22695 | F123: 33182 | G123: 18030.232 | H123: 3379.794 | I123: 26058.656 | J123: 6224.031
A124: Мангыстауская | B124: 11366 | C124: 13115 | D124: 19269 | E124: 10493 | F124: 7531 | G124: 18362.338 | H124: 24433.376 | I124: 16148.902 | J124: 22694.645
A125: Южно-Казахстанская | B125: 59421 | C125: 100058 | D125: 50765 | E125: 128315 | F125: ... | G125: ... | H125: ... | I125: ... | J125: 0
A126: Туркестанская | B126: ... | C126: ... | D126: ... | E126: ... | F126: 20417 | G126: 18180.727 | H126: 20867.494 | I126: 23807.438 | J126: 45282.161
A127: Павлодарская | B127: 127792 | C127: 239294 | D127: 254741 | E127: 215734 | F127: 88578 | G127: 122072.364 | H127: 68787.951 | I127: 113001.96 | J127: 182836.456
A128: Северо-Казахстанская | B128: 5075 | C128: 4830 | D128: 16935 | E128: 21314 | F128: 18726 | G128: 14035.677 | H128: 24441.172 | I128: 23231.956 | J128: 23086.223
A129: Улытау | B129: ... | C129: ... | D129: ... | E129: ... | F129: ... | G129: ... | H129: ... | I129: ... | J129: 85977.667
A130: Восточно-Казахстанская | B130: 46890 | C130: 43506 | D130: 50141 | E130: 59146 | F130: 65680 | G130: 65747.835 | H130: 79310.219 | I130: 102299.182 | J130: 97757.601
A131: г. Астана | B131: 24841 | C131: 25325 | D131: 22034 | E131: 13199 | F131: 16990 | G131: 18193.111 | H131: 20406.616 | I131: 23405.033 | J131: 25999.436
A132: г. Алматы | B132: 14123 | C132: 22329 | D132: 24727 | E132: 27341 | F132: 41352 | G132: 58224.853 | H132: 66179.362 | I132: 53382.267 | J132: 43806.383
A133: г.Шымкент | B133: ... | C133: ... | D133: ... | E133: ... | F133: 454463 | G133: 43950.727 | H133: 37353.079 | I133: 70196.739 | J133: 69060.158

Sheet стр3
B1: Объем промышленного производства по видам экономической деятельности, млрд. тг.
B2: Виды экономической деятельности | C2: январь-август 2022 | D2: январь-август 2023 | E2: ИФО январт-август 2023 года к январю-августу 2022, %
A3: C | B3: Обрабатывающая промышленность | C3: =VLOOKUP($A3,'к стр 3 и 7'!$A:$I,6,0)/1000000 -> 13418.38062 | D3: =VLOOKUP($A3,'к стр 3 и 7'!$A:$I,7,0)/1000000 -> 14042.93376 | E3: =VLOOKUP($A3,'к стр 3 и 7'!$A:$I,9,0) -> 103.1 | F3: C
A4: 10 | B4: Производство продуктов питания | C4: =VLOOKUP($A4,'к стр 3 и 7'!$A:$I,6,0)/1000000 -> 1813.694062 | D4: =VLOOKUP($A4,'к стр 3 и 7'!$A:$I,7,0)/1000000 -> 2066.428776 | E4: =VLOOKUP($A4,'к стр 3 и 7'!$A:$I,9,0) -> 104 | F4: 10
A5: 11 | B5: Производство напитков | C5: =VLOOKUP($A5,'к стр 3 и 7'!$A:$I,6,0)/1000000 -> 484.144494 | D5: =VLOOKUP($A5,'к стр 3 и 7'!$A:$I,7,0)/1000000 -> 635.136836 | E5: =VLOOKUP($A5,'к стр 3 и 7'!$A:$I,9,0) -> 105.4 | F5: 11
A6: 12 | B6: Производство табачных изделий | C6: =VLOOKUP($A6,'к стр 3 и 7'!$A:$I,6,0)/1000000 -> 179.529539 | D6: =VLOOKUP($A6,'к стр 3 и 7'!$A:$I,7,0)/1000000 -> 184.243312 | E6: =VLOOKUP($A6,'к стр 3 и 7'!$A:$I,9,0) -> 97.6 | F6: 12
A7: 13-15 | B7: Легкая промышленность | C7: =VLOOKUP($A7,'к стр 3 и 7'!$A:$I,6,0)/1000000 -> 97.122693 | D7: =VLOOKUP($A7,'к стр 3 и 7'!$A:$I,7,0)/1000000 -> 124.317024 | E7: =VLOOKUP($A7,'к стр 3 и 7'!$A:$I,9,0) -> 119.8 | F7: 13-15
A8: 16 | B8: Производство деревянных и пробковых изделий, кроме мебели; производство изделий из соломки и материалов для плетения | C8: =VLOOKUP($A8,'к стр 3 и 7'!$A:$I,6,0)/1000000 -> 19.715324 | D8: =VLOOKUP($A8,'к стр 3 и 7'!$A:$I,7,0)/1000000 -> 38.221411 | E8: =VLOOKUP($A8,'к стр 3 и 7'!$A:$I,9,0) -> 155.9 | F8: 16
A9: 17 | B9: Производство бумаги и бумажной продукции | C9: =VLOOKUP($A9,'к стр 3 и 7'!$A:$I,6,0)/1000000 -> 75.146222 | D9: =VLOOKUP($A9,'к стр 3 и 7'!$A:$I,7,0)/1000000 -> 90.437047 | E9: =VLOOKUP($A9,'к стр 3 и 7'!$A:$I,9,0) -> 101.4 | F9: 17
A10: 18 | B10: Печать и воспроизведение записанных материалов | C10: =VLOOKUP($A10,'к стр 3 и 7'!$A:$I,6,0)/1000000 -> 43.188682 | D10: =VLOOKUP($A10,'к стр 3 и 7'!$A:$I,7,0)/1000000 -> 40.856054 | E10: =VLOOKUP($A10,'к стр 3 и 7'!$A:$I,9,0) -> 96.5 | F10: 18
A11: 19 | B11: Производство кокса и продуктов нефтепереработки | C11: =VLOOKUP($A11,'к стр 3 и 7'!$A:$I,6,0)/1000000 -> 733.33721 | D11: =VLOOKUP($A11,'к стр 3 и 7'!$A:$I,7,0)/1000000 -> 753.236161 | E11: =VLOOKUP($A11,'к стр 3 и 7'!$A:$I,9,0) -> 100.7 | F11: 19
A12: 20 | B12: Производство продуктов химической промышленности | C12: =VLOOKUP($A12,'к стр 3 и 7'!$A:$I,6,0)/1000000 -> 581.678908 | D12: =VLOOKUP($A12,'к стр 3 и 7'!$A:$I,7,0)/1000000 -> 645.179397 | E12: =VLOOKUP($A12,'к стр 3 и 7'!$A:$I,9,0) -> 103.1 | F12: 20
A13: 21 | B13: Производство основных фармацевтических продуктов | C13: =VLOOKUP($A13,'к стр 3 и 7'!$A:$I,6,0)/1000000 -> 104.996307 | D13: =VLOOKUP($A13,'к стр 3 и 7'!$A:$I,7,0)/1000000 -> 96.264156 | E13: =VLOOKUP($A13,'к стр 3 и 7'!$A:$I,9,0) -> 94.7 | F13: 21
A14: 22 | B14: Производство резиновых и пластмассовых изделий | C14: =VLOOKUP($A14,'к стр 3 и 7'!$A:$I,6,0)/1000000 -> 253.407594 | D14: =VLOOKUP($A14,'к стр 3 и 7'!$A:$I,7,0)/1000000 -> 287.98081 | E14: =VLOOKUP($A14,'к стр 3 и 7'!$A:$I,9,0) -> 107.5 | F14: 22
A15: 23 | B15: Производство прочей неметаллической минеральной продукции | C15: =VLOOKUP($A15,'к стр 3 и 7'!$A:$I,6,0)/1000000 -> 699.914088 | D15: =VLOOKUP($A15,'к стр 3 и 7'!$A:$I,7,0)/1000000 -> 787.479323 | E15: =VLOOKUP($A15,'к стр 3 и 7'!$A:$I,9,0) -> 100.8 | F15: 23
A16: 24 | B16: Металлургическая промышленность | C16: =VLOOKUP($A16,'к стр 3 и 7'!$A:$I,6,0)/1000000 -> 6186.606643 | D16: =VLOOKUP($A16,'к стр 3 и 7'!$A:$I,7,0)/1000000 -> 5361.878101 | E16: =VLOOKUP($A16,'к стр 3 и 7'!$A:$I,9,0) -> 95.7 | F16: 24
A17: 25 | B17: Производство готовых металлических изделий, кроме машин и оборудования | C17: =VLOOKUP($A17,'к стр 3 и 7'!$A:$I,6,0)/1000000 -> 225.757735 | D17: =VLOOKUP($A17,'к стр 3 и 7'!$A:$I,7,0)/1000000 -> 271.454737 | E17: =VLOOKUP($A17,'к стр 3 и 7'!$A:$I,9,0) -> 106.4 | F17: 25
A18: 26-30 | B18: Машиностроение | C18: =VLOOKUP($A18,'к стр 3 и 7'!$A:$I,6,0)/1000000 -> 1852.380111 | D18: =VLOOKUP($A18,'к стр 3 и 7'!$A:$I,7,0)/1000000 -> 2578.56199 | E18: =VLOOKUP($A18,'к стр 3 и 7'!$A:$I,9,0) -> 128.1 | F18: 26-30
A19: 31 | B19: Производство мебели | C19: =VLOOKUP($A19,'к стр 3 и 7'!$A:$I,6,0)/1000000 -> 41.28059 | D19: =VLOOKUP($A19,'к стр 3 и 7'!$A:$I,7,0)/1000000 -> 51.68501 | E19: =VLOOKUP($A19,'к стр 3 и 7'!$A:$I,9,0) -> 128.8 | F19: 31
A20: 32 | B20: Производство прочих готовых изделий | C20: =VLOOKUP($A20,'к стр 3 и 7'!$A:$I,6,0)/1000000 -> 26.480745 | D20: =VLOOKUP($A20,'к стр 3 и 7'!$A:$I,7,0)/1000000 -> 29.574156 | E20: =VLOOKUP($A20,'к стр 3 и 7'!$A:$I,9,0) -> 97.9 | F20: 32

Sheet к стр 3 и 7 (hidden)
B1: 2 | C1: 3 | D1: 4 | E1: 5 | F1: 6 | G1: 7 | H1: 8 | I1: 9
B2: инвестиции, тыс. тенге | C2: инвестиции, тыс. тенге | D2: ифо инвестиции, % | E2: ифо инвестиции, % | F2: произв-во МН, тыс. тенге | G2: произв-во МН, тыс. тенге | H2: ифо пр-во МН,% | I2: ифо пр-во МН,%
B3: 2022 г. | C3: 2023 г. | D3: 2022 г. | E3: 2023 г. | F3: 2022 г. | G3: 2023 г. | H3: 2022 г. | I3: 2023 г.
A4: окэд | B4: Август | C4: Август | D4: Август | E4: Август | F4: Август | G4: Август | H4: Август | I4: Август
A5: BCDE | B5: 4137875213 | C5: 4716307260 | D5: 101.1 | E5: 108.5 | F5: 32127229914 | G5: 29952320681 | H5: 102.5 | I5: 103.8
A6: B | B6: 2730816140 | C6: 3024617227 | D6: 110.1 | E6: 105.7 | F6: 16986743317 | G6: 13958710572 | H6: 100.7 | I6: 104.3
A7: C | B7: 840734888 | C7: 809789861 | D7: 83.9 | E7: 91.4 | F7: 13418380615 | G7: 14042933756 | H7: 104.8 | I7: 103.1
A8: 05 | B8: 66901553 | C8: 91796660 | D8: 146.5 | E8: 130.1 | F8: 380141455 | G8: 339487037 | H8: 102.2 | I8: 94.5
A9: 051 | B9: 66469850 | C9: 91412128 | D9: 145.9 | E9: 130.4 | F9: 368475135 | G9: 327164432 | H9: 101.6 | I9: 94.6
A10: 0510 | B10: 66469850 | C10: 91412128 | D10: 145.9 | E10: 130.4 | F10: 368475135 | G10: 327164432 | H10: 101.6 | I10: 94.6
A11: 05101 | B11: 38922428 | C11: 39401516 | D11: 126.9 | E11: 95.1 | F11: 319204397 | G11: 301758504
A12: 05102 | B12: 27381209 | C12: 51827137 | D12: 188.5 | E12: 182 | F12: 4163446 | G12: 5371621
A13: 05103 | B13: 166212 | C13: 183474 | D13: 44.9 | E13: 106.3 | F13: 45107292 | G13: 20034307
A14: 052 | B14: 431703 | C14: 384532 | D14: 394.3 | E14: 85.6 | F14: 11666320 | G14: 12322605 | H14: 134.4 | I14: 94.3
A15: 0520 | B15: 431703 | C15: 384532 | D15: 394.3 | E15: 85.6 | F15: 11666320 | G15: 12322605 | H15: 134.4 | I15: 94.3
A16: 05201 | B16: 431703 | C16: 384532 | D16: 394.3 | E16: 85.6 | F16: 11666320 | G16: 12322605
A17: 06 | B17: 2131096410 | C17: 2296387331 | D17: 118.5 | E17: 104.4 | F17: 13368778384 | G17: 10382175422 | H17: 100.1 | I17: 106.6
A18: 061 | B18: 2128582085 | C18: 2293297238 | D18: 119.2 | E18: 104.3 | F18: 13160983401 | G18: 10208635107 | H18: 100 | I18: 106.6
A19: 0610 | B19: 2128582085 | C19: 2293297238 | D19: 119.2 | E19: 104.3 | F19: 13160983401 | G19: 10208635107 | H19: 100 | I19: 106.6
A20: 06100 | B20: 2128582085 | C20: 2293297238 | D20: 119.2 | E20: 104.3 | F20: 13160983401 | G20: 10208635107
A21: 062 | B21: 2514325 | C21: 3090093 | D21: 20.5 | E21: 118 | F21: 415589966 | G21: 347080630 | H21: 205.4 | I21: 206.4
A22: 0620 | B22: 2514325 | C22: 3090093 | D22: 20.5 | E22: 118
A23: 06201 | B23: 2514325 | C23: 3090093 | D23: 20.5 | E23: 118 | F23: 207794983 | G23: 173540315
A24: 06202
A25: 07 | B25: 365958356 | C25: 503862246 | D25: 90.3 | E25: 130.9 | F25: 2323273172 | G25: 2384595168 | H25: 100.5 | I25: 98.8
A26: 071 | B26: 41207996 | C26: 70885284 | D26: 118.3 | E26: 163.4 | F26: 523656259 | G26: 345172445 | H26: 84.5 | I26: 85.1
A27: 0710 | B27: 41207996 | C27: 70885284 | D27: 118.3 | E27: 163.4 | F27: 523656259 | G27: 345172445 | H27: 84.5 | I27: 85.1
A28: 07101 | B28: 1092558 | C28: 37819594 | D28: 99.4 | E28: 3217.9 | F28: 9930280 | G28: 10044574
A29: 07102 | B29: 40115439 | C29: 33065690 | D29: 118.9 | E29: 78.3 | F29: 295337265 | G29: 209960475
A30: 07103 | F30: 218388714 | G30: 125167396
A31: 072 | B31: 324750359 | C31: 432976961 | D31: 87.6 | E31: 126.8 | F31: 1799616913 | G31: 2039422724 | H31: 105.1 | I31: 101.2
A32: 0721 | B32: 33786122 | C32: 70931391 | D32: 121.6 | E32: 200.2 | F32: 294383086 | G32: 307570083 | H32: 98.5 | I32: 97.8
A33: 07210 | B33: 33786122 | C33: 70931391 | D33: 121.6 | E33: 200.2 | F33: 294383086 | G33: 307570083
A34: 0729 | B34: 290964238 | C34: 362045570 | D34: 84.9 | E34: 118.3 | F34: 1505233827 | G34: 1731852641 | H34: 106.8 | I34: 101.8
A35: 07291 | B35: 12592833 | C35: 11809194 | D35: 113.7 | E35: 89.3 | F35: 36657138 | G35: 38534159
A36: 07292 | B36: 105216870 | C36: 130589993 | D36: 72.3 | E36: 118.4 | F36: 919139160 | G36: 1069111932
A37: 07293 | B37: 49755670 | C37: 63112959 | D37: 79.4 | E37: 120.5 | F37: 51394486 | G37: 33293769
A38: 07294 | B38: 8472946 | C38: 3909742 | E38: 44.2
A39: 07295 | B39: 1450926 | C39: 3202337 | D39: 22.8 | E39: 209.6 | F39: 6032367 | G39: 6290035
A40: 07298 | B40: 33620707 | C40: 39818743 | D40: 69.5 | E40: 112.9 | F40: 293432233 | G40: 317949965
A41: 07299 | B41: 79854287 | C41: 109602602 | D41: 116 | E41: 129.6 | F41: 198578443 | G41: 266672780
A42: 08 | B42: 61358770 | C42: 83855821 | D42: 75.3 | E42: 130.5 | F42: 339299747 | G42: 259956666 | H42: 91.7 | I42: 113.6
A43: 081 | B43: 53321061 | C43: 75385146 | D43: 70.4 | E43: 135.1 | F43: 67028127 | G43: 86575907 | H43: 84.6 | I43: 93.5
A44: 0811 | B44: 6350323 | C44: 23614003 | D44: 18.7 | E44: 355.5 | F44: 19113976 | G44: 23870833 | H44: 84.7 | I44: 96.7
A45: 08111 | B45: 6000703 | C45: 21845887 | D45: 17.9 | E45: 348.3 | F45: 6491562 | G45: 8704680
A46: 08112 | B46: 349141 | C46: 1758230 | D46: 72.8 | E46: 475.4 | F46: 12548167 | G46: 15102801
A47: 08113 | B47: 480 | C47: 9886 | D47: 73.3 | E47: 1724.8
A48: 0812 | B48: 46970738 | C48: 51771144 | D48: 112.7 | E48: 105.3 | F48: 47914156 | G48: 62705073 | H48: 84.6 | I48: 90.9
A49: 08121 | B49: 46698360 | C49: 49557667 | D49: 113 | E49: 101.4 | F49: 45724387 | G49: 59558213
A50: 08122 | B50: 272377 | C50: 2213476 | D50: 80.1 | E50: 774.8 | F50: 1047620 | G50: 2186476
A51: 089 | B51: 8037709 | C51: 8470674 | D51: 138.8 | E51: 100.4 | F51: 272271620 | G51: 173380760 | H51: 93.7 | I51: 122.1
A52: 0891 | B52: 4611467 | C52: 6755243 | D52: 198.5 | E52: 139.1 | F52: 243655318 | G52: 142355254 | H52: 93.1 | I52: 124.1
A53: 08910 | B53: 4611467 | C53: 6755243 | D53: 198.5 | E53: 139.1 | F53: 243655318 | G53: 142355254
A54: 0893 | B54: 1572341 | C54: 37845 | D54: 245.6 | E54: 2.3 | F54: 6201197 | G54: 7931963 | H54: 110.9 | I54: 99.6
A55: 08930 | B55: 1572341 | C55: 37845 | D55: 245.6 | E55: 2.3 | F55: 6187597 | G55: 7919363
A56: 0899 | B56: 1853901 | C56: 1677586 | D56: 65.6 | E56: 86.2 | F56: 22415105 | G56: 23093542 | H56: 95.5 | I56: 110.3
A57: 08991 | B57: 1288313 | C57: 1677586 | D57: 46.4 | E57: 123.9 | F57: 21795546 | G57: 22625512
A58: 08992 | B58: 565589 | D58: 8039.2 | F58: 589225 | G58: 450680
A59: 08993
A60: 08994 | F60: 30334 | G60: 17350
A61: 08995
A62: 09 | B62: 105501052 | C62: 48715170 | D62: 121.6 | E62: 43.9 | F62: 575250559 | G62: 592496278 | H62: 118.5 | I62: 101.8
A63: 091 | B63: 76763564 | C63: 40330614 | D63: 236.3 | E63: 49.9 | F63: 434280278 | G63: 420264438 | H63: 114.6 | I63: 100.5
A64: 0910 | B64: 76763564 | C64: 40330614 | D64: 236.3 | E64: 49.9 | F64: 434280278 | G64: 420264438 | H64: 114.6 | I64: 100.5
A65: 09100 | B65: 76763564 | C65: 40330614 | D65: 236.3 | E65: 49.9 | F65: 434244701 | G65: 420226966
A66: 099 | B66: 28737489 | C66: 8384556 | D66: 53 | E66: 27.8 | F66: 140970281 | G66: 172231840 | H66: 141.7 | I66: 104.1
A67: 0990 | B67: 28737489 | C67: 8384556 | D67: 53 | E67: 27.8 | F67: 140970281 | G67: 172231840 | H67: 141.7 | I67: 104.1
A68: 09900 | B68: 28737489 | C68: 8384556 | D68: 53 | E68: 27.8 | F68: 140871992 | G68: 172122656
A69: 10 | B69: 77793979 | C69: 85582408 | D69: 137.5 | E69: 106.4 | F69: 1813694062 | G69: 2066428776 | H69: 103.5 | I69: 104
A70: 101 | B70: 16657917 | C70: 10173946 | D70: 207.8 | E70: 58.7 | F70: 288914071 | G70: 345082905 | H70: 104.4 | I70: 110.9
A71: 1011 | B71: 1941527 | C71: 3168849 | D71: 45.7 | E71: 157.1 | F71: 66376593 | G71: 75660077 | H71: 110.4 | I71: 118.9
A72: 10110 | B72: 1941527 | C72: 3168849 | D72: 45.7 | E72: 157.1 | F72: 63031276 | G72: 72469565
A73: 1012 | B73: 13264063 | C73: 4758746 | D73: 551.8 | E73: 34.4 | F73: 137385536 | G73: 176265315 | H73: 101.5 | I73: 113.7
A74: 10120 | B74: 13264063 | C74: 4758746 | D74: 551.8 | E74: 34.4 | F74: 137281254 | G74: 176143003
A75: 1013 | B75: 1452327 | C75: 2246351 | D75: 106.7 | E75: 149.7 | F75: 85151971 | G75: 93157537 | H75: 104 | I75: 100.1
A76: 10130 | B76: 1452327 | C76: 2246351 | D76: 106.7 | E76: 149.7 | F76: 77500437 | G76: 84322273
A77: 102 | B77: 704623 | C77: 387565 | D77: 111.9 | E77: 53.5 | F77: 22599008 | G77: 32543450 | H77: 102.7 | I77: 111.3
A78: 1020 | B78: 704623 | C78: 387565 | D78: 111.9 | E78: 53.5 | F78: 22599008 | G78: 32543450 | H78: 102.7 | I78: 111.3
A79: 10200 | B79: 704623 | C79: 387565 | D79: 111.9 | E79: 53.5 | F79: 21237103 | G79: 30616530
A80: 103 | B80: 2480585 | C80: 22470123 | D80: 102.9 | E80: 881.1 | F80: 67917572 | G80: 76864926 | H80: 91.9 | I80: 98.5
A81: 1031 | B81: 65985 | C81: 0 | E81: 82.9 | F81: 1071439 | G81: 2005235 | H81: 143.1 | I81: 60.8
A82: 10310 | B82: 65985 | C82: 0 | E82: 82.9 | F82: 1071313 | G82: 2004899
A83: 1032 | B83: 311435 | C83: 419723 | D83: 79.4 | E83: 131.2 | F83: 13353356 | G83: 17638065 | H83: 90.9 | I83: 103.8
A84: 10320 | B84: 311435 | C84: 419723 | D84: 79.4 | E84: 131.2 | F84: 13349985 | G84: 17630769
A85: 1039 | B85: 2103165 | C85: 21994200 | D85: 104.1 | E85: 1017.1 | F85: 53492776 | G85: 57221626 | H85: 91.7 | I85: 98.7
A86: 10390 | B86: 2103165 | C86: 21994200 | D86: 104.1 | E86: 1017.1 | F86: 53359938 | G86: 57095378
A87: 104 | B87: 24197009 | C87: 13346437 | D87: 137.7 | E87: 53.7 | F87: 249368910 | G87: 264399686 | H87: 125 | I87: 106.9
A88: 1041 | B88: 23961316 | C88: 12901560 | D88: 145.9 | E88: 52.4 | F88: 217394121 | G88: 233573691 | H88: 127.6 | I88: 109
A89: 10411 | B89: 16267371 | C89: 6231951 | D89: 121.9 | E89: 37.3 | F89: 145828166 | G89: 176768061
A90: 10412 | B90: 7693945 | C90: 6669607 | D90: 249.7 | E90: 84.3 | F90: 70843993 | G90: 56110558
A91: 1042 | B91: 235693 | C91: 444877 | D91: 20.7 | E91: 183.8 | F91: 31974789 | G91: 30825995 | H91: 109.1 | I91: 91.5
A92: 10420 | B92: 235693 | C92: 444877 | D92: 20.7 | E92: 183.8 | F92: 31971949 | G92: 30825995
A93: 105 | B93: 15399227 | C93: 23114960 | D93: 113 | E93: 145.1 | F93: 307756858 | G93: 389119269 | H93: 92.2 | I93: 100.6
A94: 1051 | B94: 8286445 | C94: 19137694 | D94: 76 | E94: 223.6 | F94: 280390711 | G94: 352136960 | H94: 91.7 | I94: 99
A95: 10511 | B95: 8286445 | C95: 18950229 | D95: 76 | E95: 221.4 | F95: 274025194 | G95: 344977164
A96: 10512 | C96: 187466 | F96: 1441957 | G96: 2200956
A97: 1052 | B97: 7112782 | C97: 3977265 | D97: 261.7 | E97: 53.9 | F97: 27366151 | G97: 36982317 | H97: 99.6 | I97: 120.1
A98: 10520 | B98: 7112782 | C98: 3977265 | D98: 261.7 | E98: 53.9 | F98: 27283596 | G98: 36863517
A99: 106 | B99: 6978728 | C99: 6638845 | D99: 237.9 | E99: 91.3 | F99: 361490307 | G99: 374559539 | H99: 110.2 | I99: 100.8
A100: 1061 | B100: 6825198 | C100: 5841613 | D100: 279.6 | E100: 82.3 | F100: 352223609 | G100: 358700985 | H100: 110.2 | I100: 100.1
A101: 10611 | B101: 6539182 | C101: 4216135 | D101: 396 | E101: 62 | F101: 300221819 | G101: 299856148
A102: 10612 | B102: 154165 | C102: 1402308 | D102: 25.2 | E102: 878.9 | F102: 43460470 | G102: 50067554
A103: 10613 | B103: 131852 | C103: 223170 | D103: 73.7 | E103: 162.5 | F103: 2625079 | G103: 3291708
A104: 1062 | B104: 153529 | C104: 797232 | D104: 31.2 | E104: 477.5 | F104: 9266698 | G104: 15858554 | H104: 109.1 | I104: 132.5
A105: 10620 | B105: 153529 | C105: 797232 | D105: 31.2 | E105: 477.5 | F105: 9266698 | G105: 15858554
A106: 107 | B106: 3392847 | C106: 4093946 | D106: 171.7 | E106: 116.8 | F106: 189283252 | G106: 214646420 | H106: 95.2 | I106: 98.7
A107: 1071 | B107: 1471228 | C107: 2637931 | D107: 113.2 | E107: 173.7 | F107: 107542922 | G107: 123355443 | H107: 91.5 | I107: 96.9
A108: 10710 | B108: 1471228 | C108: 2637931 | D108: 113.2 | E108: 173.7 | F108: 89424412 | G108: 103181083
A109: 1072 | B109: 1562815 | C109: 797563 | D109: 305.3 | E109: 49.6 | F109: 50263325 | G109: 59988237 | H109: 99.9 | I109: 102.6
A110: 10720 | B110: 1562815 | C110: 797563 | D110: 305.3 | E110: 49.6 | F110: 47562440 | G110: 56637077
A111: 1073 | B111: 358803 | C111: 658451 | D111: 219.4 | E111: 174.2 | F111: 31477068 | G111: 31302852 | H111: 105.8 | I111: 95.3
A112: 10730 | B112: 358803 | C112: 658451 | D112: 219.4 | E112: 174.2 | F112: 31250781 | G112: 31102900
A113: 108 | B113: 6039386 | C113: 2830965 | D113: 97.7 | E113: 45.4 | F113: 237227817 | G113: 273346486 | H113: 119.6 | I113: 101
A114: 1081 | B114: 364824 | C114: 1195553 | D114: 114.7 | E114: 318.3 | F114: 72087270 | G114: 63786997 | H114: 155.9 | I114: 79.1
A115: 10810 | B115: 364824 | C115: 1195553 | D115: 114.7 | E115: 318.3 | F115: 72083793 | G115: 63778165
A116: 1082 | B116: 3634399 | C116: 470462 | D116: 187.4 | E116: 12.5 | F116: 68666585 | G116: 94329192 | H116: 107.2 | I116: 119.2
A117: 10820 | B117: 3634399 | C117: 470462 | D117: 187.4 | E117: 12.5 | F117: 68293325 | G117: 93924112
A118: 1083 | B118: 1376365 | C118: 15775 | D118: 6965.8 | E118: 1.1 | F118: 21246764 | G118: 27017666 | H118: 95.7 | I118: 108.2
A119: 10830 | B119: 1376365 | C119: 15775 | D119: 6965.8 | E119: 1.1 | F119: 19876973 | G119: 24742010
A120: 1084 | B120: 7519 | C120: 468492 | D120: 73.6 | E120: 5942.8 | F120: 31994306 | G120: 41462806 | H120: 118.8 | I120: 96.4
A121: 10840 | B121: 7519 | C121: 468492 | D121: 73.6 | E121: 5942.8 | F121: 31975916 | G121: 41445326
A122: 1085 | B122: 453985 | C122: 543520 | D122: 12.6 | E122: 116.3 | F122: 34819955 | G122: 36396110 | H122: 148.3 | I122: 114.2
A123: 10850 | B123: 453985 | C123: 543520 | D123: 12.6 | E123: 116.3 | F123: 32281682 | G123: 32510862
A124: 1086 | F124: 518048 | G124: 15991 | H124: 17.2 | I124: 2.3
A125: 10860 | F125: 511807 | G125: 15255
A126: 1089 | B126: 202293 | C126: 137164 | D126: 70.1 | E126: 66 | F126: 7894876 | G126: 10337733 | H126: 88.6 | I126: 119.6
A127: 10891 | F127: 3951295 | G127: 5004519
A128: 10892 | B128: 70166 | C128: 83478 | D128: 47.2 | E128: 115.7 | F128: 1196767 | G128: 1434605
A129: 10899 | B129: 132128 | C129: 53686 | D129: 94.3 | E129: 39.5 | F129: 2424686 | G129: 3605104
A130: 109 | B130: 1943658 | C130: 2525627 | D130: 59.9 | E130: 125.1 | F130: 89136401 | G130: 95866175 | H130: 95.5 | I130: 110.7
A131: 1091 | B131: 1943658 | C131: 2525627 | D131: 121 | E131: 125.1 | F131: 89075023 | G131: 95581719 | H131: 95.5 | I131: 110.7
A132: 10910 | B132: 1943658 | C132: 2525627 | D132: 121 | E132: 125.1 | F132: 88443862 | G132: 94927623
A133: 1092 | F133: 61378 | G133: 284455 | H133: 254.5 | I133: 163.2
A134: 10920 | F134: 61378 | G134: 284455
A135: 11 | B135: 19189527 | C135: 21625808 | D135: 94.2 | E135: 107.6 | F135: 484144494 | G135: 635136836 | H135: 107.5 | I135: 105.4
A136: 110 | B136: 19189527 | C136: 21625808 | D136: 94.2 | E136: 107.6 | F136: 484144494 | G136: 635136836 | H136: 107.5 | I136: 105.4
A137: 1101 | B137: 827392 | C137: 4984027 | D137: 501.7 | E137: 575.1 | F137: 40082884 | G137: 59899698 | H137: 186.3 | I137: 114.9
A138: 11010 | B138: 827392 | C138: 4984027 | D138: 501.7 | E138: 575.1 | F138: 40082884 | G138: 59899698
A139: 1102 | B139: 153741 | C139: 668437 | D139: 112.9 | E139: 413.9 | F139: 5879336 | G139: 6979303 | H139: 140.1 | I139: 124.9
A140: 11021 | B140: 153741 | C140: 668437 | D140: 121 | E140: 413.9 | F140: 3042555 | G140: 3143856
A141: 11022 | F141: 2836782 | G141: 3835447
A142: 1103 | F142: 780733 | G142: 1357710 | H142: 113.7 | I142: 132.3
A143: 11030 | F143: 780733 | G143: 1357710
A144: 1104 | F144: 1502 | H144: 8.1
A145: 11040 | F145: 1502
A146: 1105 | B146: 9824717 | C146: 8058942 | D146: 110.3 | E146: 78.4 | F146: 91586011 | G146: 116602797 | H146: 96.4 | I146: 97.2
A147: 11050 | B147: 9824717 | C147: 8058942 | D147: 110.3 | E147: 78.4 | F147: 91537498 | G147: 116551869
A148: 1106 | B148: 140537 | C148: 793391 | D148: 91.8 | E148: 540.1 | F148: 13004491 | G148: 16969391 | H148: 99.5 | I148: 99.6
A149: 11060 | B149: 140537 | C149: 793391 | D149: 91.8 | E149: 540.1 | F149: 13004491 | G149: 16969391
A150: 1107 | B150: 8243140 | C150: 7121010 | D150: 74.9 | E150: 82.4 | F150: 332809539 | G150: 433327928 | H150: 110.3 | I150: 106.5
A151: 11070 | B151: 8243140 | C151: 7121010 | D151: 74.9 | E151: 82.4 | F151: 332459007 | G151: 432890496
A152: 12 | B152: 14622322 | C152: 6128833 | D152: 367.7 | E152: 39.6 | F152: 179529539 | G152: 184243312 | H152: 115.4 | I152: 97.6
A153: 120 | B153: 14622322 | C153: 6128833 | D153: 367.7 | E153: 39.6 | F153: 179529539 | G153: 184243312 | H153: 115.4 | I153: 97.6
A154: 1200 | B154: 14622322 | C154: 6128833 | D154: 367.7 | E154: 39.6 | F154: 179529539 | G154: 184243312 | H154: 115.4 | I154: 97.6
A155: 12001 | G155: 71592578
A156: 12002 | B156: 14622322 | C156: 6128833 | D156: 367.7 | E156: 39.6 | F156: 179529539 | G156: 112650734
A157: 13 | B157: 3448356 | C157: 8423861 | D157: 225.5 | E157: 239.9 | F157: 50533190 | G157: 69225866 | H157: 108.5 | I157: 135.9
A158: 131 | B158: 1252157 | C158: 2528366 | D158: 156.9 | E158: 198.3 | F158: 11612106 | G158: 22169231 | H158: 105.7 | I158: 294.9
A159: 1310 | B159: 1252157 | C159: 2528366 | D159: 156.9 | E159: 198.3 | F159: 11612106 | G159: 22169231 | H159: 105.7 | I159: 294.9
A160: 13101 | B160: 487967 | C160: 2528366 | E160: 509 | F160: 7017417 | G160: 18074056
A161: 13102 | B161: 764190 | D161: 95.8 | F161: 4522711 | G161: 4028005
A162: 13103 | F162: 20029 | G162: 46651
A163: 13105 | F163: 5249 | G163: 13759
A164: 13106 | F164: 0
A165: 13108
A166: 13-15 | F166: 97122693 | G166: 124317024 | H166: 107.6 | I166: 119.8
A167: 132 | B167: 215505 | C167: 31776 | D167: 81717.6 | E167: 14.5 | F167: 5486095 | G167: 7032618 | H167: 106.7 | I167: 129.2
A168: 1320 | B168: 215505 | C168: 31776 | D168: 81717.6 | E168: 14.5 | F168: 5486095 | G168: 7032618 | H168: 106.7 | I168: 129.2
A169: 13201 | B169: 146201 | C169: 31776 | D169: 55438.4 | E169: 21.4 | F169: 2246021 | G169: 3316479
A170: 13209 | B170: 69303 | F170: 3238829 | G170: 3714619
A171: 133 | B171: 19121 | D171: 5773.9 | F171: 20667 | G171: 34187 | H171: 244 | I171: 243.6
A172: 1330 | B172: 19121 | D172: 5773.9 | F172: 20667 | G172: 34187 | H172: 244 | I172: 243.6
A173: 13300 | B173: 19121 | D173: 5773.9 | F173: 15675 | G173: 29715
A174: 139 | B174: 1961572 | C174: 5863720 | D174: 268.6 | E174: 293.4 | F174: 33414307 | G174: 39989830 | H174: 139.1 | I174: 88.6
A175: 1391 | B175: 0 | C175: 0 | D175: 10.7 | E175: 141 | F175: 20367 | G175: 4272 | H175: 75.3 | I175: 100
A176: 13911 | B176: 0 | C176: 0 | D176: 10.7 | E176: 141
A177: 1392 | B177: 131463 | C177: 1218767 | D177: 35 | E177: 910.5 | F177: 25724358 | G177: 30520161 | H177: 126.7 | I177: 102
A178: 13920 | B178: 131463 | C178: 1218767 | D178: 35 | E178: 910.5 | F178: 23973331 | G178: 28760809
A179: 1393 | B179: 1781404 | C179: 2970600 | D179: 1939.4 | E179: 163.7 | F179: 4737802 | G179: 5529533 | H179: 97.3 | I179: 79.5
A180: 13930 | B180: 1781404 | C180: 2970600 | D180: 1939.4 | E180: 163.7 | F180: 4731350 | G180: 5528541
A181: 1394 | B181: 845 | C181: 18111 | D181: 57.1 | E181: 2093.3 | F181: 371893 | G181: 479472 | H181: 113.3 | I181: 74.9
A182: 13941 | B182: 845 | C182: 18111 | D182: 57.1 | E182: 2093.3 | F182: 342368 | G182: 418515
A183: 13942 | F183: 28274 | G183: 57621
A184: 1395 | B184: 38569 | C184: 1570886 | D184: 28.2 | E184: 4000.5 | F184: 697829 | G184: 1633272 | H184: 160.5 | I184: 206.7
A185: 13950 | B185: 38569 | C185: 1570886 | D185: 28.2 | E185: 4000.5 | F185: 496994 | G185: 1342832
A186: 1396 | B186: 8171 | C186: 83746 | D186: 8.1 | E186: 1006.5 | F186: 959158 | G186: 997462 | H186: 856.4 | I186: 19.9
A187: 13960 | B187: 8171 | C187: 83746 | D187: 8.1 | E187: 1006.5 | F187: 935956 | G187: 974070
A188: 1399 | F188: 902924 | G188: 825682 | H188: 103.3 | I188: 134.1
A189: 13991 | F189: 331755 | G189: 196227
A190: 13992 | F190: 238803 | G190: 176190
A191: 13999 | F191: 25134 | G191: 102873
A192: 14 | B192: 905362 | C192: 794953 | D192: 99.4 | E192: 84 | F192: 37525537 | G192: 44838356 | H192: 107.1 | I192: 99.8
A193: 141 | B193: 895507 | C193: 286633 | D193: 101.1 | E193: 30.6 | F193: 35155588 | G193: 41793606 | H193: 110.3 | I193: 99.4
A194: 1411 | F194: 16282 | G194: 33869 | H194: 128.7 | I194: 223.7
A195: 14110 | F195: 14427 | G195: 30589
A196: 1412 | B196: 860273 | C196: 242537 | D196: 180.8 | E196: 27 | F196: 21915251 | G196: 26991250 | H196: 115.7 | I196: 99.4
A197: 14120 | B197: 860273 | C197: 242537 | D197: 180.8 | E197: 27 | F197: 20331495 | G197: 25339114
A198: 1413 | B198: 30966 | C198: 31924 | D198: 71.3 | E198: 98.5 | F198: 5517939 | G198: 4167154 | H198: 112.6 | I198: 98.6
A199: 14130 | B199: 30966 | C199: 31924 | D199: 71.3 | E199: 98.5 | F199: 4714393 | G199: 3296138
A200: 1414 | F200: 1062511 | G200: 1129338 | H200: 155 | I200: 77.2
... 11095 more rows

Sheet стр4
B1: Объем промышленного производства по видам экономической деятельности в разрезе РК и регионов, млрд. тг.
B2: январь-август 2023 г. | C2: РК | D2: Акмолинская | E2: Актюбинская | F2: Алматинская | G2: Атырауская | H2: ЗКО | I2: Жамбылская | J2: Карагандинская | K2: Костанайская | L2: Кызылординская | M2: Мангыстауская | N2: Павлодарская | O2: СКО | P2: Туркестанская | Q2: ВКО | R2: Астана | S2: Алматы | T2: Шымкент | U2: Абай | V2: Жетісу | W2: Ұлытау
A3: BCDE | B3: Промышленность | C3: =VLOOKUP($A3,'к стр 4'!$A:$V,'к стр 4'!B$1,0)/1000000 -> 29952.32068 | D3: =VLOOKUP($A3,'к стр 4'!$A:$V,'к стр 4'!C$1,0)/1000000 -> 1122.729117 | E3: =VLOOKUP($A3,'к стр 4'!$A:$V,'к стр 4'!D$1,0)/1000000 -> 1610.513086 | F3: =VLOOKUP($A3,'к стр 4'!$A:$V,'к стр 4'!E$1,0)/1000000 -> 1160.806539 | G3: =VLOOKUP($A3,'к стр 4'!$A:$V,'к стр 4'!F$1,0)/1000000 -> 7085.246163 | H3: =VLOOKUP($A3,'к стр 4'!$A:$V,'к стр 4'!G$1,0)/1000000 -> 2258.245274 | I3: =VLOOKUP($A3,'к стр 4'!$A:$V,'к стр 4'!H$1,0)/1000000 -> 574.585322 | J3: =VLOOKUP($A3,'к стр 4'!$A:$V,'к стр 4'!I$1,0)/1000000 -> 2253.577942 | K3: =VLOOKUP($A3,'к стр 4'!$A:$V,'к стр 4'!J$1,0)/1000000 -> 1734.485603 | L3: =VLOOKUP($A3,'к стр 4'!$A:$V,'к стр 4'!K$1,0)/1000000 -> 666.649392 | M3: =VLOOKUP($A3,'к стр 4'!$A:$V,'к стр 4'!L$1,0)/1000000 -> 1811.256362 | N3: =VLOOKUP($A3,'к стр 4'!$A:$V,'к стр 4'!M$1,0)/1000000 -> 1987.119179 | O3: =VLOOKUP($A3,'к стр 4'!$A:$V,'к стр 4'!N$1,0)/1000000 -> 388.290016 | P3: =VLOOKUP($A3,'к стр 4'!$A:$V,'к стр 4'!O$1,0)/1000000 -> 600.831431 | Q3: =VLOOKUP($A3,'к стр 4'!$A:$V,'к стр 4'!P$1,0)/1000000 -> 1586.394314 | R3: =VLOOKUP($A3,'к стр 4'!$A:$V,'к стр 4'!Q$1,0)/1000000 -> 1266.748278 | S3: =VLOOKUP($A3,'к стр 4'!$A:$V,'к стр 4'!R$1,0)/1000000 -> 1303.787323 | T3: =VLOOKUP($A3,'к стр 4'!$A:$V,'к стр 4'!S$1,0)/1000000 -> 670.662338 | U3: =VLOOKUP($A3,'к стр 4'!$A:$V,'к стр 4'!T$1,0)/1000000 -> 946.417466 | V3: =VLOOKUP($A3,'к стр 4'!$A:$V,'к стр 4'!U$1,0)/1000000 -> 206.048588 | W3: =VLOOKUP($A3,'к стр 4'!$A:$V,'к стр 4'!V$1,0)/1000000 -> 717.926948
A4: C | B4: Обрабатывающая промышленность | C4: =VLOOKUP($A4,'к стр 4'!$A:$V,'к стр 4'!B$1,0)/1000000 -> 14042.93376 | D4: =VLOOKUP($A4,'к стр 4'!$A:$V,'к стр 4'!C$1,0)/1000000 -> 884.841305 | E4: =VLOOKUP($A4,'к стр 4'!$A:$V,'к стр 4'!D$1,0)/1000000 -> 652.344754 | F4: =VLOOKUP($A4,'к стр 4'!$A:$V,'к стр 4'!E$1,0)/1000000 -> 1049.661852 | G4: =VLOOKUP($A4,'к стр 4'!$A:$V,'к стр 4'!F$1,0)/1000000 -> 456.223159 | H4: =VLOOKUP($A4,'к стр 4'!$A:$V,'к стр 4'!G$1,0)/1000000 -> 188.625079 | I4: =VLOOKUP($A4,'к стр 4'!$A:$V,'к стр 4'!H$1,0)/1000000 -> 412.428043 | J4: =VLOOKUP($A4,'к стр 4'!$A:$V,'к стр 4'!I$1,0)/1000000 -> 1684.261482 | K4: =VLOOKUP($A4,'к стр 4'!$A:$V,'к стр 4'!J$1,0)/1000000 -> 1253.919714 | L4: =VLOOKUP($A4,'к стр 4'!$A:$V,'к стр 4'!K$1,0)/1000000 -> 192.531915 | M4: =VLOOKUP($A4,'к стр 4'!$A:$V,'к стр 4'!L$1,0)/1000000 -> 145.651161 | N4: =VLOOKUP($A4,'к стр 4'!$A:$V,'к стр 4'!M$1,0)/1000000 -> 1233.281866 | O4: =VLOOKUP($A4,'к стр 4'!$A:$V,'к стр 4'!N$1,0)/1000000 -> 323.583964 | P4: =VLOOKUP($A4,'к стр 4'!$A:$V,'к стр 4'!O$1,0)/1000000 -> 271.620881 | Q4: =VLOOKUP($A4,'к стр 4'!$A:$V,'к стр 4'!P$1,0)/1000000 -> 1405.261168 | R4: =VLOOKUP($A4,'к стр 4'!$A:$V,'к стр 4'!Q$1,0)/1000000 -> 1140.967255 | S4: =VLOOKUP($A4,'к стр 4'!$A:$V,'к стр 4'!R$1,0)/1000000 -> 1117.615056 | T4: =VLOOKUP($A4,'к стр 4'!$A:$V,'к стр 4'!S$1,0)/1000000 -> 587.688457 | U4: =VLOOKUP($A4,'к стр 4'!$A:$V,'к стр 4'!T$1,0)/1000000 -> 348.910948 | V4: =VLOOKUP($A4,'к стр 4'!$A:$V,'к стр 4'!U$1,0)/1000000 -> 164.950152 | W4: =VLOOKUP($A4,'к стр 4'!$A:$V,'к стр 4'!V$1,0)/1000000 -> 528.565545
A5: 10 | B5: Производство продуктов питания | C5: =VLOOKUP($A5,'к стр 4'!$A:$V,'к стр 4'!B$1,0)/1000000 -> 2066.428776 | D5: =VLOOKUP($A5,'к стр 4'!$A:$V,'к стр 4'!C$1,0)/1000000 -> 145.525833 | E5: =VLOOKUP($A5,'к стр 4'!$A:$V,'к стр 4'!D$1,0)/1000000 -> 55.939936 | F5: =VLOOKUP($A5,'к стр 4'!$A:$V,'к стр 4'!E$1,0)/1000000 -> 258.663357 | G5: =VLOOKUP($A5,'к стр 4'!$A:$V,'к стр 4'!F$1,0)/1000000 -> 10.880552 | H5: =VLOOKUP($A5,'к стр 4'!$A:$V,'к стр 4'!G$1,0)/1000000 -> 64.579369 | I5: =VLOOKUP($A5,'к стр 4'!$A:$V,'к стр 4'!H$1,0)/1000000 -> 82.769862 | J5: =VLOOKUP($A5,'к стр 4'!$A:$V,'к стр 4'!I$1,0)/1000000 -> 106.000381 | K5: =VLOOKUP($A5,'к стр 4'!$A:$V,'к стр 4'!J$1,0)/1000000 -> 277.448636 | L5: =VLOOKUP($A5,'к стр 4'!$A:$V,'к стр 4'!K$1,0)/1000000 -> 67.230299 | M5: =VLOOKUP($A5,'к стр 4'!$A:$V,'к стр 4'!L$1,0)/1000000 -> 6.739567 | N5: =VLOOKUP($A5,'к стр 4'!$A:$V,'к стр 4'!M$1,0)/1000000 -> 103.757499 | O5: =VLOOKUP($A5,'к стр 4'!$A:$V,'к стр 4'!N$1,0)/1000000 -> 167.664477 | P5: =VLOOKUP($A5,'к стр 4'!$A:$V,'к стр 4'!O$1,0)/1000000 -> 79.862101 | Q5: =VLOOKUP($A5,'к стр 4'!$A:$V,'к стр 4'!P$1,0)/1000000 -> 149.277188 | R5: =VLOOKUP($A5,'к стр 4'!$A:$V,'к стр 4'!Q$1,0)/1000000 -> 49.181553 | S5: =VLOOKUP($A5,'к стр 4'!$A:$V,'к стр 4'!R$1,0)/1000000 -> 209.159063 | T5: =VLOOKUP($A5,'к стр 4'!$A:$V,'к стр 4'!S$1,0)/1000000 -> 96.192293 | U5: =VLOOKUP($A5,'к стр 4'!$A:$V,'к стр 4'!T$1,0)/1000000 -> 74.919322 | V5: =VLOOKUP($A5,'к стр 4'!$A:$V,'к стр 4'!U$1,0)/1000000 -> 56.948762 | W5: =VLOOKUP($A5,'к стр 4'!$A:$V,'к стр 4'!V$1,0)/1000000 -> 3.688723
A6: 11 | B6: Производство напитков | C6: =VLOOKUP($A6,'к стр 4'!$A:$V,'к стр 4'!B$1,0)/1000000 -> 635.136836 | D6: =VLOOKUP($A6,'к стр 4'!$A:$V,'к стр 4'!C$1,0)/1000000 -> 15.163984 | E6: =VLOOKUP($A6,'к стр 4'!$A:$V,'к стр 4'!D$1,0)/1000000 -> 12.698101 | F6: =VLOOKUP($A6,'к стр 4'!$A:$V,'к стр 4'!E$1,0)/1000000 -> 304.959642 | G6: =VLOOKUP($A6,'к стр 4'!$A:$V,'к стр 4'!F$1,0)/1000000 -> 0.66653 | H6: =VLOOKUP($A6,'к стр 4'!$A:$V,'к стр 4'!G$1,0)/1000000 -> 1.947638 | I6: =VLOOKUP($A6,'к стр 4'!$A:$V,'к стр 4'!H$1,0)/1000000 -> 3.071061 | J6: =VLOOKUP($A6,'к стр 4'!$A:$V,'к стр 4'!I$1,0)/1000000 -> 29.092449 | K6: =VLOOKUP($A6,'к стр 4'!$A:$V,'к стр 4'!J$1,0)/1000000 -> 26.772621 | L6: =VLOOKUP($A6,'к стр 4'!$A:$V,'к стр 4'!K$1,0)/1000000 -> 0.068446 | M6: =VLOOKUP($A6,'к стр 4'!$A:$V,'к стр 4'!L$1,0)/1000000 -> 0.264062 | N6: =VLOOKUP($A6,'к стр 4'!$A:$V,'к стр 4'!M$1,0)/1000000 -> 3.001291 | O6: =VLOOKUP($A6,'к стр 4'!$A:$V,'к стр 4'!N$1,0)/1000000 -> 8.097186 | P6: =VLOOKUP($A6,'к стр 4'!$A:$V,'к стр 4'!O$1,0)/1000000 -> 11.023927 | Q6: =VLOOKUP($A6,'к стр 4'!$A:$V,'к стр 4'!P$1,0)/1000000 -> 0.632437 | R6: =VLOOKUP($A6,'к стр 4'!$A:$V,'к стр 4'!Q$1,0)/1000000 -> 109.778647 | S6: =VLOOKUP($A6,'к стр 4'!$A:$V,'к стр 4'!R$1,0)/1000000 -> 65.133231 | T6: =VLOOKUP($A6,'к стр 4'!$A:$V,'к стр 4'!S$1,0)/1000000 -> 25.519239 | U6: =VLOOKUP($A6,'к стр 4'!$A:$V,'к стр 4'!T$1,0)/1000000 -> 0.092805 | V6: =VLOOKUP($A6,'к стр 4'!$A:$V,'к стр 4'!U$1,0)/1000000 -> 17.006814 | W6: =VLOOKUP($A6,'к стр 4'!$A:$V,'к стр 4'!V$1,0)/1000000 -> 0.146724
A7: 12 | B7: Производство табачных изделий | C7: =VLOOKUP($A7,'к стр 4'!$A:$V,'к стр 4'!B$1,0)/1000000 -> 184.243312 | D7: =VLOOKUP($A7,'к стр 4'!$A:$V,'к стр 4'!C$1,0)/1000000 -> 0 | E7: =VLOOKUP($A7,'к стр 4'!$A:$V,'к стр 4'!D$1,0)/1000000 -> 0 | F7: =VLOOKUP($A7,'к стр 4'!$A:$V,'к стр 4'!E$1,0)/1000000 -> 184.184463 | G7: =VLOOKUP($A7,'к стр 4'!$A:$V,'к стр 4'!F$1,0)/1000000 -> 0 | H7: =VLOOKUP($A7,'к стр 4'!$A:$V,'к стр 4'!G$1,0)/1000000 -> 0 | I7: =VLOOKUP($A7,'к стр 4'!$A:$V,'к стр 4'!H$1,0)/1000000 -> 0 | J7: =VLOOKUP($A7,'к стр 4'!$A:$V,'к стр 4'!I$1,0)/1000000 -> 0 | K7: =VLOOKUP($A7,'к стр 4'!$A:$V,'к стр 4'!J$1,0)/1000000 -> 0 | L7: =VLOOKUP($A7,'к стр 4'!$A:$V,'к стр 4'!K$1,0)/1000000 -> 0 | M7: =VLOOKUP($A7,'к стр 4'!$A:$V,'к стр 4'!L$1,0)/1000000 -> 0 | N7: =VLOOKUP($A7,'к стр 4'!$A:$V,'к стр 4'!M$1,0)/1000000 -> 0 | O7: =VLOOKUP($A7,'к стр 4'!$A:$V,'к стр 4'!N$1,0)/1000000 -> 0 | P7: =VLOOKUP($A7,'к стр 4'!$A:$V,'к стр 4'!O$1,0)/1000000 -> 0 | Q7: =VLOOKUP($A7,'к стр 4'!$A:$V,'к стр 4'!P$1,0)/1000000 -> 0 | R7: =VLOOKUP($A7,'к стр 4'!$A:$V,'к стр 4'!Q$1,0)/1000000 -> 0 | S7: =VLOOKUP($A7,'к стр 4'!$A:$V,'к стр 4'!R$1,0)/1000000 -> 0.058849 | T7: =VLOOKUP($A7,'к стр 4'!$A:$V,'к стр 4'!S$1,0)/1000000 -> 0 | U7: =VLOOKUP($A7,'к стр 4'!$A:$V,'к стр 4'!T$1,0)/1000000 -> 0 | V7: =VLOOKUP($A7,'к стр 4'!$A:$V,'к стр 4'!U$1,0)/1000000 -> 0 | W7: =VLOOKUP($A7,'к стр 4'!$A:$V,'к стр 4'!V$1,0)/1000000 -> 0
A8: 13-15 | B8: Легкая промышленность | C8: =VLOOKUP($A8,'к стр 4'!$A:$V,'к стр 4'!B$1,0)/1000000 -> 124.317024 | D8: =VLOOKUP($A8,'к стр 4'!$A:$V,'к стр 4'!C$1,0)/1000000 -> 8.362646 | E8: =VLOOKUP($A8,'к стр 4'!$A:$V,'к стр 4'!D$1,0)/1000000 -> 5.780026 | F8: =VLOOKUP($A8,'к стр 4'!$A:$V,'к стр 4'!E$1,0)/1000000 -> 8.92937 | G8: =VLOOKUP($A8,'к стр 4'!$A:$V,'к стр 4'!F$1,0)/1000000 -> 4.849988 | H8: =VLOOKUP($A8,'к стр 4'!$A:$V,'к стр 4'!G$1,0)/1000000 -> 1.063381 | I8: =VLOOKUP($A8,'к стр 4'!$A:$V,'к стр 4'!H$1,0)/1000000 -> 6.210897 | J8: =VLOOKUP($A8,'к стр 4'!$A:$V,'к стр 4'!I$1,0)/1000000 -> 6.022162 | K8: =VLOOKUP($A8,'к стр 4'!$A:$V,'к стр 4'!J$1,0)/1000000 -> 1.488062 | L8: =VLOOKUP($A8,'к стр 4'!$A:$V,'к стр 4'!K$1,0)/1000000 -> 0.593582 | M8: =VLOOKUP($A8,'к стр 4'!$A:$V,'к стр 4'!L$1,0)/1000000 -> 1.755775 | N8: =VLOOKUP($A8,'к стр 4'!$A:$V,'к стр 4'!M$1,0)/1000000 -> 6.306355 | O8: =VLOOKUP($A8,'к стр 4'!$A:$V,'к стр 4'!N$1,0)/1000000 -> 5.240487 | P8: =VLOOKUP($A8,'к стр 4'!$A:$V,'к стр 4'!O$1,0)/1000000 -> 19.221372 | Q8: =VLOOKUP($A8,'к стр 4'!$A:$V,'к стр 4'!P$1,0)/1000000 -> 2.089498 | R8: =VLOOKUP($A8,'к стр 4'!$A:$V,'к стр 4'!Q$1,0)/1000000 -> 4.769608 | S8: =VLOOKUP($A8,'к стр 4'!$A:$V,'к стр 4'!R$1,0)/1000000 -> 9.924494 | T8: =VLOOKUP($A8,'к стр 4'!$A:$V,'к стр 4'!S$1,0)/1000000 -> 23.011086 | U8: =VLOOKUP($A8,'к стр 4'!$A:$V,'к стр 4'!T$1,0)/1000000 -> 2.809705 | V8: =VLOOKUP($A8,'к стр 4'!$A:$V,'к стр 4'!U$1,0)/1000000 -> 4.884574 | W8: =VLOOKUP($A8,'к стр 4'!$A:$V,'к стр 4'!V$1,0)/1000000 -> 1.003955
A9: 16 | B9: Производство деревянных и пробковых изделий, кроме мебели; | C9: =VLOOKUP($A9,'к стр 4'!$A:$V,'к стр 4'!B$1,0)/1000000 -> 38.221411 | D9: =VLOOKUP($A9,'к стр 4'!$A:$V,'к стр 4'!C$1,0)/1000000 -> 0.597354 | E9: =VLOOKUP($A9,'к стр 4'!$A:$V,'к стр 4'!D$1,0)/1000000 -> 0.465796 | F9: =VLOOKUP($A9,'к стр 4'!$A:$V,'к стр 4'!E$1,0)/1000000 -> 1.254834 | G9: =VLOOKUP($A9,'к стр 4'!$A:$V,'к стр 4'!F$1,0)/1000000 -> 0.890296 | H9: =VLOOKUP($A9,'к стр 4'!$A:$V,'к стр 4'!G$1,0)/1000000 -> 5.727294 | I9: =VLOOKUP($A9,'к стр 4'!$A:$V,'к стр 4'!H$1,0)/1000000 -> 0.192933 | J9: =VLOOKUP($A9,'к стр 4'!$A:$V,'к стр 4'!I$1,0)/1000000 -> 2.683437 | K9: =VLOOKUP($A9,'к стр 4'!$A:$V,'к стр 4'!J$1,0)/1000000 -> 1.40768 | L9: =VLOOKUP($A9,'к стр 4'!$A:$V,'к стр 4'!K$1,0)/1000000 -> 0.160837 | M9: =VLOOKUP($A9,'к стр 4'!$A:$V,'к стр 4'!L$1,0)/1000000 -> 0.011376 | N9: =VLOOKUP($A9,'к стр 4'!$A:$V,'к стр 4'!M$1,0)/1000000 -> 0.688669 | O9: =VLOOKUP($A9,'к стр 4'!$A:$V,'к стр 4'!N$1,0)/1000000 -> 3.587559 | P9: =VLOOKUP($A9,'к стр 4'!$A:$V,'к стр 4'!O$1,0)/1000000 -> 0.044968 | Q9: =VLOOKUP($A9,'к стр 4'!$A:$V,'к стр 4'!P$1,0)/1000000 -> 2.166664 | R9: =VLOOKUP($A9,'к стр 4'!$A:$V,'к стр 4'!Q$1,0)/1000000 -> 0.831406 | S9: =VLOOKUP($A9,'к стр 4'!$A:$V,'к стр 4'!R$1,0)/1000000 -> 4.194298 | T9: =VLOOKUP($A9,'к стр 4'!$A:$V,'к стр 4'!S$1,0)/1000000 -> 1.051453 | U9: =VLOOKUP($A9,'к стр 4'!$A:$V,'к стр 4'!T$1,0)/1000000 -> 12.075265 | V9: =VLOOKUP($A9,'к стр 4'!$A:$V,'к стр 4'!U$1,0)/1000000 -> 0.006096 | W9: =VLOOKUP($A9,'к стр 4'!$A:$V,'к стр 4'!V$1,0)/1000000 -> 0.183197
A10: 17 | B10: Производство бумаги и бумажной продукции | C10: =VLOOKUP($A10,'к стр 4'!$A:$V,'к стр 4'!B$1,0)/1000000 -> 90.437047 | D10: =VLOOKUP($A10,'к стр 4'!$A:$V,'к стр 4'!C$1,0)/1000000 -> 0.740066 | E10: =VLOOKUP($A10,'к стр 4'!$A:$V,'к стр 4'!D$1,0)/1000000 -> 0.987785 | F10: =VLOOKUP($A10,'к стр 4'!$A:$V,'к стр 4'!E$1,0)/1000000 -> 29.996773 | G10: =VLOOKUP($A10,'к стр 4'!$A:$V,'к стр 4'!F$1,0)/1000000 -> 0.077508 | H10: =VLOOKUP($A10,'к стр 4'!$A:$V,'к стр 4'!G$1,0)/1000000 -> 0.362094 | I10: =VLOOKUP($A10,'к стр 4'!$A:$V,'к стр 4'!H$1,0)/1000000 -> 0.490629 | J10: =VLOOKUP($A10,'к стр 4'!$A:$V,'к стр 4'!I$1,0)/1000000 -> 4.259377 | K10: =VLOOKUP($A10,'к стр 4'!$A:$V,'к стр 4'!J$1,0)/1000000 -> 0.737075 | L10: =VLOOKUP($A10,'к стр 4'!$A:$V,'к стр 4'!K$1,0)/1000000 -> 0.074215 | M10: =VLOOKUP($A10,'к стр 4'!$A:$V,'к стр 4'!L$1,0)/1000000 -> 0.009836 | N10: =VLOOKUP($A10,'к стр 4'!$A:$V,'к стр 4'!M$1,0)/1000000 -> 1.733834 | O10: =VLOOKUP($A10,'к стр 4'!$A:$V,'к стр 4'!N$1,0)/1000000 -> 0.55416 | P10: =VLOOKUP($A10,'к стр 4'!$A:$V,'к стр 4'!O$1,0)/1000000 -> 0.932894 | Q10: =VLOOKUP($A10,'к стр 4'!$A:$V,'к стр 4'!P$1,0)/1000000 -> 0.076521 | R10: =VLOOKUP($A10,'к стр 4'!$A:$V,'к стр 4'!Q$1,0)/1000000 -> 1.52136 | S10: =VLOOKUP($A10,'к стр 4'!$A:$V,'к стр 4'!R$1,0)/1000000 -> 27.153219 | T10: =VLOOKUP($A10,'к стр 4'!$A:$V,'к стр 4'!S$1,0)/1000000 -> 10.948116 | U10: =VLOOKUP($A10,'к стр 4'!$A:$V,'к стр 4'!T$1,0)/1000000 -> 9.564756 | V10: =VLOOKUP($A10,'к стр 4'!$A:$V,'к стр 4'!U$1,0)/1000000 -> 0.161105 | W10: =VLOOKUP($A10,'к стр 4'!$A:$V,'к стр 4'!V$1,0)/1000000 -> 0.055722
A11: 18 | B11: Полиграфическая деятельность и воспроизведение записанных носителей информации | C11: =VLOOKUP($A11,'к стр 4'!$A:$V,'к стр 4'!B$1,0)/1000000 -> 40.856054 | D11: =VLOOKUP($A11,'к стр 4'!$A:$V,'к стр 4'!C$1,0)/1000000 -> 0.186352 | E11: =VLOOKUP($A11,'к стр 4'!$A:$V,'к стр 4'!D$1,0)/1000000 -> 0.904907 | F11: =VLOOKUP($A11,'к стр 4'!$A:$V,'к стр 4'!E$1,0)/1000000 -> 0.846682 | G11: =VLOOKUP($A11,'к стр 4'!$A:$V,'к стр 4'!F$1,0)/1000000 -> 0.386666 | H11: =VLOOKUP($A11,'к стр 4'!$A:$V,'к стр 4'!G$1,0)/1000000 -> 0.506359 | I11: =VLOOKUP($A11,'к стр 4'!$A:$V,'к стр 4'!H$1,0)/1000000 -> 0.221622 | J11: =VLOOKUP($A11,'к стр 4'!$A:$V,'к стр 4'!I$1,0)/1000000 -> 1.372033 | K11: =VLOOKUP($A11,'к стр 4'!$A:$V,'к стр 4'!J$1,0)/1000000 -> 0.409651 | L11: =VLOOKUP($A11,'к стр 4'!$A:$V,'к стр 4'!K$1,0)/1000000 -> 0.194111 | M11: =VLOOKUP($A11,'к стр 4'!$A:$V,'к стр 4'!L$1,0)/1000000 -> 0.365798 | N11: =VLOOKUP($A11,'к стр 4'!$A:$V,'к стр 4'!M$1,0)/1000000 -> 0.750281 | O11: =VLOOKUP($A11,'к стр 4'!$A:$V,'к стр 4'!N$1,0)/1000000 -> 0.573479 | P11: =VLOOKUP($A11,'к стр 4'!$A:$V,'к стр 4'!O$1,0)/1000000 -> 0.064649 | Q11: =VLOOKUP($A11,'к стр 4'!$A:$V,'к стр 4'!P$1,0)/1000000 -> 0.631475 | R11: =VLOOKUP($A11,'к стр 4'!$A:$V,'к стр 4'!Q$1,0)/1000000 -> 2.864578 | S11: =VLOOKUP($A11,'к стр 4'!$A:$V,'к стр 4'!R$1,0)/1000000 -> 29.24661 | T11: =VLOOKUP($A11,'к стр 4'!$A:$V,'к стр 4'!S$1,0)/1000000 -> 0.981297 | U11: =VLOOKUP($A11,'к стр 4'!$A:$V,'к стр 4'!T$1,0)/1000000 -> 0.16393 | V11: =VLOOKUP($A11,'к стр 4'!$A:$V,'к стр 4'!U$1,0)/1000000 -> 0.185071 | W11: =VLOOKUP($A11,'к стр 4'!$A:$V,'к стр 4'!V$1,0)/1000000 -> 0.000502
A12: 19 | B12: Производство кокса и продуктов нефтепереработки | C12: =VLOOKUP($A12,'к стр 4'!$A:$V,'к стр 4'!B$1,0)/1000000 -> 753.236161 | D12: =VLOOKUP($A12,'к стр 4'!$A:$V,'к стр 4'!C$1,0)/1000000 -> 10.106101 | E12: =VLOOKUP($A12,'к стр 4'!$A:$V,'к стр 4'!D$1,0)/1000000 -> 22.861134 | F12: =VLOOKUP($A12,'к стр 4'!$A:$V,'к стр 4'!E$1,0)/1000000 -> 28.742706 | G12: =VLOOKUP($A12,'к стр 4'!$A:$V,'к стр 4'!F$1,0)/1000000 -> 336.887134 | H12: =VLOOKUP($A12,'к стр 4'!$A:$V,'к стр 4'!G$1,0)/1000000 -> 16.614206 | I12: =VLOOKUP($A12,'к стр 4'!$A:$V,'к стр 4'!H$1,0)/1000000 -> 9.473296 | J12: =VLOOKUP($A12,'к стр 4'!$A:$V,'к стр 4'!I$1,0)/1000000 -> 20.066862 | K12: =VLOOKUP($A12,'к стр 4'!$A:$V,'к стр 4'!J$1,0)/1000000 -> 0 | L12: =VLOOKUP($A12,'к стр 4'!$A:$V,'к стр 4'!K$1,0)/1000000 -> 5.511375 | M12: =VLOOKUP($A12,'к стр 4'!$A:$V,'к стр 4'!L$1,0)/1000000 -> 30.011043 | N12: =VLOOKUP($A12,'к стр 4'!$A:$V,'к стр 4'!M$1,0)/1000000 -> 108.63187 | O12: =VLOOKUP($A12,'к стр 4'!$A:$V,'к стр 4'!N$1,0)/1000000 -> 0 | P12: =VLOOKUP($A12,'к стр 4'!$A:$V,'к стр 4'!O$1,0)/1000000 -> 11.391319 | Q12: =VLOOKUP($A12,'к стр 4'!$A:$V,'к стр 4'!P$1,0)/1000000 -> 0 | R12: =VLOOKUP($A12,'к стр 4'!$A:$V,'к стр 4'!Q$1,0)/1000000 -> 0 | S12: =VLOOKUP($A12,'к стр 4'!$A:$V,'к стр 4'!R$1,0)/1000000 -> 0.979668 | T12: =VLOOKUP($A12,'к стр 4'!$A:$V,'к стр 4'!S$1,0)/1000000 -> 151.932739 | U12: =VLOOKUP($A12,'к стр 4'!$A:$V,'к стр 4'!T$1,0)/1000000 -> 0.026708 | V12: =VLOOKUP($A12,'к стр 4'!$A:$V,'к стр 4'!U$1,0)/1000000 -> 0 | W12: =VLOOKUP($A12,'к стр 4'!$A:$V,'к стр 4'!V$1,0)/1000000 -> 0
A13: 20 | B13: Производство продуктов химической промышленности | C13: =VLOOKUP($A13,'к стр 4'!$A:$V,'к стр 4'!B$1,0)/1000000 -> 645.179397 | D13: =VLOOKUP($A13,'к стр 4'!$A:$V,'к стр 4'!C$1,0)/1000000 -> 40.720474 | E13: =VLOOKUP($A13,'к стр 4'!$A:$V,'к стр 4'!D$1,0)/1000000 -> 51.821945 | F13: =VLOOKUP($A13,'к стр 4'!$A:$V,'к стр 4'!E$1,0)/1000000 -> 11.426251 | G13: =VLOOKUP($A13,'к стр 4'!$A:$V,'к стр 4'!F$1,0)/1000000 -> 18.681566 | H13: =VLOOKUP($A13,'к стр 4'!$A:$V,'к стр 4'!G$1,0)/1000000 -> 7.696673 | I13: =VLOOKUP($A13,'к стр 4'!$A:$V,'к стр 4'!H$1,0)/1000000 -> 199.049358 | J13: =VLOOKUP($A13,'к стр 4'!$A:$V,'к стр 4'!I$1,0)/1000000 -> 49.218696 | K13: =VLOOKUP($A13,'к стр 4'!$A:$V,'к стр 4'!J$1,0)/1000000 -> 5.667714 | L13: =VLOOKUP($A13,'к стр 4'!$A:$V,'к стр 4'!K$1,0)/1000000 -> 9.102907 | M13: =VLOOKUP($A13,'к стр 4'!$A:$V,'к стр 4'!L$1,0)/1000000 -> 27.580821 | N13: =VLOOKUP($A13,'к стр 4'!$A:$V,'к стр 4'!M$1,0)/1000000 -> 35.708335 | O13: =VLOOKUP($A13,'к стр 4'!$A:$V,'к стр 4'!N$1,0)/1000000 -> 7.744545 | P13: =VLOOKUP($A13,'к стр 4'!$A:$V,'к стр 4'!O$1,0)/1000000 -> 0.388651 | Q13: =VLOOKUP($A13,'к стр 4'!$A:$V,'к стр 4'!P$1,0)/1000000 -> 141.924223 | R13: =VLOOKUP($A13,'к стр 4'!$A:$V,'к стр 4'!Q$1,0)/1000000 -> 4.721647 | S13: =VLOOKUP($A13,'к стр 4'!$A:$V,'к стр 4'!R$1,0)/1000000 -> 10.580484 | T13: =VLOOKUP($A13,'к стр 4'!$A:$V,'к стр 4'!S$1,0)/1000000 -> 9.278565 | U13: =VLOOKUP($A13,'к стр 4'!$A:$V,'к стр 4'!T$1,0)/1000000 -> 2.36197 | V13: =VLOOKUP($A13,'к стр 4'!$A:$V,'к стр 4'!U$1,0)/1000000 -> 1.009411 | W13: =VLOOKUP($A13,'к стр 4'!$A:$V,'к стр 4'!V$1,0)/1000000 -> 10.495162
A14: 21 | B14: Производство основных фармацевтических продуктов и фармацевтических препаратов | C14: =VLOOKUP($A14,'к стр 4'!$A:$V,'к стр 4'!B$1,0)/1000000 -> 96.264156 | D14: =VLOOKUP($A14,'к стр 4'!$A:$V,'к стр 4'!C$1,0)/1000000 -> 0.239134 | E14: =VLOOKUP($A14,'к стр 4'!$A:$V,'к стр 4'!D$1,0)/1000000 -> 2.267547 | F14: =VLOOKUP($A14,'к стр 4'!$A:$V,'к стр 4'!E$1,0)/1000000 -> 27.826126 | G14: =VLOOKUP($A14,'к стр 4'!$A:$V,'к стр 4'!F$1,0)/1000000 -> 0 | H14: =VLOOKUP($A14,'к стр 4'!$A:$V,'к стр 4'!G$1,0)/1000000 -> 0 | I14: =VLOOKUP($A14,'к стр 4'!$A:$V,'к стр 4'!H$1,0)/1000000 -> 2.170322 | J14: =VLOOKUP($A14,'к стр 4'!$A:$V,'к стр 4'!I$1,0)/1000000 -> 13.794275 | K14: =VLOOKUP($A14,'к стр 4'!$A:$V,'к стр 4'!J$1,0)/1000000 -> 0.089798 | L14: =VLOOKUP($A14,'к стр 4'!$A:$V,'к стр 4'!K$1,0)/1000000 -> 0 | M14: =VLOOKUP($A14,'к стр 4'!$A:$V,'к стр 4'!L$1,0)/1000000 -> 0.169789 | N14: =VLOOKUP($A14,'к стр 4'!$A:$V,'к стр 4'!M$1,0)/1000000 -> 0.769123 | O14: =VLOOKUP($A14,'к стр 4'!$A:$V,'к стр 4'!N$1,0)/1000000 -> 0.019529 | P14: =VLOOKUP($A14,'к стр 4'!$A:$V,'к стр 4'!O$1,0)/1000000 -> 0.226978 | Q14: =VLOOKUP($A14,'к стр 4'!$A:$V,'к стр 4'!P$1,0)/1000000 -> 0.83156 | R14: =VLOOKUP($A14,'к стр 4'!$A:$V,'к стр 4'!Q$1,0)/1000000 -> 0.089024 | S14: =VLOOKUP($A14,'к стр 4'!$A:$V,'к стр 4'!R$1,0)/1000000 -> 17.337697 | T14: =VLOOKUP($A14,'к стр 4'!$A:$V,'к стр 4'!S$1,0)/1000000 -> 29.650806 | U14: =VLOOKUP($A14,'к стр 4'!$A:$V,'к стр 4'!T$1,0)/1000000 -> 0.607753 | V14: =VLOOKUP($A14,'к стр 4'!$A:$V,'к стр 4'!U$1,0)/1000000 -> 0.174694 | W14: =VLOOKUP($A14,'к стр 4'!$A:$V,'к стр 4'!V$1,0)/1000000 -> 0
A15: 22 | B15: Производство резиновых и пластмассовых изделий | C15: =VLOOKUP($A15,'к стр 4'!$A:$V,'к стр 4'!B$1,0)/1000000 -> 287.98081 | D15: =VLOOKUP($A15,'к стр 4'!$A:$V,'к стр 4'!C$1,0)/1000000 -> 10.415015 | E15: =VLOOKUP($A15,'к стр 4'!$A:$V,'к стр 4'!D$1,0)/1000000 -> 10.616458 | F15: =VLOOKUP($A15,'к стр 4'!$A:$V,'к стр 4'!E$1,0)/1000000 -> 63.995792 | G15: =VLOOKUP($A15,'к стр 4'!$A:$V,'к стр 4'!F$1,0)/1000000 -> 3.292151 | H15: =VLOOKUP($A15,'к стр 4'!$A:$V,'к стр 4'!G$1,0)/1000000 -> 6.559053 | I15: =VLOOKUP($A15,'к стр 4'!$A:$V,'к стр 4'!H$1,0)/1000000 -> 3.721546 | J15: =VLOOKUP($A15,'к стр 4'!$A:$V,'к стр 4'!I$1,0)/1000000 -> 22.96324 | K15: =VLOOKUP($A15,'к стр 4'!$A:$V,'к стр 4'!J$1,0)/1000000 -> 6.810005 | L15: =VLOOKUP($A15,'к стр 4'!$A:$V,'к стр 4'!K$1,0)/1000000 -> 5.473675 | M15: =VLOOKUP($A15,'к стр 4'!$A:$V,'к стр 4'!L$1,0)/1000000 -> 5.848926 | N15: =VLOOKUP($A15,'к стр 4'!$A:$V,'к стр 4'!M$1,0)/1000000 -> 9.571701 | O15: =VLOOKUP($A15,'к стр 4'!$A:$V,'к стр 4'!N$1,0)/1000000 -> 6.47533 | P15: =VLOOKUP($A15,'к стр 4'!$A:$V,'к стр 4'!O$1,0)/1000000 -> 6.357791 | Q15: =VLOOKUP($A15,'к стр 4'!$A:$V,'к стр 4'!P$1,0)/1000000 -> 13.375522 | R15: =VLOOKUP($A15,'к стр 4'!$A:$V,'к стр 4'!Q$1,0)/1000000 -> 56.130959 | S15: =VLOOKUP($A15,'к стр 4'!$A:$V,'к стр 4'!R$1,0)/1000000 -> 33.819822 | T15: =VLOOKUP($A15,'к стр 4'!$A:$V,'к стр 4'!S$1,0)/1000000 -> 16.40044 | U15: =VLOOKUP($A15,'к стр 4'!$A:$V,'к стр 4'!T$1,0)/1000000 -> 4.526035 | V15: =VLOOKUP($A15,'к стр 4'!$A:$V,'к стр 4'!U$1,0)/1000000 -> 0.304797 | W15: =VLOOKUP($A15,'к стр 4'!$A:$V,'к стр 4'!V$1,0)/1000000 -> 1.322552
A16: 23 | B16: Производство прочей не металлической минеральной продукции | C16: =VLOOKUP($A16,'к стр 4'!$A:$V,'к стр 4'!B$1,0)/1000000 -> 787.479323 | D16: =VLOOKUP($A16,'к стр 4'!$A:$V,'к стр 4'!C$1,0)/1000000 -> 38.447311 | E16: =VLOOKUP($A16,'к стр 4'!$A:$V,'к стр 4'!D$1,0)/1000000 -> 45.38 | F16: =VLOOKUP($A16,'к стр 4'!$A:$V,'к стр 4'!E$1,0)/1000000 -> 54.102977 | G16: =VLOOKUP($A16,'к стр 4'!$A:$V,'к стр 4'!F$1,0)/1000000 -> 17.198659 | H16: =VLOOKUP($A16,'к стр 4'!$A:$V,'к стр 4'!G$1,0)/1000000 -> 14.076447 | I16: =VLOOKUP($A16,'к стр 4'!$A:$V,'к стр 4'!H$1,0)/1000000 -> 35.702979 | J16: =VLOOKUP($A16,'к стр 4'!$A:$V,'к стр 4'!I$1,0)/1000000 -> 68.525505 | K16: =VLOOKUP($A16,'к стр 4'!$A:$V,'к стр 4'!J$1,0)/1000000 -> 27.860676 | L16: =VLOOKUP($A16,'к стр 4'!$A:$V,'к стр 4'!K$1,0)/1000000 -> 40.089761 | M16: =VLOOKUP($A16,'к стр 4'!$A:$V,'к стр 4'!L$1,0)/1000000 -> 20.981896 | N16: =VLOOKUP($A16,'к стр 4'!$A:$V,'к стр 4'!M$1,0)/1000000 -> 18.948604 | O16: =VLOOKUP($A16,'к стр 4'!$A:$V,'к стр 4'!N$1,0)/1000000 -> 6.986593 | P16: =VLOOKUP($A16,'к стр 4'!$A:$V,'к стр 4'!O$1,0)/1000000 -> 17.829385 | Q16: =VLOOKUP($A16,'к стр 4'!$A:$V,'к стр 4'!P$1,0)/1000000 -> 28.153701 | R16: =VLOOKUP($A16,'к стр 4'!$A:$V,'к стр 4'!Q$1,0)/1000000 -> 111.993937 | S16: =VLOOKUP($A16,'к стр 4'!$A:$V,'к стр 4'!R$1,0)/1000000 -> 62.950372 | T16: =VLOOKUP($A16,'к стр 4'!$A:$V,'к стр 4'!S$1,0)/1000000 -> 70.884983 | U16: =VLOOKUP($A16,'к стр 4'!$A:$V,'к стр 4'!T$1,0)/1000000 -> 75.687962 | V16: =VLOOKUP($A16,'к стр 4'!$A:$V,'к стр 4'!U$1,0)/1000000 -> 30.517152 | W16: =VLOOKUP($A16,'к стр 4'!$A:$V,'к стр 4'!V$1,0)/1000000 -> 1.160423
A17: 24 | B17: Металлургическое производство | C17: =VLOOKUP($A17,'к стр 4'!$A:$V,'к стр 4'!B$1,0)/1000000 -> 5361.878101 | D17: =VLOOKUP($A17,'к стр 4'!$A:$V,'к стр 4'!C$1,0)/1000000 -> 451.681223 | E17: =VLOOKUP($A17,'к стр 4'!$A:$V,'к стр 4'!D$1,0)/1000000 -> 368.139672 | F17: =VLOOKUP($A17,'к стр 4'!$A:$V,'к стр 4'!E$1,0)/1000000 -> 38.694816 | G17: =VLOOKUP($A17,'к стр 4'!$A:$V,'к стр 4'!F$1,0)/1000000 -> 2.61972 | H17: =VLOOKUP($A17,'к стр 4'!$A:$V,'к стр 4'!G$1,0)/1000000 -> 15.895472 | I17: =VLOOKUP($A17,'к стр 4'!$A:$V,'к стр 4'!H$1,0)/1000000 -> 48.41376 | J17: =VLOOKUP($A17,'к стр 4'!$A:$V,'к стр 4'!I$1,0)/1000000 -> 1132.461006 | K17: =VLOOKUP($A17,'к стр 4'!$A:$V,'к стр 4'!J$1,0)/1000000 -> 160.961719 | L17: =VLOOKUP($A17,'к стр 4'!$A:$V,'к стр 4'!K$1,0)/1000000 -> 42.246386 | M17: =VLOOKUP($A17,'к стр 4'!$A:$V,'к стр 4'!L$1,0)/1000000 -> 3.115233 | N17: =VLOOKUP($A17,'к стр 4'!$A:$V,'к стр 4'!M$1,0)/1000000 -> 776.740578 | O17: =VLOOKUP($A17,'к стр 4'!$A:$V,'к стр 4'!N$1,0)/1000000 -> 3.723952 | P17: =VLOOKUP($A17,'к стр 4'!$A:$V,'к стр 4'!O$1,0)/1000000 -> 88.741594 | Q17: =VLOOKUP($A17,'к стр 4'!$A:$V,'к стр 4'!P$1,0)/1000000 -> 991.316633 | R17: =VLOOKUP($A17,'к стр 4'!$A:$V,'к стр 4'!Q$1,0)/1000000 -> 544.672276 | S17: =VLOOKUP($A17,'к стр 4'!$A:$V,'к стр 4'!R$1,0)/1000000 -> 75.504948 | T17: =VLOOKUP($A17,'к стр 4'!$A:$V,'к стр 4'!S$1,0)/1000000 -> 60.392159 | U17: =VLOOKUP($A17,'к стр 4'!$A:$V,'к стр 4'!T$1,0)/1000000 -> 100.793955 | V17: =VLOOKUP($A17,'к стр 4'!$A:$V,'к стр 4'!U$1,0)/1000000 -> 4.141399 | W17: =VLOOKUP($A17,'к стр 4'!$A:$V,'к стр 4'!V$1,0)/1000000 -> 451.6216
A18: 25 | B18: Производство готовых металлических изделий, кроме машин и оборудования | C18: =VLOOKUP($A18,'к стр 4'!$A:$V,'к стр 4'!B$1,0)/1000000 -> 271.454737 | D18: =VLOOKUP($A18,'к стр 4'!$A:$V,'к стр 4'!C$1,0)/1000000 -> 1.545007 | E18: =VLOOKUP($A18,'к стр 4'!$A:$V,'к стр 4'!D$1,0)/1000000 -> 6.967926 | F18: =VLOOKUP($A18,'к стр 4'!$A:$V,'к стр 4'!E$1,0)/1000000 -> 12.321464 | G18: =VLOOKUP($A18,'к стр 4'!$A:$V,'к стр 4'!F$1,0)/1000000 -> 6.957165 | H18: =VLOOKUP($A18,'к стр 4'!$A:$V,'к стр 4'!G$1,0)/1000000 -> 6.349995 | I18: =VLOOKUP($A18,'к стр 4'!$A:$V,'к стр 4'!H$1,0)/1000000 -> 3.752917 | J18: =VLOOKUP($A18,'к стр 4'!$A:$V,'к стр 4'!I$1,0)/1000000 -> 38.290766 | K18: =VLOOKUP($A18,'к стр 4'!$A:$V,'к стр 4'!J$1,0)/1000000 -> 8.475048 | L18: =VLOOKUP($A18,'к стр 4'!$A:$V,'к стр 4'!K$1,0)/1000000 -> 0.155912 | M18: =VLOOKUP($A18,'к стр 4'!$A:$V,'к стр 4'!L$1,0)/1000000 -> 8.305521 | N18: =VLOOKUP($A18,'к стр 4'!$A:$V,'к стр 4'!M$1,0)/1000000 -> 42.854787 | O18: =VLOOKUP($A18,'к стр 4'!$A:$V,'к стр 4'!N$1,0)/1000000 -> 4.24231 | P18: =VLOOKUP($A18,'к стр 4'!$A:$V,'к стр 4'!O$1,0)/1000000 -> 2.220504 | Q18: =VLOOKUP($A18,'к стр 4'!$A:$V,'к стр 4'!P$1,0)/1000000 -> 19.356174 | R18: =VLOOKUP($A18,'к стр 4'!$A:$V,'к стр 4'!Q$1,0)/1000000 -> 22.974826 | S18: =VLOOKUP($A18,'к стр 4'!$A:$V,'к стр 4'!R$1,0)/1000000 -> 30.729373 | T18: =VLOOKUP($A18,'к стр 4'!$A:$V,'к стр 4'!S$1,0)/1000000 -> 38.386396 | U18: =VLOOKUP($A18,'к стр 4'!$A:$V,'к стр 4'!T$1,0)/1000000 -> 3.68085 | V18: =VLOOKUP($A18,'к стр 4'!$A:$V,'к стр 4'!U$1,0)/1000000 -> 13.302103 | W18: =VLOOKUP($A18,'к стр 4'!$A:$V,'к стр 4'!V$1,0)/1000000 -> 0.585694
A19: 26-30 | B19: Машиностроение | C19: =VLOOKUP($A19,'к стр 4'!$A:$V,'к стр 4'!B$1,0)/1000000 -> 2578.56199 | D19: =VLOOKUP($A19,'к стр 4'!$A:$V,'к стр 4'!C$1,0)/1000000 -> 158.279655 | E19: =VLOOKUP($A19,'к стр 4'!$A:$V,'к стр 4'!D$1,0)/1000000 -> 65.960494 | F19: =VLOOKUP($A19,'к стр 4'!$A:$V,'к стр 4'!E$1,0)/1000000 -> 16.118153 | G19: =VLOOKUP($A19,'к стр 4'!$A:$V,'к стр 4'!F$1,0)/1000000 -> 51.971001 | H19: =VLOOKUP($A19,'к стр 4'!$A:$V,'к стр 4'!G$1,0)/1000000 -> 42.981879 | I19: =VLOOKUP($A19,'к стр 4'!$A:$V,'к стр 4'!H$1,0)/1000000 -> 14.546898 | J19: =VLOOKUP($A19,'к стр 4'!$A:$V,'к стр 4'!I$1,0)/1000000 -> 184.036931 | K19: =VLOOKUP($A19,'к стр 4'!$A:$V,'к стр 4'!J$1,0)/1000000 -> 733.664867 | L19: =VLOOKUP($A19,'к стр 4'!$A:$V,'к стр 4'!K$1,0)/1000000 -> 17.432445 | M19: =VLOOKUP($A19,'к стр 4'!$A:$V,'к стр 4'!L$1,0)/1000000 -> 40.165249 | N19: =VLOOKUP($A19,'к стр 4'!$A:$V,'к стр 4'!M$1,0)/1000000 -> 120.638325 | O19: =VLOOKUP($A19,'к стр 4'!$A:$V,'к стр 4'!N$1,0)/1000000 -> 106.268796 | P19: =VLOOKUP($A19,'к стр 4'!$A:$V,'к стр 4'!O$1,0)/1000000 -> 29.246496 | Q19: =VLOOKUP($A19,'к стр 4'!$A:$V,'к стр 4'!P$1,0)/1000000 -> 47.36987 | R19: =VLOOKUP($A19,'к стр 4'!$A:$V,'к стр 4'!Q$1,0)/1000000 -> 228.189763 | S19: =VLOOKUP($A19,'к стр 4'!$A:$V,'к стр 4'!R$1,0)/1000000 -> 521.723742 | T19: =VLOOKUP($A19,'к стр 4'!$A:$V,'к стр 4'!S$1,0)/1000000 -> 45.442443 | U19: =VLOOKUP($A19,'к стр 4'!$A:$V,'к стр 4'!T$1,0)/1000000 -> 60.551809 | V19: =VLOOKUP($A19,'к стр 4'!$A:$V,'к стр 4'!U$1,0)/1000000 -> 35.833988 | W19: =VLOOKUP($A19,'к стр 4'!$A:$V,'к стр 4'!V$1,0)/1000000 -> 58.139186
A20: 31 | B20: Производство мебели | C20: =VLOOKUP($A20,'к стр 4'!$A:$V,'к стр 4'!B$1,0)/1000000 -> 51.68501 | D20: =VLOOKUP($A20,'к стр 4'!$A:$V,'к стр 4'!C$1,0)/1000000 -> 2.766314 | E20: =VLOOKUP($A20,'к стр 4'!$A:$V,'к стр 4'!D$1,0)/1000000 -> 1.49568 | F20: =VLOOKUP($A20,'к стр 4'!$A:$V,'к стр 4'!E$1,0)/1000000 -> 4.6684 | G20: =VLOOKUP($A20,'к стр 4'!$A:$V,'к стр 4'!F$1,0)/1000000 -> 0.595214 | H20: =VLOOKUP($A20,'к стр 4'!$A:$V,'к стр 4'!G$1,0)/1000000 -> 3.522019 | I20: =VLOOKUP($A20,'к стр 4'!$A:$V,'к стр 4'!H$1,0)/1000000 -> 1.331858 | J20: =VLOOKUP($A20,'к стр 4'!$A:$V,'к стр 4'!I$1,0)/1000000 -> 4.867703 | K20: =VLOOKUP($A20,'к стр 4'!$A:$V,'к стр 4'!J$1,0)/1000000 -> 1.65163 | L20: =VLOOKUP($A20,'к стр 4'!$A:$V,'к стр 4'!K$1,0)/1000000 -> 0.318762 | M20: =VLOOKUP($A20,'к стр 4'!$A:$V,'к стр 4'!L$1,0)/1000000 -> 0.325861 | N20: =VLOOKUP($A20,'к стр 4'!$A:$V,'к стр 4'!M$1,0)/1000000 -> 2.956425 | O20: =VLOOKUP($A20,'к стр 4'!$A:$V,'к стр 4'!N$1,0)/1000000 -> 2.006899 | P20: =VLOOKUP($A20,'к стр 4'!$A:$V,'к стр 4'!O$1,0)/1000000 -> 4.006269 | Q20: =VLOOKUP($A20,'к стр 4'!$A:$V,'к стр 4'!P$1,0)/1000000 -> 1.471711 | R20: =VLOOKUP($A20,'к стр 4'!$A:$V,'к стр 4'!Q$1,0)/1000000 -> 2.064634 | S20: =VLOOKUP($A20,'к стр 4'!$A:$V,'к стр 4'!R$1,0)/1000000 -> 13.728338 | T20: =VLOOKUP($A20,'к стр 4'!$A:$V,'к стр 4'!S$1,0)/1000000 -> 2.490631 | U20: =VLOOKUP($A20,'к стр 4'!$A:$V,'к стр 4'!T$1,0)/1000000 -> 0.808231 | V20: =VLOOKUP($A20,'к стр 4'!$A:$V,'к стр 4'!U$1,0)/1000000 -> 0.446534 | W20: =VLOOKUP($A20,'к стр 4'!$A:$V,'к стр 4'!V$1,0)/1000000 -> 0.161898
A21: 32 | B21: Производство прочих готовых изделий | C21: =VLOOKUP($A21,'к стр 4'!$A:$V,'к стр 4'!B$1,0)/1000000 -> 29.574156 | D21: =VLOOKUP($A21,'к стр 4'!$A:$V,'к стр 4'!C$1,0)/1000000 -> 0.064858 | E21: =VLOOKUP($A21,'к стр 4'!$A:$V,'к стр 4'!D$1,0)/1000000 -> 0.057386 | F21: =VLOOKUP($A21,'к стр 4'!$A:$V,'к стр 4'!E$1,0)/1000000 -> 2.930078 | G21: =VLOOKUP($A21,'к стр 4'!$A:$V,'к стр 4'!F$1,0)/1000000 -> 0.269042 | H21: =VLOOKUP($A21,'к стр 4'!$A:$V,'к стр 4'!G$1,0)/1000000 -> 0.743247 | I21: =VLOOKUP($A21,'к стр 4'!$A:$V,'к стр 4'!H$1,0)/1000000 -> 1.308113 | J21: =VLOOKUP($A21,'к стр 4'!$A:$V,'к стр 4'!I$1,0)/1000000 -> 0.606682 | K21: =VLOOKUP($A21,'к стр 4'!$A:$V,'к стр 4'!J$1,0)/1000000 -> 0.474573 | L21: =VLOOKUP($A21,'к стр 4'!$A:$V,'к стр 4'!K$1,0)/1000000 -> 3.87921 | M21: =VLOOKUP($A21,'к стр 4'!$A:$V,'к стр 4'!L$1,0)/1000000 -> 0.00044 | N21: =VLOOKUP($A21,'к стр 4'!$A:$V,'к стр 4'!M$1,0)/1000000 -> 0.224228 | O21: =VLOOKUP($A21,'к стр 4'!$A:$V,'к стр 4'!N$1,0)/1000000 -> 0.398684 | P21: =VLOOKUP($A21,'к стр 4'!$A:$V,'к стр 4'!O$1,0)/1000000 -> 0.062016 | Q21: =VLOOKUP($A21,'к стр 4'!$A:$V,'к стр 4'!P$1,0)/1000000 -> 6.588023 | R21: =VLOOKUP($A21,'к стр 4'!$A:$V,'к стр 4'!Q$1,0)/1000000 -> 1.183045 | S21: =VLOOKUP($A21,'к стр 4'!$A:$V,'к стр 4'!R$1,0)/1000000 -> 5.390866 | T21: =VLOOKUP($A21,'к стр 4'!$A:$V,'к стр 4'!S$1,0)/1000000 -> 5.125819 | U21: =VLOOKUP($A21,'к стр 4'!$A:$V,'к стр 4'!T$1,0)/1000000 -> 0.239923 | V21: =VLOOKUP($A21,'к стр 4'!$A:$V,'к стр 4'!U$1,0)/1000000 -> 0.027716 | W21: =VLOOKUP($A21,'к стр 4'!$A:$V,'к стр 4'!V$1,0)/1000000 -> 0.000208

Sheet к стр 4 (hidden)
B1: 2 | C1: 3 | D1: 4 | E1: 5 | F1: 6 | G1: 7 | H1: 8 | I1: 9 | J1: 10 | K1: 11 | L1: 12 | M1: 13 | N1: 14 | O1: 15 | P1: 16 | Q1: 17 | R1: 18 | S1: 19 | T1: 20 | U1: 21 | V1: 22
B2: РК | C2: Акмолинская | D2: Актюбинская | E2: Алматинская | F2: Атырауская | G2: ЗКО | H2: Жамбылская | I2: Карагандинская | J2: Костанайская | K2: Кызылординская | L2: Мангыстауская | M2: Павлодарская | N2: СКО | O2: Туркестанская | P2: ВКО | Q2: Астана | R2: Алматы | S2: Шымкент | T2: Абай | U2: Жетісу | V2: Ұлытау
A3: окэд | B3: 00 | C3: 11 | D3: 15 | E3: 19 | F3: 23 | G3: 27 | H3: 31 | I3: 35 | J3: 39 | K3: 43 | L3: 47 | M3: 55 | N3: 59 | O3: 61 | P3: 63 | Q3: 71 | R3: 75 | S3: 79 | T3: 10 | U3: 33 | V3: 62
A4: BCDE | B4: 29952320681 | C4: 1122729117 | D4: 1610513086 | E4: 1160806539 | F4: 7085246163 | G4: 2258245274 | H4: 574585322 | I4: 2253577942 | J4: 1734485603 | K4: 666649392 | L4: 1811256362 | M4: 1987119179 | N4: 388290016 | O4: 600831431 | P4: 1586394314 | Q4: 1266748278 | R4: 1303787323 | S4: 670662338 | T4: 946417466 | U4: 206048588 | V4: 717926948
A5: B | B5: 13958710572 | C5: 135085641 | D5: 848360602 | E5: 7227604 | F5: 6526076485 | G5: 2014959425 | H5: 69105961 | I5: 400410858 | J5: 431027009 | K5: 433262989 | L5: 1541987045 | M5: 442439251 | N5: 7287297 | O5: 279580532 | P5: 94300261 | S5: 823716 | T5: 566963588 | U5: 5511594 | V5: 154300713
A6: C | B6: 14042933756 | C6: 884841305 | D6: 652344754 | E6: 1049661852 | F6: 456223159 | G6: 188625079 | H6: 412428043 | I6: 1684261482 | J6: 1253919714 | K6: 192531915 | L6: 145651161 | M6: 1233281866 | N6: 323583964 | O6: 271620881 | P6: 1405261168 | Q6: 1140967255 | R6: 1117615056 | S6: 587688457 | T6: 348910948 | U6: 164950152 | V6: 528565545
A7: 05 | B7: 339487037 | C7: 1739308 | E7: 290317 | H7: 166246 | I7: 183094942 | M7: 131459203 | P7: 3515 | T7: 16694736 | V7: 6038769
A8: 051 | B8: 327164432 | C8: 1739308 | H8: 166246 | I8: 180363464 | M8: 122540740 | P8: 3515 | T8: 16312390 | V8: 6038769
A9: 0510 | B9: 327164432 | C9: 1739308 | H9: 166246 | I9: 180363464 | M9: 122540740 | P9: 3515 | T9: 16312390 | V9: 6038769
A10: 05101 | B10: 301758504 | C10: 1739308 | H10: 166246 | I10: 154957536 | M10: 122540740 | P10: 3515 | T10: 16312390 | V10: 6038769
A11: 05102 | B11: 5371621 | I11: 5371621
A12: 05103 | B12: 20034307 | I12: 20034307
A13: 052 | B13: 12322605 | E13: 290317 | I13: 2731479 | M13: 8918463 | T13: 382346
A14: 0520 | B14: 12322605 | E14: 290317 | I14: 2731479 | M14: 8918463 | T14: 382346
A15: 05201 | B15: 12322605 | E15: 290317 | I15: 2731479 | M15: 8918463 | T15: 382346
A16: 06 | B16: 10382175422 | D16: 374609656 | F16: 6318732087 | G16: 1954886412 | H16: 9910003 | K16: 353521025 | L16: 1366313858 | P16: 4202382
A17: 061 | B17: 10208635107 | D17: 349208030 | F17: 6257790524 | G17: 1902438829 | H17: 396759 | K17: 353024292 | L17: 1345733715 | P17: 42957
A18: 0610 | B18: 10208635107 | D18: 349208030 | F18: 6257790524 | G18: 1902438829 | H18: 396759 | K18: 353024292 | L18: 1345733715 | P18: 42957
A19: 06100 | B19: 10208635107 | D19: 349208030 | F19: 6257790524 | G19: 1902438829 | H19: 396759 | K19: 353024292 | L19: 1345733715 | P19: 42957
A20: 062 | B20: 347080630 | D20: 50803252 | F20: 121883126 | G20: 104895166 | H20: 19026488 | K20: 993464 | L20: 41160284 | P20: 8318850
A21: 06201 | B21: 173540315 | D21: 25401626 | F21: 60941563 | G21: 52447583 | H21: 9513244 | K21: 496732 | L21: 20580142 | P21: 4159425
A22: 07 | B22: 2384595168 | C22: 71212232 | D22: 392677332 | H22: 2924546 | I22: 180061319 | J22: 394840207 | K22: 40179070 | M22: 296603612 | N22: 4030181 | O22: 266591118 | P22: 79493783 | T22: 526677430 | V22: 129304338
A23: 071 | B23: 345172445 | C23: 7483699 | D23: 7130187 | I23: 18216908 | J23: 303260967 | O23: 91087 | P23: 90149 | V23: 8899447
A24: 0710 | B24: 345172445 | C24: 7483699 | D24: 7130187 | I24: 18216908 | J24: 303260967 | O24: 91087 | P24: 90149 | V24: 8899447
A25: 07101 | B25: 10044574 | I25: 1443944 | V25: 8600630
A26: 07102 | B26: 209960475 | C26: 7483699 | D26: 7130187 | I26: 267409 | J26: 194612306 | O26: 91087 | P26: 76969 | V26: 298817
A27: 07103 | B27: 125167396 | I27: 16505555 | J27: 108648661 | P27: 13180
A28: 072 | B28: 2039422724 | C28: 63728533 | D28: 385547145 | H28: 2924546 | I28: 161844410 | J28: 91579240 | K28: 40179070 | M28: 296603612 | N28: 4030181 | O28: 266500031 | P28: 79403634 | T28: 526677430 | V28: 120404891
A29: 0721 | B29: 307570083 | C29: 7466322 | K29: 37944518 | O29: 262159243
A30: 07210 | B30: 307570083 | C30: 7466322 | K30: 37944518 | O30: 262159243
A31: 0729 | B31: 1731852641 | C31: 56262211 | D31: 385547145 | H31: 2924546 | I31: 161844410 | J31: 91579240 | K31: 2234552 | M31: 296603612 | N31: 4030181 | O31: 4340788 | P31: 79403634 | T31: 526677430 | V31: 120404891
A32: 07291 | B32: 38534159 | J32: 38534159
A33: 07292 | B33: 1069111932 | C33: 6734298 | D33: 192697440 | I33: 83034455 | J33: 27996361 | M33: 291678705 | P33: 65963382 | T33: 342936230 | V33: 58071060
A34: 07293 | B34: 33293769 | I34: 33293769
A35: 07295 | B35: 6290035 | N35: 4030181 | P35: 2259854
A36: 07298 | B36: 317949965 | C36: 49527913 | D36: 6204911 | I36: 38446997 | J36: 25048720 | K36: 2234552 | M36: 237793 | P36: 11180398 | T36: 183741200 | V36: 1327481
A37: 07299 | B37: 266672780 | D37: 186644794 | H37: 2924546 | I37: 7069189 | M37: 4687113 | O37: 4340788 | V37: 61006350
A38: 08 | B38: 259956666 | C38: 12974226 | D38: 18282456 | E38: 6319843 | F38: 91214897 | G38: 701013 | H38: 53743107 | I38: 10349158 | J38: 26076023 | K38: 6344180 | L38: 3027516 | M38: 7977215 | N38: 2986917 | O38: 5136445 | P38: 3341707 | S38: 813124 | T38: 3369414 | U38: 3690030 | V38: 3609395
A39: 081 | B39: 86575907 | C39: 12974226 | D39: 18015709 | E39: 6319843 | F39: 590307 | G39: 660582 | H39: 6183010 | I39: 9897517 | J39: 3528079 | K39: 2352300 | L39: 3023893 | M39: 5264555 | N39: 2986917 | O39: 4686141 | P39: 3341707 | S39: 813124 | T39: 1854938 | U39: 3183346 | V39: 899711
A40: 0811 | B40: 23870833 | C40: 1451822 | D40: 1897054 | E40: 1181841 | F40: 32666 | H40: 4895853 | I40: 6415172 | J40: 526792 | K40: 39233 | L40: 1594080 | M40: 1124744 | N40: 66369 | O40: 2761639 | P40: 851815 | T40: 690057 | U40: 341696
A41: 08111 | B41: 8704680 | C41: 755614 | D41: 1821264 | E41: 443617 | H41: 548924 | I41: 2588172 | J41: 103740 | L41: 1554424 | M41: 298790 | N41: 66369 | O41: 7817 | P41: 2967 | T41: 281220 | U41: 231763
A42: 08112 | B42: 15102801 | C42: 696208 | D42: 75790 | E42: 738224 | F42: 32666 | H42: 4323233 | I42: 3827001 | J42: 423052 | K42: 39233 | M42: 825954 | O42: 2753822 | P42: 848848 | T42: 408837 | U42: 109933
A43: 0812 | B43: 62705073 | C43: 11522404 | D43: 16118655 | E43: 5138002 | F43: 557641 | G43: 660582 | H43: 1287157 | I43: 3482345 | J43: 3001287 | K43: 2313067 | L43: 1429814 | M43: 4139811 | N43: 2920548 | O43: 1924502 | P43: 2489892 | S43: 813124 | T43: 1164881 | U43: 2841650 | V43: 899711
A44: 08121 | B44: 59558213 | C44: 11173311 | D44: 16070605 | E44: 5120801 | F44: 164307 | G44: 517126 | H44: 1209989 | I44: 3285886 | J44: 2914014 | K44: 2028788 | L44: 1421678 | M44: 3663645 | N44: 2909467 | O44: 1707643 | P44: 1741872 | S44: 802416 | T44: 1154892 | U44: 2772062 | V44: 899711
A45: 08122 | B45: 2186476 | C45: 349094 | D45: 48050 | E45: 17202 | F45: 376797 | G45: 126600 | H45: 872 | I45: 142699 | J45: 83473 | K45: 283534 | M45: 12342 | N45: 5081 | O45: 34147 | P45: 679061 | S45: 9748 | T45: 9989 | U45: 7788
A46: 089 | B46: 173380760 | D46: 266747 | F46: 90624590 | G46: 40430 | H46: 47560097 | I46: 451641 | J46: 22547944 | K46: 3991880 | L46: 3623 | M46: 2712660 | O46: 450304 | T46: 1514476 | U46: 506684 | V46: 2709683
A47: 0891 | B47: 142355254 | D47: 266747 | F47: 90066327 | H47: 47541571 | M47: 88887 | O47: 355359 | T47: 1326680 | V47: 2709683
A48: 08910 | B48: 142355254 | D48: 266747 | F48: 90066327 | H48: 47541571 | M48: 88887 | O48: 355359 | T48: 1326680 | V48: 2709683
A49: 0893 | B49: 7931963 | F49: 558263 | G49: 40430 | H49: 18526 | I49: 451641 | J49: 40688 | K49: 3991880 | L49: 3623 | M49: 2623773 | O49: 11100 | T49: 187796 | U49: 4242
A50: 08930 | B50: 7919363 | F50: 558263 | G50: 40430 | H50: 5926 | I50: 451641 | J50: 40688 | K50: 3991880 | L50: 3623 | M50: 2623773 | O50: 11100 | T50: 187796 | U50: 4242
A51: 0899 | B51: 23093542 | J51: 22507256 | O51: 83845 | U51: 502442
A52: 08991 | B52: 22625512 | J52: 22507256 | U52: 118256
A53: 08992 | B53: 450680 | O53: 83845 | U53: 366836
A54: 08994 | B54: 17350 | U54: 17350
A55: 09 | B55: 592496278 | C55: 49159875 | D55: 62791158 | E55: 617444 | F55: 116129500 | G55: 59372001 | H55: 2362060 | I55: 26905439 | J55: 10110779 | K55: 33218714 | L55: 172645671 | M55: 6399221 | N55: 270198 | O55: 7852969 | P55: 7258874 | S55: 10592 | T55: 20222008 | U55: 1821564 | V55: 15348211
A56: 091 | B56: 420264438 | D56: 44388699 | F56: 116125549 | G56: 59372001 | H56: 780 | J56: 2603 | K56: 26058277 | L56: 172618288 | M56: 33750 | O56: 1624431 | P56: 17366 | S56: 10592 | V56: 12104
A57: 0910 | B57: 420264438 | D57: 44388699 | F57: 116125549 | G57: 59372001 | H57: 780 | J57: 2603 | K57: 26058277 | L57: 172618288 | M57: 33750 | O57: 1624431 | P57: 17366 | S57: 10592 | V57: 12104
A58: 09100 | B58: 420226966 | D58: 44373923 | F58: 116125549 | G58: 59372001 | H58: 780 | J58: 2603 | K58: 26058277 | L58: 172618288 | M58: 33750 | O58: 1624431 | P58: 17366
A59: 099 | B59: 172231840 | C59: 49159875 | D59: 18402459 | E59: 617444 | F59: 3952 | H59: 2361280 | I59: 26905439 | J59: 10108176 | K59: 7160437 | L59: 27383 | M59: 6365471 | N59: 270198 | O59: 6228538 | P59: 7241508 | T59: 20222008 | U59: 1821564 | V59: 15336107
A60: 0990 | B60: 172231840 | C60: 49159875 | D60: 18402459 | E60: 617444 | F60: 3952 | H60: 2361280 | I60: 26905439 | J60: 10108176 | K60: 7160437 | L60: 27383 | M60: 6365471 | N60: 270198 | O60: 6228538 | P60: 7241508 | T60: 20222008 | U60: 1821564 | V60: 15336107
A61: 09900 | B61: 172122656 | C61: 49135275 | D61: 18402459 | E61: 617444 | F61: 3952 | H61: 2361280 | I61: 26905439 | J61: 10100584 | K61: 7160437 | L61: 27383 | M61: 6351103 | N61: 265534 | O61: 6228538 | P61: 7183548 | T61: 20222008 | U61: 1821564 | V61: 15336107
A62: 10 | B62: 2066428776 | C62: 145525833 | D62: 55939936 | E62: 258663357 | F62: 10880552 | G62: 64579369 | H62: 82769862 | I62: 106000381 | J62: 277448636 | K62: 67230299 | L62: 6739567 | M62: 103757499 | N62: 167664477 | O62: 79862101 | P62: 149277188 | Q62: 49181553 | R62: 209159063 | S62: 96192293 | T62: 74919322 | U62: 56948762 | V62: 3688723
A63: 101 | B63: 345082905 | C63: 70161971 | D63: 6324371 | E63: 58555393 | F63: 225695 | G63: 24025538 | H63: 15553786 | I63: 12654856 | J63: 33979308 | K63: 2644464 | L63: 1133113 | M63: 21435815 | N63: 12580576 | O63: 10648071 | P63: 38422224 | Q63: 9079782 | R63: 13131466 | S63: 1632469 | T63: 10819295 | U63: 1718658 | V63: 356056
A64: 1011 | B64: 75660077 | C64: 9764388 | D64: 1666373 | E64: 2299102 | F64: 49802 | G64: 2681940 | H64: 2303831 | I64: 3826666 | J64: 21300508 | K64: 2234265 | L64: 284900 | M64: 9680639 | N64: 9032436 | O64: 2242811 | P64: 1145883 | Q64: 3078026 | R64: 2043175 | S64: 490756 | T64: 383844 | U64: 1150732
A65: 10110 | B65: 72469565 | C65: 9463252 | D65: 675949 | E65: 2292158 | F65: 49538 | G65: 2398604 | H65: 2301399 | I65: 3787570 | J65: 21235996 | K65: 1078225 | L65: 237268 | M65: 9633207 | N65: 8961372 | O65: 2183435 | P65: 1124419 | Q65: 3078026 | R65: 2043175 | S65: 442980 | T65: 343100 | U65: 1139892
A66: 1012 | B66: 176265315 | C66: 49901067 | D66: 11037 | E66: 49611815 | F66: 6904 | G66: 3197356 | H66: 6360255 | I66: 3982272 | J66: 6932820 | K66: 96634 | L66: 211150 | M66: 1492022 | N66: 1493080 | O66: 1786877 | P66: 33464216 | Q66: 3448461 | R66: 3910050 | S66: 663453 | T66: 9328002 | U66: 367844
A67: 10120 | B67: 176143003 | C67: 49901067 | D67: 11037 | E67: 49611815 | F67: 6904 | G67: 3197356 | H67: 6360255 | I67: 3966640 | J67: 6826140 | K67: 96634 | L67: 211150 | M67: 1492022 | N67: 1493080 | O67: 1786877 | P67: 33464216 | Q67: 3448461 | R67: 3910050 | S67: 663453 | T67: 9328002 | U67: 367844
A68: 1013 | B68: 93157537 | C68: 10496515 | D68: 4646977 | E68: 6644475 | F68: 168989 | G68: 18146242 | H68: 6889709 | I68: 4845909 | J68: 5745988 | K68: 313565 | L68: 637063 | M68: 10263154 | N68: 2055060 | O68: 6618383 | P68: 3812125 | Q68: 2553295 | R68: 7178241 | S68: 478261 | T68: 1107449 | U68: 200081 | V68: 356056
A69: 10130 | B69: 84322273 | C69: 10328707 | D69: 4334641 | E69: 6596835 | F69: 15037 | G69: 18011802 | H69: 1584885 | I69: 4588437 | J69: 5365812 | K69: 278853 | L69: 430079 | M69: 10024698 | N69: 1663236 | O69: 6618279 | P69: 3794797 | Q69: 1973559 | R69: 7122225 | S69: 394189 | T69: 1000889 | U69: 195313
A70: 102 | B70: 32543450 | C70: 15848 | D70: 314313 | E70: 1230786 | F70: 2095711 | G70: 7825502 | H70: 154372 | I70: 1549114 | J70: 183433 | K70: 2406509 | M70: 580196 | N70: 42451 | O70: 6697136 | P70: 6097145 | Q70: 272270 | R70: 2056047 | S70: 24141 | T70: 75885 | U70: 922592
A71: 1020 | B71: 32543450 | C71: 15848 | D71: 314313 | E71: 1230786 | F71: 2095711 | G71: 7825502 | H71: 154372 | I71: 1549114 | J71: 183433 | K71: 2406509 | M71: 580196 | N71: 42451 | O71: 6697136 | P71: 6097145 | Q71: 272270 | R71: 2056047 | S71: 24141 | T71: 75885 | U71: 922592
A72: 10200 | B72: 30616530 | D72: 314313 | E72: 1228258 | F72: 2095711 | G72: 7824238 | H72: 154372 | I72: 1516746 | J72: 145809 | K72: 2005037 | M72: 300388 | N72: 1795 | O72: 5701960 | P72: 5989513 | Q72: 272270 | R72: 2053007 | S72: 24141 | T72: 66381 | U72: 922592
A73: 103 | B73: 76864926 | C73: 2655326 | D73: 504697 | E73: 17833590 | F73: 204615 | G73: 1637155 | H73: 2808385 | I73: 3087457 | J73: 6571090 | K73: 487245 | L73: 30226 | M73: 7918505 | N73: 4778635 | O73: 2564814 | P73: 3675859 | Q73: 9576465 | R73: 8169785 | S73: 670646 | T73: 1539490 | U73: 1746426 | V73: 404514
A74: 1031 | B74: 2005235 | C74: 3900 | E74: 1313928 | O74: 27 | Q74: 3413 | R74: 428607 | S74: 255024 | T74: 336
A75: 10310 | B75: 2004899 | C75: 3900 | E75: 1313928 | O75: 27 | Q75: 3413 | R75: 428607 | S75: 255024
A76: 1032 | B76: 17638065 | C76: 49 | E76: 5350551 | G76: 907 | J76: 2012013 | M76: 7158 | O76: 262843 | Q76: 9148540 | R76: 764805 | S76: 8757 | U76: 149 | V76: 82293
A77: 10320 | B77: 17630769 | C77: 49 | E77: 5350551 | G77: 907 | J77: 2012013 | M77: 1470 | O77: 262843 | Q77: 9148540 | R77: 764797 | S77: 8757 | U77: 149 | V77: 80693
A78: 1039 | B78: 57221626 | C78: 2651377 | D78: 504697 | E78: 11169111 | F78: 204615 | G78: 1636248 | H78: 2808385 | I78: 3087457 | J78: 4559077 | K78: 487245 | L78: 30226 | M78: 7911339 | N78: 4778635 | O78: 2301944 | P78: 3675859 | Q78: 424511 | R78: 6976381 | S78: 406865 | T78: 1539154 | U78: 1746277 | V78: 322221
A79: 10390 | B79: 57095378 | C79: 2651377 | D79: 498425 | E79: 11121071 | F79: 204615 | G79: 1635768 | H79: 2808385 | I79: 3078529 | J79: 4554965 | K79: 486621 | L79: 30226 | M79: 7910539 | N79: 4765523 | O79: 2295912 | P79: 3659995 | Q79: 423527 | R79: 6956309 | S79: 405937 | T79: 1539154 | U79: 1746277 | V79: 322221
A80: 104 | B80: 264399686 | C80: 18520044 | D80: 5100155 | E80: 3416061 | G80: 3262786 | H80: 523939 | I80: 28973280 | J80: 8904314 | K80: 632 | M80: 969688 | N80: 10756431 | O80: 1575249 | P80: 67684743 | R80: 37795891 | S80: 18987904 | T80: 44292028 | U80: 13636541
A81: 1041 | B81: 233573691 | C81: 18513487 | D81: 5100155 | E81: 2870221 | G81: 3262062 | H81: 523939 | I81: 115784 | J81: 8904314 | K81: 632 | M81: 969688 | N81: 10755280 | O81: 1575249 | P81: 67684743 | R81: 36381664 | S81: 18987904 | T81: 44292028 | U81: 13636541
A82: 10411 | B82: 176768061 | C82: 18284326 | D82: 3134446 | E82: 2654939 | G82: 3262062 | H82: 457403 | I82: 115784 | J82: 8617538 | M82: 733365 | N82: 10709229 | O82: 708214 | P82: 40800300 | R82: 27035344 | S82: 3251564 | T82: 44292028 | U82: 12711519
A83: 10412 | B83: 56110558 | C83: 192441 | D83: 1965709 | E83: 211738 | H83: 26720 | J83: 223328 | M83: 13563 | N83: 2267 | O83: 650506 | P83: 26819363 | R83: 9346320 | S83: 15736341 | U83: 922262
A84: 1042 | B84: 30825995 | C84: 6557 | E84: 545840 | G84: 724 | I84: 28857496 | N84: 1151 | R84: 1414227
A85: 10420 | B85: 30825995 | C85: 6557 | E85: 545840 | G85: 724 | I85: 28857496 | N85: 1151 | R85: 1414227
A86: 105 | B86: 389119269 | C86: 22402248 | D86: 18801470 | E86: 65822892 | F86: 388352 | G86: 5063038 | H86: 10177004 | I86: 13857439 | J86: 56370491 | K86: 3888561 | L86: 2520014 | M86: 37760395 | N86: 61314041 | O86: 32007954 | P86: 17614482 | Q86: 566367 | R86: 19369889 | S86: 7078592 | T86: 2225950 | U86: 11500455 | V86: 389634
A87: 1051 | B87: 352136960 | C87: 20840966 | D87: 16931085 | E87: 49306323 | F87: 388352 | G87: 5057070 | H87: 10176338 | I87: 12164517 | J87: 52613394 | K87: 3883281 | L87: 2520014 | M87: 37755851 | N87: 61304673 | O87: 23945931 | P87: 16897868 | Q87: 210336 | R87: 17132691 | S87: 6982947 | T87: 2138736 | U87: 11496953 | V87: 389634
A88: 10511 | B88: 344977164 | C88: 20653870 | D88: 16859661 | E88: 49195939 | F88: 130240 | G88: 4553898 | H88: 9536538 | I88: 12097413 | J88: 50442474 | K88: 3594969 | L88: 2514550 | M88: 37552683 | N88: 60561433 | O88: 23263707 | P88: 16543396 | Q88: 207240 | R88: 17121347 | S88: 6922323 | T88: 1963440 | U88: 10875745 | V88: 386298
A89: 10512 | B89: 2200956 | G89: 45964 | J89: 2154992
A90: 1052 | B90: 36982317 | C90: 1561282 | D90: 1870385 | E90: 16516569 | G90: 5968 | H90: 667 | I90: 1692922 | J90: 3757105 | K90: 5280 | M90: 4544 | N90: 9376 | O90: 8062015 | P90: 716622 | Q90: 356031 | R90: 2237198 | S90: 95637 | T90: 87214 | U90: 3502
A91: 10520 | B91: 36863517 | C91: 1561282 | D91: 1865049 | E91: 16516569 | G91: 1200 | H91: 667 | I91: 1692922 | J91: 3751569 | O91: 8055431 | P91: 683078 | Q91: 354599 | R91: 2211846 | S91: 94013 | T91: 72918 | U91: 2374
A92: 106 | B92: 374559539 | C92: 14380780 | D92: 12280574 | E92: 11746685 | F92: 2033360 | G92: 13150382 | H92: 1457023 | I92: 23889415 | J92: 116132023 | K92: 43199581 | L92: 246331 | M92: 14190971 | N92: 37405026 | O92: 15505042 | P92: 7638228 | Q92: 11078343 | R92: 3366426 | S92: 32613092 | T92: 7641946 | U92: 6031994 | V92: 572320
A93: 1061 | B93: 358700985 | C93: 14380780 | D93: 12280574 | E93: 11035995 | F93: 2033360 | G93: 13150382 | H93: 1457023 | I93: 23889415 | J93: 116132023 | K93: 43199581 | L93: 246331 | M93: 14190971 | N93: 28693311 | O93: 15505042 | P93: 7638228 | Q93: 11078343 | R93: 2203998 | S93: 32613092 | T93: 7641946 | U93: 758272 | V93: 572320
A94: 10611 | B94: 299856148 | C94: 13877085 | D94: 12237189 | E94: 7467639 | F94: 1980185 | G94: 13147878 | H94: 1325985 | I94: 22647110 | J94: 114878171 | L94: 240762 | M94: 9916135 | N94: 26812273 | O94: 15192122 | P94: 6106600 | Q94: 11070598 | R94: 2120994 | S94: 31926294 | T94: 7632468 | U94: 726204 | V94: 550456
A95: 10612 | B95: 50067554 | C95: 372467 | D95: 31305 | E95: 1910603 | F95: 53175 | I95: 838177 | J95: 845510 | K95: 40306077 | L95: 5570 | M95: 3697188 | N95: 690958 | P95: 1216567 | Q95: 3337 | R95: 82772 | T95: 350 | U95: 13500
A96: 10613 | B96: 3291708 | C96: 14252 | E96: 1452370 | H96: 9117 | I96: 213040 | J96: 164734 | N96: 857096 | O96: 71 | P96: 16206 | R96: 8 | S96: 564813
A97: 1062 | B97: 15858554 | E97: 710689 | N97: 8711715 | R97: 1162428 | U97: 5273722
A98: 10620 | B98: 15858554 | E98: 710689 | N98: 8711715 | R98: 1162428 | U98: 5273722
A99: 107 | B99: 214646420 | C99: 3626379 | D99: 10293090 | E99: 23484974 | F99: 5096360 | G99: 8980987 | H99: 6697481 | I99: 14247121 | J99: 19000354 | K99: 4775976 | L99: 2249942 | M99: 12079968 | N99: 19196148 | O99: 8574743 | P99: 5430510 | Q99: 16479485 | R99: 23560029 | S99: 22260436 | T99: 3559388 | U99: 3455307 | V99: 1597744
A100: 1071 | B100: 123355443 | C100: 3449415 | D100: 8830118 | E100: 10093058 | F100: 4722474 | G100: 3091392 | H100: 4236162 | I100: 10592881 | J100: 6785351 | K100: 4709285 | L100: 2178920 | M100: 8027286 | N100: 5945518 | O100: 8431717 | P100: 5184830 | Q100: 11775534 | R100: 15311619 | S100: 3135067 | T100: 2122952 | U100: 3261732 | V100: 1470135
A101: 10710 | B101: 103181083 | C101: 2227599 | D101: 4350350 | E101: 9781586 | F101: 4262706 | G101: 1971032 | H101: 3369706 | I101: 9915441 | J101: 4563623 | K101: 3288813 | L101: 1606992 | M101: 7128030 | N101: 5200718 | O101: 7870293 | P101: 4320006 | Q101: 10151142 | R101: 15066251 | S101: 2389619 | T101: 1443704 | U101: 3016916 | V101: 1256559
A102: 1072 | B102: 59988237 | C102: 176980 | D102: 1268896 | E102: 12369197 | F102: 203547 | G102: 1521149 | H102: 1375077 | I102: 1519634 | J102: 8292644 | K102: 56691 | L102: 57350 | M102: 877483 | N102: 7151443 | O102: 143025 | P102: 241677 | Q102: 619150 | R102: 7908672 | S102: 14920036 | T102: 964658 | U102: 193319 | V102: 127608
A103: 10720 | B103: 56637077 | C103: 122364 | D103: 613264 | E103: 12107949 | F103: 152155 | G103: 670381 | H103: 1305245 | I103: 1332258 | J103: 8169308 | K103: 31779 | L103: 40110 | M103: 795195 | N103: 6950579 | O103: 103705 | P103: 177541 | Q103: 495294 | R103: 7672624 | S103: 14902100 | T103: 876538 | U103: 40039 | V103: 78648
A104: 1073 | B104: 31302852 | D104: 194076 | E104: 1022744 | F104: 170347 | G104: 4368447 | H104: 1086250 | I104: 2134629 | J104: 3922383 | K104: 10000 | L104: 13680 | M104: 3175207 | N104: 6099180 | P104: 3987 | Q104: 4084809 | R104: 339746 | S104: 4205333 | T104: 471778 | U104: 256
A105: 10730 | B105: 31102900 | D105: 112804 | E105: 1022744 | F105: 169947 | G105: 4368447 | H105: 1016194 | I105: 2134613 | J105: 3908631 | K105: 10000 | L105: 13680 | M105: 3175207 | N105: 6099180 | P105: 3987 | Q105: 4067129 | R105: 339746 | S105: 4199805 | T105: 460786
A106: 108 | B106: 273346486 | C106: 474519 | D106: 1649839 | E106: 53136641 | F106: 836467 | G106: 633998 | H106: 44843392 | I106: 2547272 | J106: 21118455 | K106: 9824643 | L106: 559542 | M106: 2716801 | N106: 1762015 | O106: 795679 | P106: 1076873 | Q106: 1541731 | R106: 101566350 | S106: 12671083 | T106: 143893 | U106: 15078830 | V106: 368463
A107: 1081 | B107: 63786997 | E107: 4111866 | F107: 28139 | H107: 43989709 | I107: 3345 | J107: 64 | L107: 3246 | M107: 5424 | O107: 3344 | R107: 596685 | S107: 132943 | U107: 14912231
A108: 10810 | B108: 63778165 | E108: 4111866 | F108: 28139 | H108: 43989709 | I108: 3345 | L108: 3246 | R108: 596685 | S108: 132943 | U108: 14912231
A109: 1082 | B109: 94329192 | C109: 18728 | D109: 108904 | E109: 21884016 | G109: 32133 | H109: 529168 | I109: 57019 | J109: 19797754 | K109: 35848 | L109: 2144 | M109: 212413 | N109: 336812 | O109: 334174 | P109: 11113 | Q109: 3506 | R109: 45121614 | S109: 5834040 | T109: 6192 | U109: 336 | V109: 3279
A110: 10820 | B110: 93924112 | E110: 21853864 | G110: 32133 | H110: 513072 | I110: 53835 | J110: 19794474 | M110: 187101 | N110: 332892 | O110: 333374 | P110: 6761 | Q110: 1290 | R110: 44982598 | S110: 5829448 | V110: 3271
A111: 1083 | B111: 27017666 | E111: 5171572 | I111: 1092706 | P111: 18088 | Q111: 41627 | R111: 14951667 | S111: 5742006
A112: 10830 | B112: 24742010 | E112: 3458892 | I112: 582498 | P112: 12744 | Q112: 41627 | R112: 14951667 | S112: 5694582
A113: 1084 | B113: 41462806 | C113: 1386 | E113: 378913 | H113: 265547 | I113: 104518 | J113: 1151 | K113: 9652700 | M113: 121273 | N113: 3172 | O113: 32111 | R113: 30827120 | S113: 74914
A114: 10840 | B114: 41445326 | C114: 1386 | E114: 372433 | H114: 263547 | I114: 95982 | J114: 687 | K114: 9652700 | M114: 121273 | N114: 3172 | O114: 32111 | R114: 30827120 | S114: 74914
A115: 1085 | B115: 36396110 | C115: 348121 | D115: 1536894 | E115: 16612607 | F115: 799687 | G115: 444131 | H115: 58813 | I115: 1120555 | J115: 1183261 | K115: 128708 | L115: 554160 | M115: 2368798 | N115: 1296012 | O115: 402769 | P115: 929587 | Q115: 1377706 | R115: 6175604 | S115: 441568 | T115: 86750 | U115: 165195 | V115: 365184
A116: 10850 | B116: 32510862 | C116: 267801 | D116: 246870 | E116: 16544383 | F116: 794055 | G116: 297939 | H116: 25981 | I116: 702555 | J116: 766525 | K116: 51396 | L116: 356912 | M116: 2137782 | N116: 1159980 | O116: 388297 | P116: 747395 | Q116: 1352394 | R116: 6141308 | S116: 440568 | T116: 8030 | U116: 80691
A117: 1086 | B117: 15991 | C117: 5600 | D117: 1706 | E117: 1150 | N117: 6798 | R117: 736
A118: 10860 | B118: 15255 | C118: 5600 | D118: 1706 | E118: 1150 | N118: 6798
A119: 1089 | B119: 10337733 | C119: 100683 | D119: 2343 | E119: 4976524 | F119: 8632 | G119: 157734 | H119: 147 | I119: 169128 | J119: 136225 | K119: 7387 | M119: 8893 | N119: 119212 | O119: 23288 | P119: 118086 | Q119: 118893 | R119: 3892924 | S119: 445612 | T119: 50951 | U119: 1068
A120: 10891 | B120: 5004519 | E120: 4308503 | H120: 147 | I120: 28906 | K120: 2411 | M120: 3333 | N120: 3318 | O120: 8 | P120: 742 | Q120: 13692 | R120: 640656 | S120: 1733 | U120: 1068
A121: 10892 | B121: 1434605 | R121: 1434605
A122: 10899 | B122: 3605104 | C122: 100491 | D122: 2343 | E122: 662957 | G122: 157734 | I122: 65814 | J122: 136177 | K122: 2800 | M122: 5552 | N122: 82390 | P122: 113400 | Q122: 105201 | R122: 1765175 | S122: 386975 | T122: 18095
A123: 109 | B123: 95866175 | C123: 13288703 | D123: 671420 | E123: 23436344 | H123: 554503 | I123: 5194404 | J123: 15189168 | K123: 2737 | L123: 375 | M123: 6105137 | N123: 19829171 | O123: 1493399 | P123: 1637155 | Q123: 587110 | R123: 143179 | S123: 253931 | T123: 4621456 | U123: 2857984
A124: 1091 | B124: 95581719 | C124: 13288703 | D124: 523605 | E124: 23433584 | H124: 554503 | I124: 5194404 | J124: 15189168 | K124: 2737 | L124: 375 | M124: 6105137 | N124: 19696338 | O124: 1493399 | P124: 1637155 | Q124: 587110 | R124: 142132 | S124: 253931 | T124: 4621456 | U124: 2857984
A125: 10910 | B125: 94927623 | C125: 13288703 | D125: 523605 | E125: 23417192 | H125: 541927 | I125: 5145124 | J125: 15071648 | K125: 2737 | L125: 375 | M125: 6105137 | N125: 19696338 | O125: 1051367 | P125: 1629483 | Q125: 587110 | R125: 142132 | S125: 245595 | T125: 4621456 | U125: 2857696
A126: 1092 | B126: 284455 | D126: 147815 | E126: 2760 | N126: 132833 | R126: 1047
A127: 10920 | B127: 284455 | D127: 147815 | E127: 2760 | N127: 132833 | R127: 1047
A128: 11 | B128: 635136836 | C128: 15163984 | D128: 12698101 | E128: 304959642 | F128: 666530 | G128: 1947638 | H128: 3071061 | I128: 29092449 | J128: 26772621 | K128: 68446 | L128: 264062 | M128: 3001291 | N128: 8097186 | O128: 11023927 | P128: 632437 | Q128: 109778647 | R128: 65133231 | S128: 25519239 | T128: 92805 | U128: 17006814 | V128: 146724
A129: 110 | B129: 635136836 | C129: 15163984 | D129: 12698101 | E129: 304959642 | F129: 666530 | G129: 1947638 | H129: 3071061 | I129: 29092449 | J129: 26772621 | K129: 68446 | L129: 264062 | M129: 3001291 | N129: 8097186 | O129: 11023927 | P129: 632437 | Q129: 109778647 | R129: 65133231 | S129: 25519239 | T129: 92805 | U129: 17006814 | V129: 146724
A130: 1101 | B130: 59899698 | C130: 11537988 | D130: 9399978 | E130: 9573274 | H130: 2316562 | N130: 8042890 | O130: 4675763 | R130: 12967778 | S130: 1385465
A131: 11010 | B131: 59899698 | C131: 11537988 | D131: 9399978 | E131: 9573274 | H131: 2316562 | N131: 8042890 | O131: 4675763 | R131: 12967778 | S131: 1385465
A132: 1102 | B132: 6979303 | C132: 1101 | D132: 1197 | E132: 3888852 | H132: 730319 | I132: 7472 | J132: 3993 | O132: 1201835 | R132: 1132996 | V132: 11538
A133: 11021 | B133: 3143856 | C133: 1101 | D133: 1197 | E133: 1896601 | I133: 7472 | J133: 3993 | O133: 91432 | R133: 1130522 | V133: 11538
A134: 11022 | B134: 3835447 | E134: 1992251 | H134: 730319 | O134: 1110403 | R134: 2474
A135: 1103 | B135: 1357710 | E135: 766932 | P135: 16863 | R135: 573915
A136: 11030 | B136: 1357710 | E136: 766932 | P136: 16863 | R136: 573915
A137: 1104
A138: 11040
A139: 1105 | B139: 116602797 | C139: 14725 | D139: 86904 | E139: 51244738 | F139: 6183 | G139: 679017 | H139: 5983 | I139: 28450545 | J139: 9360319 | L139: 22108 | M139: 1514567 | N139: 18058 | O139: 174447 | P139: 142465 | Q139: 32808 | R139: 21395397 | S139: 3385884 | T139: 55226 | U139: 13423
A140: 11050 | B140: 116551869 | C140: 14725 | D140: 86904 | E140: 51244738 | F140: 6183 | G140: 676505 | H140: 5983 | I140: 28428313 | J140: 9354351 | L140: 22108 | M140: 1514567 | N140: 18058 | O140: 174447 | P140: 132569 | Q140: 32808 | R140: 21395173 | S140: 3385884 | T140: 55226 | U140: 3327
A141: 1106 | B141: 16969391 | U141: 16969391
A142: 11060 | B142: 16969391 | U142: 16969391
A143: 1107 | B143: 433327928 | C143: 3610170 | D143: 3210023 | E143: 239485846 | F143: 660348 | G143: 1268621 | H143: 18197 | I143: 634432 | J143: 17408309 | K143: 68446 | L143: 241954 | M143: 1486724 | N143: 36238 | O143: 4971882 | P143: 473101 | Q143: 109745839 | R143: 29063145 | S143: 20747890 | T143: 37578 | U143: 24000 | V143: 135186
A144: 11070 | B144: 432890496 | C144: 3599138 | D144: 3194951 | E144: 239465134 | F144: 578988 | G144: 1267573 | H144: 1941 | I144: 541224 | J144: 17408309 | K144: 6638 | L144: 240914 | M144: 1484860 | N144: 3582 | O144: 4966794 | P144: 410309 | Q144: 109745839 | R144: 29059281 | S144: 20742258 | T144: 37578 | V144: 135186
A145: 12 | B145: 184243312 | E145: 184184463 | R145: 58849
A146: 120 | B146: 184243312 | E146: 184184463 | R146: 58849
A147: 1200 | B147: 184243312 | E147: 184184463 | R147: 58849
A148: 12001 | B148: 71592578 | E148: 71592578
A149: 12002 | B149: 112650734 | E149: 112591885 | R149: 58849
A150: 13 | B150: 69225866 | C150: 6858958 | D150: 2029310 | E150: 2506687 | F150: 2114951 | G150: 216334 | H150: 2384808 | I150: 793430 | J150: 843076 | K150: 313280 | L150: 33710 | M150: 5380807 | N150: 2665237 | O150: 18285264 | P150: 1137735 | Q150: 1879389 | R150: 1598294 | S150: 16274899 | T150: 342091 | U150: 3533111 | V150: 34493
A151: 131 | B151: 22169231 | G151: 4592 | J151: 13759 | O151: 18142176 | P151: 208 | R151: 93 | S151: 3986443 | T151: 624 | U151: 21336
A152: 1310 | B152: 22169231 | G152: 4592 | J152: 13759 | O152: 18142176 | P152: 208 | R152: 93 | S152: 3986443 | T152: 624 | U152: 21336
A153: 13101 | B153: 18074056 | O153: 18074056
A154: 13102 | B154: 4028005 | O154: 66784 | S154: 3961221
A155: 13103 | B155: 46651 | R155: 93 | S155: 25222 | U155: 21336
A156: 13105 | B156: 13759 | J156: 13759
A157: 13106
A158: 13108
A159: 13-15 | B159: 124317024 | C159: 8362646 | D159: 5780026 | E159: 8929370 | F159: 4849988 | G159: 1063381 | H159: 6210897 | I159: 6022162 | J159: 1488062 | K159: 593582 | L159: 1755775 | M159: 6306355 | N159: 5240487 | O159: 19221372 | P159: 2089498 | Q159: 4769608 | R159: 9924494 | S159: 23011086 | T159: 2809705 | U159: 4884574 | V159: 1003955
A160: 132 | B160: 7032618 | C160: 3589495 | E160: 39389 | G160: 32 | I160: 1120 | J160: 173027 | K160: 368 | P160: 76577 | R160: 85735 | S160: 3066875
A161: 1320 | B161: 7032618 | C161: 3589495 | E161: 39389 | G161: 32 | I161: 1120 | J161: 173027 | K161: 368 | P161: 76577 | R161: 85735 | S161: 3066875
A162: 13201 | B162: 3316479 | J162: 173027 | P162: 76577 | S162: 3066875
A163: 13209 | B163: 3714619 | C163: 3589495 | E163: 39389 | R163: 85735
A164: 133 | B164: 34187 | E164: 17648 | I164: 600 | K164: 496 | O164: 2864 | P164: 168 | R164: 12068 | S164: 344
A165: 1330 | B165: 34187 | E165: 17648 | I165: 600 | K165: 496 | O165: 2864 | P165: 168 | R165: 12068 | S165: 344
A166: 13300 | B166: 29715 | E166: 17648 | R166: 12068
A167: 139 | B167: 39989830 | C167: 3269463 | D167: 2029310 | E167: 2449651 | F167: 2114951 | G167: 211726 | H167: 2384808 | I167: 791710 | J167: 656291 | K167: 312416 | L167: 33710 | M167: 5380807 | N167: 2665237 | O167: 140224 | P167: 1060773 | Q167: 1879389 | R167: 1500399 | S167: 9221237 | T167: 341459 | U167: 3511775 | V167: 34493
A168: 1391 | B168: 4272 | U168: 4272
A169: 1392 | B169: 30520161 | C169: 3168616 | D169: 2016455 | E169: 2115900 | F169: 2090311 | G169: 168707 | H169: 2166711 | I169: 693223 | J169: 120296 | K169: 304399 | L169: 28374 | M169: 4822936 | N169: 2626934 | O169: 102096 | P169: 125377 | Q169: 1816770 | R169: 884390 | S169: 3462714 | T169: 264524 | U169: 3507127 | V169: 34301
A170: 13920 | B170: 28760809 | C170: 3151760 | D170: 1888743 | E170: 2084388 | F170: 2061391 | G170: 110819 | H170: 1948495 | I170: 586719 | J170: 69920 | K170: 144479 | L170: 3070 | M170: 4679424 | N170: 2496846 | O170: 46904 | P170: 61745 | Q170: 1680170 | R170: 768750 | S170: 3266514 | T170: 199500 | U170: 3487191 | V170: 23981
A171: 1393 | B171: 5529533 | C171: 160 | K171: 336 | Q171: 52120 | R171: 3834 | S171: 5473082
A172: 13930 | B172: 5528541 | Q172: 51624 | R172: 3834 | S172: 5473082
A173: 1394 | B173: 479472 | D173: 2625 | E173: 279553 | H173: 64106 | I173: 74334 | M173: 55517 | S173: 3336
A174: 13941 | B174: 418515 | D174: 521 | E174: 279553 | H174: 64106 | I174: 74334
A175: 13942 | B175: 57621 | D175: 2104 | M175: 55517
A176: 1395 | B176: 1633272 | E176: 40469 | H176: 142323 | I176: 2896 | J176: 463091 | M176: 486922 | N176: 4584 | R176: 317304 | S176: 175682
A177: 13950 | B177: 1342832 | E177: 40469 | H177: 142323 | I177: 2896 | J177: 177235 | M177: 486922 | R177: 317304 | S177: 175682
A178: 1396 | B178: 997462 | E178: 12664 | F178: 24287 | H178: 10600 | I178: 8631 | M178: 15140 | N178: 28047 | P178: 890784 | Q178: 0 | R178: 5972
A179: 13960 | B179: 974070 | F179: 24287 | I179: 8623 | M179: 15020 | N179: 28047 | P179: 890784 | Q179: 0 | R179: 5972
A180: 1399 | B180: 825682 | C180: 100687 | D180: 10238 | E180: 1064 | F180: 353 | G180: 43019 | H180: 1067 | I180: 12626 | J180: 72912 | K180: 7690 | L180: 5328 | M180: 292 | N180: 5672 | O180: 38128 | P180: 44620 | Q180: 9154 | R180: 288906 | S180: 106423 | T180: 76936 | U180: 376 | V180: 192
A181: 13991 | B181: 196227 | D181: 7478 | G181: 4445 | K181: 4034 | M181: 26 | N181: 720 | O181: 23742 | P181: 3596 | Q181: 202 | R181: 46161 | S181: 105823
A182: 13992 | B182: 176190 | C182: 98535 | G182: 4878 | O182: 1833 | R182: 647 | T182: 70297
A183: 13999 | B183: 102873 | F183: 353 | G183: 10208 | H183: 1067 | I183: 4306 | L183: 3200 | M183: 2 | R183: 82834 | T183: 903
A184: 14 | B184: 44838356 | C184: 365495 | D184: 3750715 | E184: 4658562 | F184: 2680929 | G184: 762164 | H184: 2142653 | I184: 4636907 | J184: 424595 | K184: 279758 | L184: 912101 | M184: 716810 | N184: 2493956 | O184: 927794 | P184: 936435 | Q184: 2756877 | R184: 5613394 | S184: 6211208 | T184: 2247151 | U184: 1351391 | V184: 969462
A185: 141 | B185: 41793606 | C185: 349581 | D185: 3750667 | E185: 4636171 | F185: 2680929 | G185: 762140 | H185: 2127901 | I185: 4208941 | J185: 423635 | K185: 279486 | L185: 912101 | M185: 711170 | N185: 2219420 | O185: 927602 | P185: 933035 | Q185: 2526460 | R185: 4994964 | S185: 5092198 | T185: 1991028 | U185: 1303349 | V185: 962830
A186: 1411 | B186: 33869 | C186: 151 | E186: 120 | G186: 664 | I186: 23794 | J186: 2455 | L186: 456 | M186: 1080 | O186: 536 | R186: 4213 | S186: 400
A187: 14110 | B187: 30589 | C187: 151 | I187: 23770 | J187: 2455 | R187: 4213
A188: 1412 | B188: 26991250 | C188: 297069 | D188: 3570631 | E188: 1117866 | F188: 2639525 | G188: 659485 | H188: 395283 | I188: 3428703 | J188: 227451 | K188: 181332 | L188: 825920 | M188: 503076 | N188: 1326672 | O188: 744307 | P188: 446166 | Q188: 1732959 | R188: 3725778 | S188: 1741898 | T188: 1622298 | U188: 864594 | V188: 940236
A189: 14120 | B189: 25339114 | C189: 229845 | D189: 3525863 | E189: 1113298 | F189: 2617669 | G189: 583637 | H189: 379555 | I189: 3248087 | J189: 214451 | K189: 168780 | L189: 824256 | M189: 454644 | N189: 1304784 | O189: 721323 | P189: 402558 | Q189: 1729999 | R189: 3548218 | S189: 1581634 | T189: 918610 | U189: 833890 | V189: 938012
A190: 1413 | B190: 4167154 | C190: 18571 | D190: 61883 | E190: 898711 | F190: 24608 | G190: 57749 | H190: 88491 | I190: 153174 | J190: 33959 | K190: 70299 | L190: 42642 | M190: 134663 | N190: 333902 | O190: 34169 | P190: 49011 | Q190: 518735 | R190: 558709 | S190: 619877 | T190: 66245 | U190: 400892 | V190: 864
A191: 14130 | B191: 3296138 | C191: 12059 | D191: 12387 | E191: 861663 | F191: 3784 | G191: 24245 | H191: 55131 | I191: 104934 | J191: 5631 | K191: 5459 | L191: 30082 | M191: 88679 | N191: 27678 | O191: 7281 | P191: 7939 | Q191: 502223 | R191: 501805 | S191: 580501 | T191: 65141 | U191: 399516
A192: 1414 | B192: 1129338 | C192: 6771 | D192: 43848 | E192: 287996 | F192: 91 | G192: 10938 | H192: 2474 | I192: 96339 | J192: 4332 | K192: 23689 | M192: 4643 | N192: 10944 | O192: 2709 | P192: 52076 | Q192: 25079 | R192: 160901 | S192: 233689 | T192: 128247 | U192: 33593 | V192: 979
A193: 14140 | B193: 1056066 | C193: 3659 | D193: 39776 | E193: 287996 | F193: 3 | G193: 6794 | H193: 858 | I193: 88763 | J193: 764 | K193: 22513 | M193: 2003 | O193: 2173 | P193: 44956 | Q193: 8863 | R193: 153285 | S193: 233449 | T193: 125759 | U193: 33593 | V193: 859
A194: 1419 | B194: 9472035 | C194: 27018 | D194: 74298 | E194: 2331478 | F194: 16712 | G194: 33304 | H194: 1641661 | I194: 506923 | J194: 155453 | K194: 4174 | L194: 43090 | M194: 67700 | N194: 547895 | O194: 145889 | P194: 385790 | Q194: 249687 | R194: 545363 | S194: 2496342 | T194: 174238 | U194: 4271 | V194: 20751
A195: 14191 | B195: 1228919 | C195: 202 | D195: 89 | E195: 890115 | H195: 596 | I195: 162389 | J195: 644 | K195: 35 | L195: 12330 | M195: 4950 | O195: 6294 | P195: 1630 | R195: 50123 | S195: 85590 | T195: 13933
A196: 14199 | B196: 7597636 | D196: 52713 | E196: 1440163 | H196: 1634257 | I196: 265639 | J196: 149905 | K196: 315 | L196: 4592 | M196: 48270 | N196: 400423 | O196: 59563 | P196: 358016 | Q196: 244559 | R196: 447415 | S196: 2376696 | T196: 94409 | U196: 4183 | V196: 16519
A197: 142 | B197: 160595 | C197: 287 | H197: 13920 | I197: 1369 | R197: 50676 | S197: 6063 | T197: 88280
A198: 1420 | B198: 160595 | C198: 287 | H198: 13920 | I198: 1369 | R198: 50676 | S198: 6063 | T198: 88280
A199: 14200 | B199: 146675 | C199: 287 | I199: 1369 | R199: 50676 | S199: 6063 | T199: 88280
A200: 143 | B200: 2884139 | C200: 15635 | D200: 48 | E200: 22391 | G200: 32 | H200: 832 | I200: 426597 | J200: 952 | K200: 264 | M200: 5640 | N200: 274535 | O200: 192 | P200: 3400 | Q200: 230417 | R200: 567747 | S200: 1112939 | T200: 167843 | U200: 48042 | V200: 6632
... 615 more rows

Sheet стр5

Sheet к стр 5 (hidden)
A2: Обрабатывающая промышленность | B2: =B15 -> 13418.38062
A3: =$A$16 -> Металлургия | B3: =$C$16 -> 5361.878101 | C3: =B3/$B$2 -> 0.3995920413
A4: =$A$17 -> Машиностроение | B4: =$C$17 -> 2578.56199 | C4: =B4/$B$2 -> 0.192166407
A5: =$A$18 -> Производство продуктов питания | B5: =$C$18 -> 2066.428776 | C5: 0.153999863
A6: =$A$19 -> Кокс и продукты нефтепереработки | B6: =$C$19 -> 753.236161 | C6: 0.05613465459
A7: =$A$20 -> Строй. материалы | B7: =$C$20 -> 787.479323 | C7: 0.05868661395
A8: =$A$21 -> Химическая промышленность | B8: =$C$21 -> 645.179397 | C8: 0.04808176303
A9: Прочие | B9: =B2-(SUM(B3:B8)) -> 1225.616867 | C9: =B9/$B$2 -> 0.09133865719
A13: Объем промышленного производства по видам экономической деятельности, млрд. тг.
A14: Виды экономической деятельности | B14: январь-август 2022 | C14: январь-август 2023 | D14: ИФО январь- август 2023 года к январю-августу 2022, %
A15: Обрабатывающая промышленность | B15: =стр3!C3 -> 13418.38062 | C15: =стр3!D3 -> 14042.93376 | D15: =стр3!E3 -> 103.1
A16: Металлургия | B16: =стр3!C16 -> 6186.606643 | C16: =стр3!D16 -> 5361.878101 | D16: =стр3!E16 -> 95.7
A17: Машиностроение | B17: =стр3!C18 -> 1852.380111 | C17: =стр3!D18 -> 2578.56199 | D17: =стр3!E18 -> 128.1
A18: Производство продуктов питания | B18: =стр3!C4 -> 1813.694062 | C18: =стр3!D4 -> 2066.428776 | D18: =стр3!E4 -> 104
A19: Кокс и продукты нефтепереработки | B19: =стр3!C11 -> 733.33721 | C19: =стр3!D11 -> 753.236161 | D19: =стр3!E11 -> 100.7
A20: Строй. материалы | B20: =стр3!C15 -> 699.914088 | C20: =стр3!D15 -> 787.479323 | D20: =стр3!E15 -> 100.8
A21: Химическая промышленность | B21: =стр3!C12 -> 581.678908 | C21: =стр3!D12 -> 645.179397 | D21: =стр3!E12 -> 103.1
A22: Производство напитков | B22: =стр3!C5 -> 484.144494 | C22: =стр3!D5 -> 635.136836 | D22: =стр3!E5 -> 105.4
A23: Производство резиновых и пластмассовых изделий | B23: =стр3!C14 -> 253.407594 | C23: =стр3!D14 -> 287.98081 | D23: =стр3!E14 -> 107.5
A24: Производство готовых металлических изделий, кроме машин и оборудования | B24: =стр3!C17 -> 225.757735 | C24: =стр3!D17 -> 271.454737 | D24: =стр3!E17 -> 106.4
A25: Производство табачных изделий | B25: =стр3!C6 -> 179.529539 | C25: =стр3!D6 -> 184.243312 | D25: =стр3!E6 -> 97.6
A26: Легкая промышленность | B26: =стр3!C7 -> 97.122693 | C26: =стр3!D7 -> 124.317024 | D26: =стр3!E7 -> 119.8
A27: Производство основных фармацевтических продуктов | B27: =стр3!C13 -> 104.996307 | C27: =стр3!D13 -> 96.264156 | D27: =стр3!E13 -> 94.7
A28: Производство бумаги и бумажной продукции | B28: =стр3!C9 -> 75.146222 | C28: =стр3!D9 -> 90.437047 | D28: =стр3!E9 -> 101.4
A29: Производство мебели | B29: =стр3!C19 -> 41.28059 | C29: =стр3!D19 -> 51.68501 | D29: =стр3!E19 -> 128.8
A30: Производство деревянных и пробковых изделий, кроме мебели; производство изделий из соломки и материалов для плетения | B30: =стр3!C8 -> 19.715324 | C30: =стр3!D8 -> 38.221411 | D30: =стр3!E8 -> 155.9
A31: Печать и воспроизведение записанных материалов | B31: =стр3!C10 -> 43.188682 | C31: =стр3!D10 -> 40.856054 | D31: =стр3!E10 -> 96.5
A32: Производство прочих готовых изделий | B32: =стр3!C20 -> 26.480745 | C32: =стр3!D20 -> 29.574156 | D32: =стр3!E20 -> 97.9

Sheet стр6

Sheet к стр 6 (hidden)
B3: январь-август 2022 г. | C3: январь-август 2023 г. | F3: -1
A4: =A17 -> Металлургия | B4: -376.060374 | C4: =C17 -> 279.442873 | E4: =(B17)*-1 -> -376.060374
A5: =A18 -> Химическая промышленность | B5: -93.92502 | C5: 99.144031 | E5: -93.92502
A6: =A19 -> Производство продуктов питания | B6: -77.793979 | C6: 85.582408 | E6: -77.793979
A7: =A20 -> Прочая неметаллическая минеральная продукция | B7: -89.181949 | C7: 100.653693 | E7: -89.181949
A8: =A21 -> Производство резиновых и пластмассовых изделий | B8: -23.775889 | C8: 75.45997 | E8: -23.775889
A9: =A22 -> Производство кокса и продуктов нефтепереработки | B9: -27.963047 | C9: 47.408688 | E9: -27.963047
A10: =A23 -> Производство напитков | B10: -19.189527 | C10: 21.625808 | E10: -19.189527
A11: =A24 -> Производство готовых металлических изделий | B11: -42.013093 | C11: 19.513743 | E11: -42.013093
A13: Обрабатывающая промышленность | B13: =SUM(E4:E11) -> -749.902878 | C13: =SUM(C4:C11) -> 728.831214
A15: Виды экономической деятельности | B15: январь-август 2022 | C15: январь-август 2023 | D15: ИФО январь-август 2023 года к январю-августу 2022, %
A16: Обрабатывающая промышленность | B16: =стр7!C3 -> 840.734888 | C16: =стр7!D3 -> 809.789861 | D16: =стр7!E3 -> 91.4
A17: Металлургия | B17: =стр7!C16 -> 376.060374 | C17: =стр7!D16 -> 279.442873 | D17: =стр7!E16 -> 70.2
A18: Химическая промышленность | B18: =стр7!C12 -> 93.92502 | C18: =стр7!D12 -> 99.144031 | D18: =стр7!E12 -> 103.6
A19: Производство продуктов питания | B19: =стр7!C4 -> 77.793979 | C19: =стр7!D4 -> 85.582408 | D19: =стр7!E4 -> 106.4
A20: Прочая неметаллическая минеральная продукция | B20: =стр7!C15 -> 89.181949 | C20: =стр7!D15 -> 100.653693 | D20: =стр7!E15 -> 109.9
A21: Производство резиновых и пластмассовых изделий | B21: =стр7!C14 -> 23.775889 | C21: =стр7!D14 -> 75.45997 | D21: =стр7!E14 -> 303.6
A22: Производство кокса и продуктов нефтепереработки | B22: =стр7!C11 -> 27.963047 | C22: =стр7!D11 -> 47.408688 | D22: =стр7!E11 -> 161.3
A23: Производство напитков | B23: =стр7!C5 -> 19.189527 | C23: =стр7!D5 -> 21.625808 | D23: =стр7!E5 -> 107.6
A24: Производство готовых металлических изделий | B24: =стр7!C17 -> 42.013093 | C24: =стр7!D17 -> 19.513743 | D24: =стр7!E17 -> 44.4
A25: Производство основных фармацевтических продуктов | B25: =стр7!C13 -> 16.19019 | C25: =стр7!D13 -> 8.333863 | D25: =стр7!E13 -> 48.4
A26: Производство бумаги и бумажной продукции | B26: =стр7!C9 -> 5.475919 | C26: =стр7!D9 -> 8.965907 | D26: =стр7!E9 -> 156.1
A27: Производство табачных изделий | B27: =стр7!C6 -> 14.622322 | C27: =стр7!D6 -> 6.128833 | D27: =стр7!E6 -> 39.6
A28: Производство деревянных и пробковых изделий | B28: =стр7!C8 -> 1.008841 | C28: =стр7!D8 -> 1.515261 | D28: =стр7!E8 -> 148.5
A29: Производство прочих готовых изделий | B29: =стр7!C20 -> 2.530382 | C29: =стр7!D20 -> 1.322692 | D29: =стр7!E20 -> 49.4
A30: Полиграфическая деятельность и воспроизведение записанных материалов | B30: =стр7!C10 -> 0.7115 | C30: =стр7!D10 -> 0.371422 | D30: =стр7!E10 -> 49.9
A31: Производство мебели | B31: =стр7!C19 -> 3.052061 | C31: =стр7!D19 -> 4.979986 | D31: =стр7!E19 -> 154.7
A32: Легкая промышленность | B32: =стр7!C7 -> 0 | C32: =стр7!D7 -> 0 | D32: =стр7!E7 -> 0
A33: Машиностроение | B33: =стр7!C18 -> 0 | C33: =стр7!D18 -> 0 | D33: =стр7!E18 -> 0

Sheet стр7
B1: Инвестиции в основной капитал по отраслям промышленности РК, млрд. тг.
B2: Виды экономической деятельности | C2: январь-август 2022 | D2: январь-август 2023 | E2: ИФО январь-август 2023 года к январю-августу 2022, % | F2: Удельный вес , %
A3: C | B3: Обрабатывающая промышленность | C3: =VLOOKUP($A3,'к стр 3 и 7'!$A:$I,2,0)/1000000 -> 840.734888 | D3: =VLOOKUP($A3,'к стр 3 и 7'!$A:$I,3,0)/1000000 -> 809.789861 | E3: =VLOOKUP($A3,'к стр 3 и 7'!$A:$I,5,0) -> 91.4 | F3: 19.00410668
A4: 10 | B4: Производство продуктов питания | C4: =VLOOKUP($A4,'к стр 3 и 7'!$A:$I,2,0)/1000000 -> 77.793979 | D4: =VLOOKUP($A4,'к стр 3 и 7'!$A:$I,3,0)/1000000 -> 85.582408 | E4: =VLOOKUP($A4,'к стр 3 и 7'!$A:$I,5,0) -> 106.4 | F4: 9.876693063
A5: 11 | B5: Производство напитков | C5: =VLOOKUP($A5,'к стр 3 и 7'!$A:$I,2,0)/1000000 -> 19.189527 | D5: =VLOOKUP($A5,'к стр 3 и 7'!$A:$I,3,0)/1000000 -> 21.625808 | E5: =VLOOKUP($A5,'к стр 3 и 7'!$A:$I,5,0) -> 107.6 | F5: 1.627106788
A6: 12 | B6: Производство табачных изделий | C6: =VLOOKUP($A6,'к стр 3 и 7'!$A:$I,2,0)/1000000 -> 14.622322 | D6: =VLOOKUP($A6,'к стр 3 и 7'!$A:$I,3,0)/1000000 -> 6.128833 | E6: =VLOOKUP($A6,'к стр 3 и 7'!$A:$I,5,0) -> 39.6 | F6: 0.5044807352
A7: 13-15 | B7: Легкая промышленность | C7: =VLOOKUP($A7,'к стр 3 и 7'!$A:$I,2,0)/1000000 -> 0 | D7: =VLOOKUP($A7,'к стр 3 и 7'!$A:$I,3,0)/1000000 -> 0 | E7: =VLOOKUP($A7,'к стр 3 и 7'!$A:$I,5,0) -> 0 | F7: 0.6330582191
A8: 16 | B8: Производство деревянных и пробковых изделий | C8: =VLOOKUP($A8,'к стр 3 и 7'!$A:$I,2,0)/1000000 -> 1.008841 | D8: =VLOOKUP($A8,'к стр 3 и 7'!$A:$I,3,0)/1000000 -> 1.515261 | E8: =VLOOKUP($A8,'к стр 3 и 7'!$A:$I,5,0) -> 148.5 | F8: 0.1395887092
A9: 17 | B9: Производство бумаги и бумажной продукции | C9: =VLOOKUP($A9,'к стр 3 и 7'!$A:$I,2,0)/1000000 -> 5.475919 | D9: =VLOOKUP($A9,'к стр 3 и 7'!$A:$I,3,0)/1000000 -> 8.965907 | E9: =VLOOKUP($A9,'к стр 3 и 7'!$A:$I,5,0) -> 156.1 | F9: 89.6
A10: 18 | B10: Полиграфическая деятельность и воспроизведение записанных материалов | C10: =VLOOKUP($A10,'к стр 3 и 7'!$A:$I,2,0)/1000000 -> 0.7115 | D10: =VLOOKUP($A10,'к стр 3 и 7'!$A:$I,3,0)/1000000 -> 0.371422 | E10: =VLOOKUP($A10,'к стр 3 и 7'!$A:$I,5,0) -> 49.9 | F10: 156.4
A11: 19 | B11: Производство кокса и продуктов нефтепереработки | C11: =VLOOKUP($A11,'к стр 3 и 7'!$A:$I,2,0)/1000000 -> 27.963047 | D11: =VLOOKUP($A11,'к стр 3 и 7'!$A:$I,3,0)/1000000 -> 47.408688 | E11: =VLOOKUP($A11,'к стр 3 и 7'!$A:$I,5,0) -> 161.3 | F11: 9.1
A12: 20 | B12: Производство продуктов химической промышленности | C12: =VLOOKUP($A12,'к стр 3 и 7'!$A:$I,2,0)/1000000 -> 93.92502 | D12: =VLOOKUP($A12,'к стр 3 и 7'!$A:$I,3,0)/1000000 -> 99.144031 | E12: =VLOOKUP($A12,'к стр 3 и 7'!$A:$I,5,0) -> 103.6 | F12: 142.6
A13: 21 | B13: Производство основных фармацевтических продуктов | C13: =VLOOKUP($A13,'к стр 3 и 7'!$A:$I,2,0)/1000000 -> 16.19019 | D13: =VLOOKUP($A13,'к стр 3 и 7'!$A:$I,3,0)/1000000 -> 8.333863 | E13: =VLOOKUP($A13,'к стр 3 и 7'!$A:$I,5,0) -> 48.4 | F13: 89.4
A14: 22 | B14: Производство резиновых и пластмассовых изделий | C14: =VLOOKUP($A14,'к стр 3 и 7'!$A:$I,2,0)/1000000 -> 23.775889 | D14: =VLOOKUP($A14,'к стр 3 и 7'!$A:$I,3,0)/1000000 -> 75.45997 | E14: =VLOOKUP($A14,'к стр 3 и 7'!$A:$I,5,0) -> 303.6 | F14: 125.9
A15: 23 | B15: Производство прочей неметаллической минеральной продукции | C15: =VLOOKUP($A15,'к стр 3 и 7'!$A:$I,2,0)/1000000 -> 89.181949 | D15: =VLOOKUP($A15,'к стр 3 и 7'!$A:$I,3,0)/1000000 -> 100.653693 | E15: =VLOOKUP($A15,'к стр 3 и 7'!$A:$I,5,0) -> 109.9 | F15: 79
A16: 24 | B16: Металлургическая промышленность | C16: =VLOOKUP($A16,'к стр 3 и 7'!$A:$I,2,0)/1000000 -> 376.060374 | D16: =VLOOKUP($A16,'к стр 3 и 7'!$A:$I,3,0)/1000000 -> 279.442873 | E16: =VLOOKUP($A16,'к стр 3 и 7'!$A:$I,5,0) -> 70.2 | F16: 120.4
A17: 25 | B17: Производство готовых металлических изделий | C17: =VLOOKUP($A17,'к стр 3 и 7'!$A:$I,2,0)/1000000 -> 42.013093 | D17: =VLOOKUP($A17,'к стр 3 и 7'!$A:$I,3,0)/1000000 -> 19.513743 | E17: =VLOOKUP($A17,'к стр 3 и 7'!$A:$I,5,0) -> 44.4 | F17: 135.8
A18: 26-30 | B18: Машиностроение | C18: =VLOOKUP($A18,'к стр 3 и 7'!$A:$I,2,0)/1000000 -> 0 | D18: =VLOOKUP($A18,'к стр 3 и 7'!$A:$I,3,0)/1000000 -> 0 | E18: =VLOOKUP($A18,'к стр 3 и 7'!$A:$I,5,0) -> 0 | F18: 21.7
A19: 31 | B19: Производство мебели | C19: =VLOOKUP($A19,'к стр 3 и 7'!$A:$I,2,0)/1000000 -> 3.052061 | D19: =VLOOKUP($A19,'к стр 3 и 7'!$A:$I,3,0)/1000000 -> 4.979986 | E19: =VLOOKUP($A19,'к стр 3 и 7'!$A:$I,5,0) -> 154.7 | F19: 110.8
A20: 32 | B20: Производство прочих готовых изделий | C20: =VLOOKUP($A20,'к стр 3 и 7'!$A:$I,2,0)/1000000 -> 2.530382 | D20: =VLOOKUP($A20,'к стр 3 и 7'!$A:$I,3,0)/1000000 -> 1.322692 | E20: =VLOOKUP($A20,'к стр 3 и 7'!$A:$I,5,0) -> 49.4 | F20: 48

Sheet стр8

Sheet к стр8 и 9 (hidden)
B1: Экспорт, тыс. долл. США | T1: Экспорт, тыс. долл. США
A2: окэд2 | B2: 2023 | R2: окэд2 | T2: 2023
A3: 01 | B3: 1841047.254 | C3: =VLOOKUP(A3,стр9!$A:$K,2,0) ->  | R3: c | S3: =VLOOKUP(R3,$A:$C,3,0) -> Обрабатывающая промышленность | T3: =VLOOKUP(R3,$A:$B,2,0) -> 14235190.33
A4: 02 | B4: 382.73402 | C4: =VLOOKUP(A4,стр9!$A:$K,2,0) ->  | F4: Всего экспорт | G4: Экспорт обр пром | R4: 24 | S4: Металлургическая промышленность | T4: =VLOOKUP(R4,$A:$B,2,0)/$T$3 -> 0.520550262 | V4: Прочие | W4: =100%-SUM(W5:W11) -> 0.1210466051
A5: 03 | B5: 612.03301 | C5: =VLOOKUP(A5,стр9!$A:$K,2,0) ->  | E5: 2014 | F5: 79.46 | G5: 18.38 | R5: 10 | S5: Производство продуктов питания | T5: 0.0838685324 | V5: =S4 -> Металлургическая промышленность | W5: =T4 -> 0.520550262
A6: 05 | B6: 447912.1873 | C6: =VLOOKUP(A6,стр9!$A:$K,2,0) ->  | E6: 2015 | F6: 45.96 | G6: 14.03 | R6: 19 | S6: Производство кокса и продуктов нефтепереработки | T6: 0.07573867857 | V6: =S5 -> Производство продуктов питания | W6: =T5 -> 0.0838685324
A7: 06 | B7: 24916022.69 | C7: =VLOOKUP(A7,стр9!$A:$K,2,0) ->  | E7: 2016 | F7: 36.74 | G7: 12.65 | R7: 20 | S7: Производство продуктов химической промышленности | T7: 0.07089032499 | V7: Производство кокса и продуктов нефтепереработки | W7: 0.07573867857
A8: 07 | B8: 2866472.9 | C8: =VLOOKUP(A8,стр9!$A:$K,2,0) ->  | E8: 2017 | F8: 48.5 | G8: 15.55 | R8: 26 | S8: Компьютеры, электронная и оптическая продукция | T8: 0.04777545217 | V8: Производство продуктов химической промышленности | W8: 0.07089032499
A9: 08 | B9: 286812.815 | C9: =VLOOKUP(A9,стр9!$A:$K,2,0) ->  | E9: 2018 | F9: 61.1 | G9: 15.74 | R9: 28 | S9: Производство машин и оборудования, не включенных в другие категории | T9: 0.05239601755 | V9: Компьютеры, электронная и оптическая продукция | W9: 0.04777545217
A10: 10 | B10: 1193884.521 | C10: =VLOOKUP(A10,стр9!$A:$K,2,0) -> Производство продуктов питания | E10: 2019 | F10: 58.1 | G10: 15.8 | R10: 29 | S10: Производство автотранспортных средств, трейлеров | T10: 0.02773412724 | V10: Производство машин и оборудования, не включенных в другие категории | W10: 0.05239601755
A11: 11 | B11: 137830.7573 | C11: =VLOOKUP(A11,стр9!$A:$K,2,0) -> Производство напитков | E11: 2020 | F11: 47.5 | G11: 15.5 | R11: 27 | S11: Производство электрического оборудования | T11: 0.02679368935 | V11: Производство автотранспортных средств, трейлеров | W11: 0.02773412724
A12: 12 | B12: 63861.29781 | C12: =VLOOKUP(A12,стр9!$A:$K,2,0) -> Производство табачных изделий | E12: 2021 | F12: 60.3 | G12: 19.8 | R12: 22 | S12: Производство резиновых и пластмассовых изделий | T12: 0.01598198816
A13: 13 | B13: 30966.32444 | C13: =VLOOKUP(A13,стр9!$A:$K,2,0) -> Производство текстильных изделий | E13: 2022 | F13: 84.5930701 | G13: 26.8140854 | R13: 25 | S13: Производство готовых металлических изделий | T13: 0.01393629484
A14: 14 | B14: 36749.07146 | C14: =VLOOKUP(A14,стр9!$A:$K,2,0) -> Производство одежды | E14: 5 м 2023 | F14: =B42/1000000 -> 44.75573995 | G14: =B43/1000000 -> 14.23519033 | R14: 30 | S14: Производство прочих транспортных средств | T14: 0.01895302132
A15: 15 | B15: 15773.894 | C15: =VLOOKUP(A15,стр9!$A:$K,2,0) -> Производство кожаной и относящейся к ней продукции | R15: 23 | S15: Неметаллическая минеральная продукция | T15: 0.009660614293
A16: 16 | B16: 84535.66581 | C16: =VLOOKUP(A16,стр9!$A:$K,2,0) -> Производство деревянных и пробковых изделий | R16: 11 | S16: Производство напитков | T16: 0.009682396523
A17: 17 | B17: 37926.83098 | C17: =VLOOKUP(A17,стр9!$A:$K,2,0) -> Производство бумаги и бумажной продукции | R17: 16 | S17: Производство деревянных и пробковых изделий | T17: 0.005938499161
A18: 18 | B18: 244.25676 | C18: =VLOOKUP(A18,стр9!$A:$K,2,0) -> Полиграфическая деятельность | R18: 32 | S18: Производство прочих готовых изделий | T18: 0.004749379064
A19: 19 | B19: 1078154.505 | C19: =VLOOKUP(A19,стр9!$A:$K,2,0) -> Производство кокса и продуктов нефтепереработки | R19: 12 | S19: Производство табачных изделий | T19: 0.004486156935
A20: 20 | B20: 1009137.269 | C20: =VLOOKUP(A20,стр9!$A:$K,2,0) -> Производство продуктов химической промышленности | R20: 17 | S20: Производство бумаги и бумажной продукции | T20: 0.002664300941
A21: 21 | B21: 25024.51111 | C21: =VLOOKUP(A21,стр9!$A:$K,2,0) -> Производство основных фармацевтических продуктов | R21: 13 | S21: Производство текстильных изделий | T21: 0.002175336173
A22: 22 | B22: 227506.6433 | C22: =VLOOKUP(A22,стр9!$A:$K,2,0) -> Производство резиновых и пластмассовых изделий | R22: 21 | S22: Производство основных фармацевтических продуктов | T22: 0.001757933019
A23: 23 | B23: 137520.6831 | C23: =VLOOKUP(A23,стр9!$A:$K,2,0) -> Неметаллическая минеральная продукция | R23: 14 | S23: Производство одежды | T23: 0.002581565165
A24: 24 | B24: 7410132.054 | C24: =VLOOKUP(A24,стр9!$A:$K,2,0) -> Металлургическая промышленность | R24: 15 | S24: Производство кожаной и относящейся к ней продукции | T24: 0.001108091542
A25: 25 | B25: 198385.8095 | C25: =VLOOKUP(A25,стр9!$A:$K,2,0) -> Производство готовых металлических изделий | R25: 31 | S25: Производство мебели | T25: 0.0005601799222
A26: 26 | B26: 680092.6546 | C26: =VLOOKUP(A26,стр9!$A:$K,2,0) -> Компьютеры, электронная и оптическая продукция | R26: 18 | S26: Полиграфическая деятельность | T26: 1.715865783e-05
A27: 27 | B27: 381413.2674 | C27: =VLOOKUP(A27,стр9!$A:$K,2,0) -> Производство электрического оборудования
A28: 28 | B28: 745867.2822 | C28: =VLOOKUP(A28,стр9!$A:$K,2,0) -> Производство машин и оборудования, не включенных в другие категории
A29: 29 | B29: 394800.5799 | C29: =VLOOKUP(A29,стр9!$A:$K,2,0) -> Производство автотранспортных средств, трейлеров
A30: 30 | B30: 269799.8657 | C30: =VLOOKUP(A30,стр9!$A:$K,2,0) -> Производство прочих транспортных средств
A31: 31 | B31: 7974.26781 | C31: =VLOOKUP(A31,стр9!$A:$K,2,0) -> Производство мебели
A32: 32 | B32: 67608.31491 | C32: =VLOOKUP(A32,стр9!$A:$K,2,0) -> Производство прочих готовых изделий
A33: 35 | B33: 35410.67879 | C33: =VLOOKUP(A33,стр9!$A:$K,2,0) -> 
A34: 38 | B34: 118585.857 | C34: =VLOOKUP(A34,стр9!$A:$K,2,0) -> 
A35: 58 | B35: 2488.61269 | C35: =VLOOKUP(A35,стр9!$A:$K,2,0) -> 
A36: 59 | B36: 3128.56916 | C36: =VLOOKUP(A36,стр9!$A:$K,2,0) -> 
A37: 71 | B37: 0.8419 | C37: =VLOOKUP(A37,стр9!$A:$K,2,0) -> 
A38: 74 | B38: 5.74697 | C38: =VLOOKUP(A38,стр9!$A:$K,2,0) -> 
A39: 90 | B39: 128.15812 | C39: =VLOOKUP(A39,стр9!$A:$K,2,0) -> 
A40: 91 | B40: 91.07953 | C40: =VLOOKUP(A40,стр9!$A:$K,2,0) -> 
A41: 96 | B41: 1447.47036 | C41: =VLOOKUP(A41,стр9!$A:$K,2,0) -> 
A42: Общий итог | B42: 44755739.95 | C42: =VLOOKUP(A42,стр9!$A:$K,2,0) -> 
A43: C | B43: =SUM(B10:B32) -> 14235190.33 | C43: =VLOOKUP(A43,стр9!$A:$K,2,0) -> Обрабатывающая промышленность
A44: B | B44: =SUM(B6:B9) -> 28517220.59 | C44: =VLOOKUP(A44,стр9!$A:$K,2,0) -> 
A45: BCDE | B45: =SUM(B6:B34) -> 42906407.45

Sheet стр9
B1: Динамика экспорта обрабатывающей промышленности по видам экономической деятельности, млн. долл. США
B2: Наименование ОКЭД | C2: 2015 | D2: 2016 | E2: 2017 | F2: 2018 | G2: 2019 | H2: 2020 | I2: 2021 | J2: 2022 | K2: янв-июль 2023
A3: C | B3: Обрабатывающая промышленность | C3: 14033.9715 | D3: 12650.5485 | E3: 15554.4023 | F3: 15744.73256 | G3: 15826.14463 | H3: 15455.89151 | I3: 19826.85251 | J3: 26814.08538 | K3: =VLOOKUP(A3,'к стр8 и 9'!$A:$B,2,0)/1000 -> 14235.19033
A4: 10 | B4: Производство продуктов питания | C4: 912.8973 | D4: 917.4117 | E4: 1076.1352 | F4: 1176.176683 | G4: 1051.116649 | H4: 1287.377592 | I4: 1306.482544 | J4: 2309.887976 | K4: =VLOOKUP(A4,'к стр8 и 9'!$A:$B,2,0)/1000 -> 1193.884521
A5: 11 | B5: Производство напитков | C5: 49.5082 | D5: 52.1342 | E5: 46.5661 | F5: 55.64909243 | G5: 60.22011067 | H5: 72.52283508 | I5: 91.72876581 | J5: 169.6779177 | K5: =VLOOKUP(A5,'к стр8 и 9'!$A:$B,2,0)/1000 -> 137.8307573
A6: 12 | B6: Производство табачных изделий | C6: 108.3687 | D6: 110.9639 | E6: 92.3455 | F6: 96.81664623 | G6: 93.07836931 | H6: 61.23401336 | I6: 67.33372636 | J6: 96.47808395 | K6: =VLOOKUP(A6,'к стр8 и 9'!$A:$B,2,0)/1000 -> 63.86129781
A7: 13 | B7: Производство текстильных изделий | C7: 27.8504 | D7: 31.0239 | E7: 101.4992 | F7: 85.12523603 | G7: 75.85911054 | H7: 47.22362928 | I7: 56.83185396 | J7: 55.27005261 | K7: =VLOOKUP(A7,'к стр8 и 9'!$A:$B,2,0)/1000 -> 30.96632444
A8: 14 | B8: Производство одежды | C8: 27.5485 | D8: 39.2533 | E8: 13.9113 | F8: 16.24445121 | G8: 11.17718905 | H8: 9.30436733 | I8: 13.73229984 | J8: 26.26167465 | K8: =VLOOKUP(A8,'к стр8 и 9'!$A:$B,2,0)/1000 -> 36.74907146
A9: 15 | B9: Производство кожаной и относящейся к ней продукции | C9: 104.33 | D9: 54.1039 | E9: 26.235 | F9: 19.84977761 | G9: 11.13770414 | H9: 6.18428891 | I9: 12.73919706 | J9: 11.72830376 | K9: =VLOOKUP(A9,'к стр8 и 9'!$A:$B,2,0)/1000 -> 15.773894
A10: 16 | B10: Производство деревянных и пробковых изделий | C10: 3.1649 | D10: 8.8237 | E10: 27.2251 | F10: 43.79025784 | G10: 40.66859376 | H10: 6.87593584 | I10: 9.47727236 | J10: 50.60105709 | K10: =VLOOKUP(A10,'к стр8 и 9'!$A:$B,2,0)/1000 -> 84.53566581
A11: 17 | B11: Производство бумаги и бумажной продукции | C11: 22.5688 | D11: 23.6173 | E11: 33.6924 | F11: 29.93691289 | G11: 46.50981198 | H11: 47.01798534 | I11: 50.49752371 | J11: 76.36957495 | K11: =VLOOKUP(A11,'к стр8 и 9'!$A:$B,2,0)/1000 -> 37.92683098
A12: 18 | B12: Полиграфическая деятельность | C12: 0.0685 | D12: 0.1845 | E12: 0.2104 | F12: 0.14779303 | G12: 0.51667379 | H12: 0.59714454 | I12: 0.47326054 | J12: 0.4511329 | K12: =VLOOKUP(A12,'к стр8 и 9'!$A:$B,2,0)/1000 -> 0.24425676
A13: 19 | B13: Производство кокса и продуктов нефтепереработки | C13: 2048.8328 | D13: 1338.6497 | E13: 1956.1105 | F13: 2251.094596 | G13: 1829.131006 | H13: 1327.521407 | I13: 1858.901471 | J13: 2488.204946 | K13: =VLOOKUP(A13,'к стр8 и 9'!$A:$B,2,0)/1000 -> 1078.154505
A14: 20 | B14: Производство продуктов химической промышленности | C14: 721.5782 | D14: 527.5535 | E14: 723.4841 | F14: 897.7842153 | G14: 879.1914873 | H14: 809.5425347 | I14: 1061.548334 | J14: 1680.121303 | K14: =VLOOKUP(A14,'к стр8 и 9'!$A:$B,2,0)/1000 -> 1009.137269
A15: 21 | B15: Производство основных фармацевтических продуктов | C15: 29.8965 | D15: 25.3725 | E15: 29.1961 | F15: 38.76587246 | G15: 64.5323755 | H15: 62.17797704 | I15: 67.88885026 | J15: 86.04195102 | K15: =VLOOKUP(A15,'к стр8 и 9'!$A:$B,2,0)/1000 -> 25.02451111
A16: 22 | B16: Производство резиновых и пластмассовых изделий | C16: 51.4461 | D16: 59.1514 | E16: 71.7616 | F16: 83.48266793 | G16: 91.85866726 | H16: 77.50097015 | I16: 107.5952387 | J16: 205.8604911 | K16: =VLOOKUP(A16,'к стр8 и 9'!$A:$B,2,0)/1000 -> 227.5066433
A17: 23 | B17: Неметаллическая минеральная продукция | C17: 37.3954 | D17: 54.4465 | E17: 83.3255 | F17: 156.2183164 | G17: 169.7786267 | H17: 173.6340198 | I17: 164.139441 | J17: 190.8562322 | K17: =VLOOKUP(A17,'к стр8 и 9'!$A:$B,2,0)/1000 -> 137.5206831
A18: 24 | B18: Металлургическая промышленность | C18: 9112.5062 | D18: 8540.2697 | E18: 10494.9384 | F18: 9970.467401 | G18: 10016.53485 | H18: 10001.54903 | I18: 12848.00762 | J18: 15116.56842 | K18: =VLOOKUP(A18,'к стр8 и 9'!$A:$B,2,0)/1000 -> 7410.132054
A19: 25 | B19: Производство готовых металлических изделий | C19: 92.8818 | D19: 98.1178 | E19: 68.048 | F19: 82.4260961 | G19: 92.42222666 | H19: 75.97165667 | I19: 121.1578181 | J19: 230.7617615 | K19: =VLOOKUP(A19,'к стр8 и 9'!$A:$B,2,0)/1000 -> 198.3858095
A20: 26 | B20: Компьютеры, электронная и оптическая продукция | C20: 120.6619 | D20: 82.9411 | E20: 91.8731 | F20: 89.32344063 | G20: 99.98706486 | H20: 78.66440507 | I20: 720.3041885 | J20: 1666.721664 | K20: =VLOOKUP(A20,'к стр8 и 9'!$A:$B,2,0)/1000 -> 680.0926546
A21: 27 | B21: Производство электрического оборудования | C21: 108.9346 | D21: 145.5634 | E21: 136.8121 | F21: 163.118832 | G21: 164.3082201 | H21: 152.0908365 | I21: 256.8171508 | J21: 520.6442503 | K21: =VLOOKUP(A21,'к стр8 и 9'!$A:$B,2,0)/1000 -> 381.4132674
A22: 28 | B22: Производство машин и оборудования, не включенных в другие категории | C22: 149.9344 | D22: 225.1847 | E22: 225.9167 | F22: 233.9487473 | G22: 305.620245 | H22: 237.023787 | I22: 300.4980136 | J22: 652.6953261 | K22: =VLOOKUP(A22,'к стр8 и 9'!$A:$B,2,0)/1000 -> 745.8672822
A23: 29 | B23: Производство автотранспортных средств, трейлеров | C23: 63.5153 | D23: 140.1623 | E23: 53.8034 | F23: 51.37157227 | G23: 117.7846378 | H23: 193.493276 | I23: 272.2519358 | J23: 653.0647324 | K23: =VLOOKUP(A23,'к стр8 и 9'!$A:$B,2,0)/1000 -> 394.8005799
A24: 30 | B24: Производство прочих транспортных средств | C24: 180.8385 | D24: 118.5614 | E24: 144.9988 | F24: 116.8930195 | G24: 489.4015655 | H24: 654.0711505 | I24: 396.6448348 | J24: 436.6035966 | K24: =VLOOKUP(A24,'к стр8 и 9'!$A:$B,2,0)/1000 -> 269.7998657
A25: 31 | B25: Производство мебели | C25: 4.8437 | D25: 3.517 | E25: 3.457 | F25: 6.41918049 | G25: 7.71031806 | H25: 5.69258489 | I25: 8.00516491 | J25: 10.46042327 | K25: =VLOOKUP(A25,'к стр8 и 9'!$A:$B,2,0)/1000 -> 7.97426781
A26: 32 | B26: Производство прочих готовых изделий | C26: 54.4008 | D26: 53.5411 | E26: 52.8568 | F26: 79.6817513 | G26: 107.5991262 | H26: 68.62008026 | I26: 33.79600479 | J26: 78.75450798 | K26: =VLOOKUP(A26,'к стр8 и 9'!$A:$B,2,0)/1000 -> 67.60831491
